Workbook

Sheet Sheet1
A1: Department of Education
A2: Region X
A3: ='Input Menu'!A3:H3 -> 
A11: Brief History of the School
A12: School ID | B12: =IF(A3="","",'Input Menu'!K6) -> 
A13: Name of School | B13: ='Input Menu'!B7:C7 -> 
A14: District | B14: ='Input Menu'!B8:C8 -> 
A15: School Address
A16: Name of the School Head
A17: Position of the School Head
A18: Contact No.
A19: Teaching Staff | B19: Male | C19: Female | D19: Total
A20: Number of Master Teacher III | D20: =IF(OR(B20="",C20=""),"",SUM(B20:C20)) -> 
A21: Number of Master Teacher II | D21: =IF(OR(B21="",C21=""),"",SUM(B21:C21)) -> 
A22: Number of Master Teacher I
A23: Head Teacher III
A24: Head Teacher II
A25: Head Teacher I
A26: Teacher III
A27: Teacher II
A28: Teacher I
A29: Others, pls. specify below
B30: =IF(B20="","",IF(B21="","",IF(B22="","",IF(B23="","",IF(B24="","",IF(B25="","",IF(B26="","",IF(B27="","",IF(B28="","",IF(B29="","",SUM(B20:B29))))))))))) ->  | C30: =IF(C20="","",IF(C21="","",IF(C22="","",IF(C23="","",IF(C24="","",IF(C25="","",IF(C26="","",IF(C27="","",IF(C28="","",IF(C29="","",SUM(C20:C29))))))))))) ->  | D30: =IF(OR(B30="",C30=""),"",SUM(B30:C30)) -> 

Sheet Input Menu
A1: Department of Education | I1: Division of Bukidnon
A2: Region X | I2: Division of Cagayan de Oro City
A3: =IF(B6="","",VLOOKUP(B6,Maintenance!A:D,4,)) ->  | I3: Division of Camiguin City
I4: Division of El Salvador City
A5: School-Based Management (S B M) V a l I d a t I o n | I5: Division of Gingoog City
A6: School ID.: | I6: Division of Iligan City | K6: =B6 -> 0
A7: School: | B7: =IF(B6="","",VLOOKUP(B6,Maintenance!A:B,2,)) ->  | I7: Division of Lanao del Norte
A8: District: | B8: =IF(B6="","",VLOOKUP(B6,Maintenance!A:C,3,)) ->  | K8: =B8 -> 
A9: School Year Validated:
A10: Step 1: Determine Performance Improvement (60%) | I10: Division of Malaybalay City
A11: Direction: Select the school year under Performance Indicator's Column and enter the baseline data. | I11: Division of Misamis Occidental
A12: Thematic Area | B12: Year | C12: Performance Indicators | E12: Baseline Data | I12: Division of Misamis Oriental
A13: Access (45%) | B13: Gross Enrolment (RAW DATA) | E13: Community Mapping | I13: Division of Oroqueta City
E14: No. of school-aged children (5-11 years old) in the community not enrolled | F14: No. of school-aged children within the community (5-11 years old) enrolled in other schools | G14: No. of school-aged children enrolled (5-11 years old) within the community | H14: Total no. of school-aged children in the community aged (5-11 years old) | I14: Division of Ozamis City
B15: SY 2009-2010 | C15: 990 | F15: SY 2008-2009
H16: =IF(B16="","",G16+F16+E16) ->  | I16: Division of Tangub City
B17: =IF(B16="","",B16+1) ->  | H17: =IF(B17="","",G17+F17+E17) ->  | I17: Division of Valencia City
B18: =IF(B17="","",B17+1) -> 
B19: % of Inc./Average | C19: ='1Elem. ER, CR1, CSR1, NAT1'!C17 ->  | F19: 2013
A20: Efficiency (25%) | B20: Dropout (Raw Data) | E20: No. of Drop-outs (Current Year) | G20: Enrolment (Previous Year)
B21: SY 2008-2009 | C21: 2.00%
B22: =IF(B17="","",B16) ->  | G22: =IF(B16="","",C16) -> 
B23: =B17 ->  | G23: =IF(B17="","",C17) -> 
B24: =B18 ->  | G24: =IF(B18="","",C18) -> 
B25: Ave. % of Decrease
B26: Repetition (Raw Data) | E26: No. of Repeaters (Current Year) | F26: No. of Retained (Current Year) | G26: Enrolment (Previous Year)
B27: SY 2008-2009 | C27: 65
B28: =B22 ->  | G28: =G22 -> 
B29: =B23 ->  | G29: =G23 -> 
B30: =B24 ->  | G30: =G24 -> 
B31: Ave. % of Increase | F31: 2025
B32: Cohort Survival Rate (CSR): | C32: Cohort Survival (%) | F32: 2026
B33: SY 2008-2009 | C33: 58 | F33: 2027
B34: =B28 ->  | C34: 95.00 | F34: 2028
B35: =B29 ->  | C35: 96.00 | F35: 2029
B36: =B30 ->  | C36: 83.72 | F36: 2030
B37: Ave. % of Increase | F37: 2031
A38: Quality (30%) | B38: NAT MPS (%) | D38: NAT MPS | E38: Promotion Rate
D39: 50 | E39: No. of Promotees (Current Year) | G39: Enrolment (Previous Year)
B40: =B34 ->  | D40: 20 | E40: =IF(B16="","",C16-E22-F28) ->  | G40: =G28 -> 
B41: =B35 ->  | D41: 68 | E41: =IF(B17="","",C17-E23-F29) ->  | G41: =G29 -> 
B42: =B36 ->  | D42: 28 | E42: =IF(B18="","",C18-E24-F30) ->  | G42: =G30 -> 
B43: Ave. % of Increase | D43: =AVERAGE(D40:D42) -> 39
A45: Maintenance Menu
A47: SBM Validation Form and DOD Assessment
A48: Blank SBM Valdation Form
A49: Enter the names of Validators
A50: Chairman:
A51: Member1:
A52: Member2:
A53: Member3:
A54: Member4:

Sheet Maintenance
A1: School ID | B1: School | C1: District | D1: Division | E1: School Year | F1: Calendar Year
A2: 126618 | B2: Abyawan ES | C2: Manolo Fortich I | D2: Division of Bukidnon | E2: 2008-2009 | F2: 2008
A3: 126676 | B3: Adtuyon Elementary School | C3: Pangantucan | D3: Division of Bukidnon | E3: 2009-2010 | F3: 2009
A4: 199516 | B4: Agaton Elementary School | C4: Kalilangan | D4: Division of Bukidnon | E4: 2010-2011 | F4: 2010
A5: 126619 | B5: Alae CES | C5: Manolo Fortich II | D5: Division of Bukidnon | E5: 2011-2012 | F5: 2011
A6: 126596 | B6: Alangilan ES | C6: Malitbog | D6: Division of Bukidnon | E6: 2012-2013 | F6: 2012
A7: 126496 | B7: Alanib ES | C7: Lantapan | D7: Division of Bukidnon | E7: 2013-2014 | F7: 2013
A8: 126648 | B8: Ali-al Elementary School | C8: Maramag III | D8: Division of Bukidnon | E8: 2014-2015 | F8: 2014
A9: 126307 | B9: Aludas Elementary school | C9: Damulog | D9: Division of Bukidnon | E9: 2015-2016 | F9: 2015
A10: 126649 | B10: Anahawon Elem.School | C10: Maramag I | D10: Division of Bukidnon | E10: 2016-2017 | F10: 2016
A11: 126308 | B11: Anggaan ES | C11: Damulog | D11: Division of Bukidnon | E11: 2017-2018 | F11: 2017
A12: 126281 | B12: Anlugan ES | C12: Cabanglasan | D12: Division of Bukidnon | E12: 2018-2019 | F12: 2018
A13: 126705 | B13: Apyao ES | C13: Quezon I | D13: Division of Bukidnon | E13: 2019-2020 | F13: 2019
A14: 126412 | B14: AQUINO ELEMENTARY SCHOOL | C14: Kalilangan | D14: Division of Bukidnon | E14: 2020-2021 | F14: 2020
A15: 126620 | B15: Awol ES | C15: Manolo Fortich II | D15: Division of Bukidnon | E15: 2021-2022 | F15: 2021
A16: 126497 | B16: Babahagon ES | C16: Lantapan | D16: Division of Bukidnon | E16: 2022-2023 | F16: 2022
A17: 199542 | B17: Bacayan Primary School | C17: Kitaotao II | D17: Division of Bukidnon | E17: 2023-2024 | F17: 2023
A18: 126392 | B18: Bacbacon ES | C18: Kadingilan | D18: Division of Bukidnon | E18: 2024-2025 | F18: 2024
A19: 126498 | B19: Baclayon ES | C19: Lantapan | D19: Division of Bukidnon | E19: 2025-2026 | F19: 2025
A20: 126677 | B20: BACUSANON ELEMENTARY SCHOOL | C20: Pangantucan | D20: Division of Bukidnon | E20: 2026-2027 | F20: 2026
A21: 126621 | B21: Bagalangit Elementary School | C21: Manolo Fortich I | D21: Division of Bukidnon | E21: 2027-2028 | F21: 2027
A22: 126724 | B22: Bagong Lipunan ES | C22: Quezon II | D22: Division of Bukidnon | E22: 2028-2029 | F22: 2028
A23: 199539 | B23: Bagong Silang Elementary School | C23: Malitbog | D23: Division of Bukidnon | E23: 2029-2030 | F23: 2029
A24: 126432 | B24: Bagong Silang ES | C24: Kibawe | D24: Division of Bukidnon | F24: 2030
A25: 126459 | B25: Bagong Silang ES | C25: Kitaotao II | D25: Division of Bukidnon | F25: 2031
A26: 126393 | B26: Bagongbayan ES | C26: Kadingilan | D26: Division of Bukidnon | F26: 2032
A27: 126394 | B27: Bagor ES | C27: Kadingilan | D27: Division of Bukidnon | F27: 2033
A28: 126597 | B28: Bagyangon ES | C28: Malitbog | D28: Division of Bukidnon | F28: 2034
A29: 199512 | B29: Bahucanon E/S | C29: Kadingilan | D29: Division of Bukidnon | F29: 2035
A30: 126460 | B30: Balangigay ES | C30: Kitaotao I | D30: Division of Bukidnon | F30: 2036
A31: 126794 | B31: Balaon Elementary School | C31: Talakag I | D31: Division of Bukidnon | F31: 2037
A32: 126395 | B32: Balaoro ES | C32: Kadingilan | D32: Division of Bukidnon | F32: 2038
A33: 126499 | B33: Balila ES | C33: Lantapan | D33: Division of Bukidnon | F33: 2039
A34: 126263 | B34: Balintad ES | C34: Baungon | D34: Division of Bukidnon | F34: 2040
A35: 126433 | B35: Balintawak ES | C35: Kibawe | D35: Division of Bukidnon | F35: 2041
A36: 126678 | B36: BALMAR ELEMENTARY SCHOOL | C36: Pangantucan | D36: Division of Bukidnon | F36: 2042
A37: 126461 | B37: Balocbocan ES | C37: Kitaotao I | D37: Division of Bukidnon
A38: 126679 | B38: Balogo ES | C38: Pangantucan South District | D38: Division of Bukidnon
A39: 199524 | B39: Balud ES | C39: Damulog | D39: Division of Bukidnon
A40: 126680 | B40: Bangahan ES | C40: Pangantucan South District | D40: Division of Bukidnon
A41: 126413 | B41: Bangbang Elementary School | C41: Kalilangan | D41: Division of Bukidnon
A42: 126650 | B42: Bangkal ELEMENTARY SCHOOL | C42: Maramag III | D42: Division of Bukidnon
A43: 126651 | B43: Bantayan ES | C43: Maramag III | D43: Division of Bukidnon
A44: 126500 | B44: Bantuanon ES | C44: Lantapan | D44: Division of Bukidnon
A45: 126681 | B45: BARANDIAS ELEMENTARY SCHOOL | C45: Pangantucan | D45: Division of Bukidnon
A46: 126325 | B46: Barongcot Elementary School | C46: Dangcagan | D46: Division of Bukidnon
A47: 126414 | B47: Barorawon Elementary School | C47: Kalilangan | D47: Division of Bukidnon
A48: 126396 | B48: Baroy ES | C48: Kadingilan | D48: Division of Bukidnon
A49: 126501 | B49: Basac ES | C49: Lantapan | D49: Division of Bukidnon
A50: 199537 | B50: Basag PS | C50: Damulog | D50: Division of Bukidnon
A51: 126795 | B51: Basak Elementary School | C51: Talakag I | D51: Division of Bukidnon
A52: 199503 | B52: Basak Elementary School | C52: Kitaotao II | D52: Division of Bukidnon
A53: 126652 | B53: Base Camp Elementary school | C53: Maramag I | D53: Division of Bukidnon
A54: 126796 | B54: Baylanan PS | C54: Talakag I | D54: Division of Bukidnon
A55: 126744 | B55: Bayting ES | C55: San Fernando I | D55: Division of Bukidnon
A56: 126462 | B56: Bershiba ES | C56: Kitaotao I | D56: Division of Bukidnon
A57: 126339 | B57: Bismartz ES (Inator) | C57: Don Carlos II | D57: Division of Bukidnon
A58: 126463 | B58: Bobong ES | C58: Kitaotao I | D58: Division of Bukidnon
A59: 126340 | B59: Bocboc Central ES | C59: Don Carlos II | D59: Division of Bukidnon
A60: 126464 | B60: Bolo ES | C60: Kitaotao II | D60: Division of Bukidnon
A61: 126747 | B61: Bonacao ES | C61: San Fernando II | D61: Division of Bukidnon
A62: 126369 | B62: Bontongon Elementary School | C62: Impasug-Ong I | D62: Division of Bukidnon
A63: 126264 | B63: Buenavista ES | C63: Baungon | D63: Division of Bukidnon
A64: 126745 | B64: Bugca ES | C64: San Fernando II | D64: Division of Bukidnon
A65: 126502 | B65: Bugcaon ES | C65: Lantapan | D65: Division of Bukidnon
A66: 126326 | B66: Bugwak Elementary School | C66: Dangcagan | D66: Division of Bukidnon
A67: 126434 | B67: Bukang Liwayway Elementary School | C67: Kibawe | D67: Division of Bukidnon
A68: 126746 | B68: Bulalang ES | C68: San Fernando II | D68: Division of Bukidnon
A69: 126370 | B69: Bulonay ES | C69: Impasug-Ong I | D69: Division of Bukidnon
A70: 199530 | B70: Buluan PS | C70: Damulog | D70: Division of Bukidnon
A71: 126371 | B71: Bundaan Elementary School | C71: Impasug-Ong I | D71: Division of Bukidnon
A72: 126706 | B72: Busco ES | C72: Quezon I | D72: Division of Bukidnon
A73: 126707 | B73: Butong ES | C73: Quezon I | D73: Division of Bukidnon
A74: 126341 | B74: Buyot ES | C74: Don Carlos I | D74: Division of Bukidnon
A75: 126342 | B75: Cabadiangan ES | C75: Don Carlos II | D75: Division of Bukidnon
A76: 126465 | B76: Cabalantian ES | C76: Kitaotao II | D76: Division of Bukidnon
A77: 126305 | B77: Cabanglasan ES | C77: Cabanglasan | D77: Division of Bukidnon
A78: 126748 | B78: Cabuling ES | C78: San Fernando II | D78: Division of Bukidnon
A79: 126283 | B79: Cabulohan ES | C79: Cabanglasan | D79: Division of Bukidnon
A80: 126797 | B80: Cacaon Elementary School | C80: Talakag I | D80: Division of Bukidnon
A81: 126435 | B81: CAGAWASAN ELEMENTARY SCHOOL | C81: Kibawe | D81: Division of Bukidnon
A82: 126343 | B82: Calao-Calao ES | C82: Don Carlos II | D82: Division of Bukidnon
A83: 126466 | B83: Calapaton Elementary School | C83: Kitaotao I | D83: Division of Bukidnon
A84: 126622 | B84: Camp 1 ES | C84: Manolo Fortich II | D84: Division of Bukidnon
A85: 126514 | B85: Camp 14 ES | C85: Libona | D85: Division of Bukidnon
A86: 126515 | B86: Camp 9 ES | C86: Libona | D86: Division of Bukidnon
A87: 126653 | B87: Camp I ES | C87: Maramag I | D87: Division of Bukidnon
A88: 126284 | B88: Canangaan ES | C88: Cabanglasan | D88: Division of Bukidnon
A89: 126749 | B89: Candelaria ES | C89: San Fernando I | D89: Division of Bukidnon
A90: 126415 | B90: Canituan ES | C90: Kalilangan | D90: Division of Bukidnon
A91: 126516 | B91: Capehan Elementary School | C91: Libona | D91: Division of Bukidnon
A92: 126285 | B92: Capinonan ES | C92: Cabanglasan | D92: Division of Bukidnon
A93: 126372 | B93: Capitan Bayong ES | C93: Impasug-Ong I | D93: Division of Bukidnon
A94: 126503 | B94: Capt. Juan ES | C94: Lantapan | D94: Division of Bukidnon
A95: 126777 | B95: CAWAYAN ELEMENTARY SCHOOL | C95: Impasug-Ong I | D95: Division of Bukidnon
A96: 126504 | B96: Cawayan ES | C96: Lantapan | D96: Division of Bukidnon
A97: 126725 | B97: Cawayan ES | C97: Quezon II | D97: Division of Bukidnon
A98: 126750 | B98: Cayaga ES | C98: San Fernando II | D98: Division of Bukidnon
A99: 126726 | B99: Cebole ES | C99: Quezon II | D99: Division of Bukidnon
A100: 126654 | B100: Colambugon Elementary School | C100: Maramag III | D100: Division of Bukidnon
A101: 126798 | B101: Colawingon ES | C101: Talakag I | D101: Division of Bukidnon
A102: 126751 | B102: Colon ES | C102: San Fernando I | D102: Division of Bukidnon
A103: 126598 | B103: ComoComo Elementary School | C103: Malitbog | D103: Division of Bukidnon
A104: 126682 | B104: Concepcion ES | C104: Pangantucan | D104: Division of Bukidnon
A105: 126799 | B105: Cosina Elementary School | C105: Talakag I | D105: Division of Bukidnon
A106: 126517 | B106: Crossing ES | C106: Libona | D106: Division of Bukidnon
A107: 126286 | B107: Crossing Mandaing | C107: Cabanglasan | D107: Division of Bukidnon
A108: 500676 | B108: DAGUMBAAN ELEMENTARY SCHOOL | C108: Talakag I | D108: Division of Bukidnon
A109: 126655 | B109: Dagumbaan ES | C109: Maramag III | D109: Division of Bukidnon
A110: 126800 | B110: Dagundalahon ES | C110: Talakag I | D110: Division of Bukidnon
A111: 126624 | B111: Dahilayan ES | C111: Manolo Fortich II | D111: Division of Bukidnon
A112: 126287 | B112: Dalacutan ES | C112: Cabanglasan | D112: Division of Bukidnon
A113: 126518 | B113: Dalag-Ayan ES | C113: Libona | D113: Division of Bukidnon
A114: 126625 | B114: Dalirig ES | C114: Manolo Fortich I | D114: Division of Bukidnon
A115: 126626 | B115: Damilag ES | C115: Manolo Fortich II | D115: Division of Bukidnon
A116: 126309 | B116: Damulog CES | C116: Damulog | D116: Division of Bukidnon
A117: 126265 | B117: Danatag ES | C117: Baungon | D117: Division of Bukidnon
A118: 126327 | B118: Dangcagan CES | C118: Dangcagan | D118: Division of Bukidnon
A119: 126656 | B119: Danggawan Elementary School | C119: Maramag III | D119: Division of Bukidnon
A120: 199526 | B120: Dao ES | C120: San Fernando II | D120: Division of Bukidnon
A121: 126627 | B121: Dicklum ES | C121: Manolo Fortich I | D121: Division of Bukidnon
A122: 126467 | B122: Digongan Elementary School | C122: Kitaotao I | D122: Division of Bukidnon
A123: 500677 | B123: Dilapa Elem School | C123: Quezon II | D123: Division of Bukidnon
A124: 126657 | B124: DOLOGON CENTRAL ELEMENTARY SCHOOL | C124: Maramag II | D124: Division of Bukidnon
A125: 126328 | B125: Dolorosa ES | C125: Dangcagan | D125: Division of Bukidnon
A126: 126802 | B126: Dominorog ES | C126: Talakag II | D126: Division of Bukidnon
A127: 199541 | B127: Don Antonio O. Floirendo Sr. Primary School | C127: Quezon I | D127: Division of Bukidnon
A128: 126344 | B128: Don Carlos CES | C128: Don Carlos I | D128: Division of Bukidnon
A129: 126345 | B129: Don Carlos Norte ES | C129: Don Carlos I | D129: Division of Bukidnon
A130: 126519 | B130: Dona Pilar ES | C130: Libona | D130: Division of Bukidnon
A131: 126373 | B131: Dumalaguing Elementary School | C131: Impasug-Ong I | D131: Division of Bukidnon
A132: 126708 | B132: Dumalama ES | C132: Quezon I | D132: Division of Bukidnon
A133: 126752 | B133: Durian ES | C133: San Fernando II | D133: Division of Bukidnon
A134: 126346 | B134: Embayao ES | C134: Don Carlos I | D134: Division of Bukidnon
A135: 126658 | B135: Famador ES | C135: Maramag II | D135: Division of Bukidnon
A136: 126417 | B136: Forchacu II ES | C136: Kalilangan | D136: Division of Bukidnon
A137: 126418 | B137: Forchacu III ES | C137: Kalilangan | D137: Division of Bukidnon
A138: 126419 | B138: Forchacu IV ES | C138: Kalilangan | D138: Division of Bukidnon
A139: 126659 | B139: Francisco Villa ES | C139: Maramag I | D139: Division of Bukidnon
A140: 126288 | B140: Freedom Elementary School | C140: Cabanglasan | D140: Division of Bukidnon
A141: 199517 | B141: Gamot Elem. School | C141: Quezon II | D141: Division of Bukidnon
A142: 126520 | B142: Gango Elementary School | C142: Libona | D142: Division of Bukidnon
A143: 126628 | B143: Gauron ES | C143: Manolo Fortich I | D143: Division of Bukidnon
A144: 126374 | B144: GUIHEAN ELEMENTARY SCHOOL | C144: Impasug-Ong I | D144: Division of Bukidnon
A145: 126640 | B145: Guilang-Guilang ES | C145: Manolo Fortich I | D145: Division of Bukidnon
A146: 199501 | B146: Gumada Primary School | C146: Kitaotao II | D146: Division of Bukidnon
A147: 199505 | B147: Gupaco ES | C147: Kitaotao II | D147: Division of Bukidnon
A148: 126468 | B148: Gutalid ES | C148: Kitaotao II | D148: Division of Bukidnon
A149: 126436 | B149: Gutapol ES | C149: Kibawe | D149: Division of Bukidnon
A150: 126375 | B150: Hagpa ES | C150: Impasug-Ong II | D150: Division of Bukidnon
A151: 126753 | B151: Halapitan CES | C151: San Fernando I | D151: Division of Bukidnon
A152: 126397 | B152: Husayan Elem. School | C152: Kadingilan | D152: Division of Bukidnon
A153: 500678 | B153: Iba Central Elementary School | C153: Cabanglasan | D153: Division of Bukidnon
A154: 500890 | B154: Iba Integrated School | C154: Cabanglasan | D154: Division of Bukidnon
A155: 126754 | B155: Iglugsad ES | C155: San Fernando II | D155: Division of Bukidnon
A156: 126755 | B156: Ilian ES | C156: San Fernando I | D156: Division of Bukidnon
A157: 126376 | B157: ILIGNAN ELEMENTARY SCHOOL | C157: Impasug-Ong I | D157: Division of Bukidnon
A158: 126420 | B158: Imbariz ES | C158: Kalilangan | D158: Division of Bukidnon
A159: 126266 | B159: Imbatug CES | C159: Baungon | D159: Division of Bukidnon
A160: 126290 | B160: Imbatug ES | C160: Cabanglasan | D160: Division of Bukidnon
A161: 126599 | B161: Impahanong ES | C161: Malitbog | D161: Division of Bukidnon
A162: 126629 | B162: Impakibel ES | C162: Manolo Fortich I | D162: Division of Bukidnon
A163: 126377 | B163: Impalutao Integrated School | C163: Impasug-Ong I | D163: Division of Bukidnon
A164: 500246 | B164: Impalutao Integrated School | C164: Impasug-Ong I | D164: Division of Bukidnon
A165: 126378 | B165: Impasug-Ong CES | C165: Impasug-Ong I | D165: Division of Bukidnon
A166: 126803 | B166: Indulang ES | C166: Talakag II | D166: Division of Bukidnon
A167: 199543 | B167: Inlabo Primary School | C167: Damulog | D167: Division of Bukidnon
A168: 126779 | B168: Intavas Elementary School | C168: Impasug-Ong I | D168: Division of Bukidnon
A169: 126683 | B169: JARQUE ES | C169: Pangantucan | D169: Division of Bukidnon
A170: 126291 | B170: Jasaan Elementary School | C170: Cabanglasan | D170: Division of Bukidnon
A171: 126379 | B171: Kaanibungan ES | C171: Impasug-Ong II | D171: Division of Bukidnon
A172: 126505 | B172: Kaatuan ES | C172: Lantapan | D172: Division of Bukidnon
A173: 126398 | B173: Kabadiangan ES | C173: Kadingilan | D173: Division of Bukidnon
A174: 126469 | B174: Kabalansihan ES | C174: Kitaotao II | D174: Division of Bukidnon
A175: 126399 | B175: Kadingilan CES | C175: Kadingilan | D175: Division of Bukidnon
A176: 126470 | B176: Kahusayan ES | C176: Kitaotao II | D176: Division of Bukidnon
A177: 126380 | B177: Kalabugao CES | C177: Impasug-Ong II | D177: Division of Bukidnon
A178: 126756 | B178: Kalagangan Central School | C178: San Fernando II | D178: Division of Bukidnon
A179: 126381 | B179: Kalampigan ES | C179: Impasug-Ong II | D179: Division of Bukidnon
A180: 126267 | B180: Kalanganan Elementary School | C180: Baungon | D180: Division of Bukidnon
A181: 126421 | B181: Kalilangan CES | C181: Kalilangan | D181: Division of Bukidnon
A182: 126268 | B182: KALILANGAN ELEMENTARY SCHOOL | C182: Baungon | D182: Division of Bukidnon
A183: 126600 | B183: Kalingking ES | C183: Malitbog | D183: Division of Bukidnon
A184: 126382 | B184: Kalipayan Elementary School | C184: Impasug-Ong I | D184: Division of Bukidnon
A185: 126347 | B185: Kalubihon ES | C185: Don Carlos II | D185: Division of Bukidnon
A186: 126630 | B186: Kalugmanan ES | C186: Manolo Fortich I | D186: Division of Bukidnon
A187: 126471 | B187: Kalumihan ES | C187: Kitaotao I | D187: Division of Bukidnon
A188: 126329 | B188: Kapalaran Elementary school | C188: Dangcagan | D188: Division of Bukidnon
A189: 126348 | B189: Kasigkot ES | C189: Don Carlos I | D189: Division of Bukidnon
A190: 126805 | B190: Kaulayanan ES | C190: Talakag II | D190: Division of Bukidnon
A191: 126757 | B191: Kauswagan Elementary School | C191: San Fernando I | D191: Division of Bukidnon
A192: 126472 | B192: Kauyonan ES | C192: Kitaotao I | D192: Division of Bukidnon
A193: 126758 | B193: Kawayan ES | C193: San Fernando I | D193: Division of Bukidnon
A194: 126349 | B194: Kawilihan ES | C194: Don Carlos II | D194: Division of Bukidnon
A195: 126400 | B195: Kawilihan ES | C195: Kadingilan | D195: Division of Bukidnon
A196: 126601 | B196: Kiabo Elementary School | C196: Malitbog | D196: Division of Bukidnon
A197: 126330 | B197: Kianggat ES | C197: Dangcagan | D197: Division of Bukidnon
A198: 126350 | B198: Kiara ES | C198: Don Carlos II | D198: Division of Bukidnon
A199: 126709 | B199: Kibacania Elementary School | C199: Quezon I | D199: Division of Bukidnon
A200: 126401 | B200: Kibalagon ES | C200: Kadingilan | D200: Division of Bukidnon
... 1920 more rows

Sheet Main Menu
A1: Department of Education | J1: Division of Bukidnon
A2: Region X | J2: Division of Cagayan de Oro City
A3: =IF(B16="","",'Input Menu'!A3:G3) ->  | J3: Division of Camiguin City
J4: Division of El Salvador City
A5: S B M V a l I d a t I o n | J5: Division of Gingoog City
A6: District: | B6: =IF(B16="","",'Input Menu'!B8:C8) ->  | J6: Division of Iligan City
A7: School: | B7: =IF(B16="","",'Input Menu'!B7:G7) ->  | J7: Division of Lanao del Norte
A8: School Year Validated: | B8: =IF(B16="","",'Input Menu'!B9:C9) -> 
A9: Step 1: Determine Performance Improvement (60%) | J9: Division of Malaybalay City
A10: Direction: Select the school year under Performance Indicator's Column and enter the baseline data. | J10: Division of Misamis Occidental
A11: Thematic Area | B11: Performance Indicators | D11: Baseline Data | J11: Division of Misamis Oriental
J12: Division of Oroqueta City
A13: Access (45%) | B13: Enrolment Increase | D13: Enrolment (Raw Data) | F13: Community Mapping | J13: Division of Ozamis City
B14: SY 2009-2010 | D14: 990 | G14: SY 2008-2009
B15: =IF(B6="","",'Input Menu'!B16) ->  | D15: =IF(B15="","",'Input Menu'!C16) ->  | E15: SY 2009-2010 | F15: =IF(B15="","",100-(('Input Menu'!E16/'Input Menu'!H16)*100)) ->  | G15: 2010 | J15: Division of Tangub City
B16: ='Input Menu'!B17 ->  | D16: =IF(B16="","",'Input Menu'!C17) ->  | E16: SY 2010-2011 | F16: =IF(B16="","",100-(('Input Menu'!E17/'Input Menu'!H17)*100)) ->  | G16: 2011 | J16: Division of Valencia City
B17: ='Input Menu'!B18 ->  | D17: =IF(B17="","",'Input Menu'!C18) ->  | E17: SY 2011-2012 | F17: =IF(B17="","",100-(('Input Menu'!E18/'Input Menu'!H18)*100)) ->  | G17: 2012
B18: % of Inc./Average | D18: ='1Elem. ER, CR1, CSR1, NAT1'!C17 ->  | G18: 2013
A19: Efficiency (25%) | B19: Dropout Rate (DR): | D19: Dropout (%) | G19: 2014
B20: SY 2008-2009 | D20: 2.00% | G20: 2015
B21: =B15 ->  | D21: =IF(B21="","",('Input Menu'!E22/'Input Menu'!G22)*100) ->  | G21: 2016
B22: =B16 ->  | D22: =IF(B22="","",('Input Menu'!E23/'Input Menu'!G23)*100) ->  | G22: 2017
B23: =B17 ->  | D23: =IF(B23="","",('Input Menu'!E24/'Input Menu'!G24)*100) ->  | G23: 2018
B24: Ave. % of Decrease | G24: 2019
B25: Repetition Rate (RR): | D25: Repetition (%) | G25: 2020
B26: SY 2008-2009 | D26: 65 | G26: 2021
B27: =B21 ->  | D27: =IF(B27="","",('Input Menu'!E28/'Input Menu'!G28)*100) ->  | G27: 2022
B28: =B22 ->  | D28: =IF(B28="","",('Input Menu'!E29/'Input Menu'!G29)*100) ->  | G28: 2023
B29: =B23 ->  | D29: =IF(B29="","",('Input Menu'!E30/'Input Menu'!G30)*100) ->  | G29: 2024
B30: Ave. % of Increase | G30: 2025
B31: Cohort Survival Rate (CSR): | D31: Cohort Survival (%) | G31: 2026
B32: SY 2008-2009 | D32: 58 | G32: 2027
B33: =B27 ->  | D33: 95.00 | G33: 2028
B34: =B28 ->  | D34: 96.00 | G34: 2029
B35: =B29 ->  | D35: 83.72 | G35: 2030
B36: Ave. % of Increase | G36: 2031
A37: Quality (30%) | B37: NAT MPS/Promotion Rate | D37: NAT MPS (%) | E37: NAT MPS | F37: Promotion Rate | G37: 2032
B38: SY 2008-2009 | D38: 56.00 | E38: 50 | G38: 2033
B39: =B33 ->  | D39: =IF(B39="","",'Input Menu'!C40) ->  | E39: 20 | F39: =IF(B39="","",('Input Menu'!E40/'Input Menu'!G40)*100) ->  | G39: 2034
B40: =B34 ->  | D40: =IF(B40="","",'Input Menu'!C41) ->  | E40: 68 | F40: =IF(B40="","",('Input Menu'!E41/'Input Menu'!G41)*100) ->  | G40: 2035
B41: =B35 ->  | D41: =IF(B41="","",'Input Menu'!C42) ->  | E41: 28 | F41: =IF(B41="","",('Input Menu'!E42/'Input Menu'!G42)*100) ->  | G41: 2036
B42: Ave. % of Increase | E42: =AVERAGE(E39:E41) -> 39
A48: Step 1: Click the option to view the Performance Improvement score
A49: Choose the best option to generate the highest score, then proceed to DOD Principles:
A50: Option1: ER, DR, RR, NAT1 | B50: ='3Elem. ER, CR1, CSR2, NAT1'!H42 ->  | C50: =B50*0.6 ->  | G50: =F50*0.6 -> 0.00
A51: Option2: ER, DR, RR, NAT2 | B51: ='2Elem. ER, CR1, CSR1, NAT2'!H42 ->  | C51: =B51*0.6 ->  | G51: =F51*0.6 -> 0.00
A52: Option3: ER, DR, RR, PrR | B52: ='1Elem. ER, CR1, CSR1, NAT1'!H42 ->  | G52: =F52*0.6 -> 0.00
A53: Option4: CM, DR, RR, NAT1 | B53: ='9Elem. PR, CR1, CSR1, NAT1'!H42 ->  | G53: =F53*0.6 -> 0.00
A54: Option5: CM, DR, RR, NAT2 | B54: ='10Elem. PR, CR1, CSR1, NAT2'!H42 -> 
A55: Option6: CM, DR, RR, PrR | B55: ='14Elem. PR, CR2, CSR1, NAT2'!H42 -> 
A56: 2. Comments/ Suggestions/ Recommendations/ Technical Assistance:
A69: Step 3: Enter the best option on the space given.
A72: Step 4: Select the level of validation: | L72: =B72 -> 0 | M72: =D72 -> 0 | O72: =B72 -> 0
A74: Step 5: Go back to step 1, click the best option, then generate SBM Validation Form, Save and Close.
A76: Developed by: ARIEL B. MONTECALBO, Ph.D.
A77: EPS-II Monitoring and Evaluation
A78: Division of Bukidnon
A79: 0917-589-5234

Sheet Sec. Acc1, NAT2, CR1, CSR1 (hidden)
A1: ='Main Menu'!A1:F1 -> Department of Education
A2: ='Main Menu'!A2:F2 -> Region X
A3: ='Main Menu'!A3:F3 -> 
A5: SBM Validation
A6: Name of School: | B6: ='Main Menu'!G6 -> 0 | E6: Division: | F6: ='Main Menu'!G7 -> 0 | K6: =B6 -> 0
A8: Step 1: Determine Performance Improvement (60%)
A9: Thematic Area | B9: Performance Indicators | E9: Rating & Equivalent Points | F9: Computation | G9: Computation | H9: Results
A11: Access (45%) | B11: Enrolment Increase | C11: % of Increase | D11: Enrolment | F11: =grd(C16) ->  | G11: =F11*0.45 ->  | H11: =G11 -> 
B12: ='Main Menu'!B14 -> SY 2009-2010 | D12: ='Main Menu'!D14 -> 990
B13: ='Main Menu'!B15 ->  | D13: ='Main Menu'!D15 ->  | K13: SY 2009-2010
B14: ='Main Menu'!B16 ->  | C14: =((D14-D13)/D13)*100 ->  | D14: ='Main Menu'!D16 ->  | K14: SY 2010-2011
B15: ='Main Menu'!B17 ->  | C15: =((D15-D14)/D14)*100 ->  | D15: ='Main Menu'!D17 ->  | K15: SY 2011-2012
B16: Ave. % of Increase | C16: =AVERAGE(C14:C15) ->  | K16: SY 2012-2013
A17: Efficiency (25%) | B17: Dropout Rate (DR): | C17: % of decrease | D17: Dropout | F17: =IF(C22>=5,"1",IF(C22>=2,"2",IF(C22<2,"3","0"))) ->  | G17: =F17*0.0833 ->  | H17: =SUM(G17:G34) ->  | K17: SY 2013-2014
B18: ='Main Menu'!B20 -> SY 2008-2009 | D18: ='Main Menu'!D20 -> 0.02
B19: ='Main Menu'!B21 ->  | D19: ='Main Menu'!D21 ->  | K19: SY 2014- 2015
B20: ='Main Menu'!B22 ->  | C20: =(D20-D19) ->  | D20: ='Main Menu'!D22 ->  | K20: SY 2015- 2016
B21: ='Main Menu'!B23 ->  | C21: =D21-D20 ->  | D21: ='Main Menu'!D23 ->  | K21: SY 2016-2017
B22: Ave. % of Decrease | C22: =(C20+C21)/2 -> 
B23: Completion Rate (CR): | C23: % of Increase | D23: Completion | F23: =grd(C28) ->  | G23: =F23*0.0833 ->  | K23: SY 2017-2018
B24: ='Main Menu'!B26 -> SY 2008-2009 | D24: ='Main Menu'!D26 -> 65
B25: ='Main Menu'!B27 ->  | D25: ='Main Menu'!D27 ->  | K25: SY 2018- 2019
B26: ='Main Menu'!B28 ->  | C26: =(D26-D25)/D25*100 ->  | D26: ='Main Menu'!D28 ->  | K26: SY 2019- 2020
B27: ='Main Menu'!B29 ->  | C27: =(D27-D26)/D26*100 ->  | D27: ='Main Menu'!D29 -> 
B28: Ave. % of Increase | C28: =(C26+C27)/2 -> 
B29: Cohort Survival Rate (CSR): | C29: % of Increase | D29: Cohort Survival | F29: =grd(C34) -> 0 | G29: =F29*0.0834 -> 0.00
B30: ='Main Menu'!B32 -> SY 2008-2009 | D30: ='Main Menu'!D32 -> 58
B31: ='Main Menu'!B33 ->  | D31: ='Main Menu'!D33 -> 95.00
B32: ='Main Menu'!B34 ->  | C32: =(D32-D31)/D31*100 -> 1.05 | D32: ='Main Menu'!D34 -> 96.00
B33: ='Main Menu'!B35 ->  | C33: =(D33-D32)/D32*100 -> -12.79 | D33: ='Main Menu'!D35 -> 83.72
B34: Ave. % of Increase | C34: =(C32+C33)/2 -> -5.87
A35: Quality (30%) | B35: NAT MPS | C35: % of Increase | D35: NAT MPS | F35: =grdee(D40) ->  | G35: =F35*0.3 ->  | H35: =G35 -> 
B36: ='Main Menu'!B38 -> SY 2008-2009 | D36: ='Main Menu'!D38 -> 56.00
B37: ='Main Menu'!B39 ->  | D37: ='Main Menu'!D39 -> 
B38: ='Main Menu'!B40 ->  | D38: ='Main Menu'!D40 -> 
B39: ='Main Menu'!B41 ->  | D39: ='Main Menu'!D41 -> 
B40: Ave. % of Increase | D40: =AVERAGE(D37:D39) -> 
A41: Sub-Total | H41: =SUM(H11:H40) -> 
A43: Note: Only Schools having a Performance Improvement of " Better" can apply to the Division for SBM Validation.
A44: Step 2: Compute for validated SBM Assessment Scores (40%)
A45: SBM Principles | C45: Weight | E45: Cummulative Scores of Validators per Principles | G45: Results
A46: Leadership | C46: 30% | E46: ='Document Analysis, Obs. Discuss'!AP71 -> 0.60 | G46: =E46*0.3 -> 0.18
A47: Curriculum & Learning | C47: 30% | E47: ='Document Analysis, Obs. Discuss'!AP72 -> 0.00 | G47: =E47*0.3 -> 0
A48: Accountability | C48: 25% | E48: ='Document Analysis, Obs. Discuss'!AP73 -> 0.00 | G48: =E48*0.25 -> 0
A49: Resource Management | C49: 15% | E49: ='Document Analysis, Obs. Discuss'!AP74 -> 0.00 | G49: =E49*0.15 -> 0
A50: Sub-total | G50: =SUM(G46:G49) -> 0.18
A51: Interpretation: | C51: Good
C52: Better
C53: Best
A54: Legend: | B54: Numerical Rating Scale | E54: Description
B55: 0.50-1.49 | E55: Good
B56: 1.50-2.49 | E56: Better
B57: 2.50-3.00 | E57: Best
A65: Step 3: Compute for Final Rating
A66: Areas | C66: Weight | E66: Computation | G66: Results
A67: A. Performance Improvement | C67: 60% | E67: =H41 ->  | G67: =C67*E67 ->  | N67: Performance Improvement | O67: =E67 -> 
A68: B. SBM Assessment Score (DOD) | C68: 40% | E68: =G50 -> 0.18 | G68: =C68*E68 -> 0.07 | N68: SBM Assessment Score | O68: =E68 -> 0.18
A69: Total | G69: =SUM(G67:G68) ->  | N69: SBM Final Rating | O69: =G69 -> 
A71: Interpretation:
B72: Developing ( Level I)
B73: Maturing (Level II)
B74: Advanced (Level III)
A76: Description of SBM Level of Practice:
B77: Numerical Rating Scale | E77: Description
B78: 0.50-1.49 | E78: Developing
B79: 1.50-2.49 | E79: Maturing
B80: 2.50-3.00 | E80: Advanced
A82: Results: | B82: =IF(G69<1.5,"Developing level- Structures and mechanisms with acceptable level and extent of community participation and impact on learning outcomes.",IF(G69<2.5,"Maturing level - Introducing and sustaining continuous improvement process that integrates wider community participation and improve sinificantly performance and learning outcomes.",IF(G69<3,"Advanced level - Ensuring the production of intended outputs/outcomes and meeting all standards of a system fully integrated in the local community and is self-renewing and self-sustaining.",""))) -> 
A100: Validators:
B101: ='Input Menu'!B51 -> 0 | E101: ='Input Menu'!B52 -> 0
B102: Member | E102: Member
B105: ='Input Menu'!B53 -> 0 | E105: ='Input Menu'!B54 -> 0
B106: Member | E106: Member
B110: ='Input Menu'!B50 -> 0
B111: Chairman

Sheet Sec. acc2, NAT1, CR1, CSR1 (hidden)
A1: ='Main Menu'!A1:F1 -> Department of Education
A2: ='Main Menu'!A2:F2 -> Region X
A3: ='Main Menu'!A3:F3 -> 
A5: SBM Validation
A6: Name of School: | B6: ='Main Menu'!G6 -> 0 | E6: Division: | F6: ='Main Menu'!G7 -> 0 | K6: =B6 -> 0
A8: Step 1: Determine Performance Improvement (60%)
A9: Thematic Area | B9: Performance Indicators | E9: Rating & Equivalent Points | F9: Computation | G9: Computation | H9: Results
A11: Access (45%) | B11: Enrolment Increase | C11: % of Increase | D11: Participation | F11: =IF(D16>=95,"3",IF(D16>=90,"2",IF(D16>=85,"1","0"))) -> 0 | G11: =F11*0.45 -> 0 | H11: =G11 -> 0
B12: ='Main Menu'!B14 -> SY 2009-2010 | D12: ='Main Menu'!D14 -> 990
B13: ='Main Menu'!B15 ->  | D13: ='Main Menu'!F15 ->  | K13: SY 2009-2010
B14: ='Main Menu'!B16 ->  | D14: ='Main Menu'!F16 ->  | K14: SY 2010-2011
B15: ='Main Menu'!B17 ->  | D15: ='Main Menu'!F17 ->  | K15: SY 2011-2012
B16: Ave. % of Increase | D16: ='Main Menu'!F18 -> 0 | K16: SY 2012-2013
A17: Efficiency (25%) | B17: Dropout Rate (DR): | C17: % of decrease | D17: Dropout | F17: =IF(C22>=5,"1",IF(C22>=2,"2",IF(C22<2,"3","0"))) ->  | G17: =F17*0.0833 ->  | H17: =SUM(G17:G34) ->  | K17: SY 2013-2014
B18: ='Main Menu'!B20 -> SY 2008-2009 | D18: ='Main Menu'!D20 -> 0.02
B19: ='Main Menu'!B21 ->  | D19: ='Main Menu'!D21 ->  | K19: SY 2014- 2015
B20: ='Main Menu'!B22 ->  | C20: =D20-D19 ->  | D20: ='Main Menu'!D22 ->  | K20: SY 2015- 2016
B21: ='Main Menu'!B23 ->  | C21: =D21-D20 ->  | D21: ='Main Menu'!D23 ->  | K21: SY 2016-2017
B22: Ave. % of Decrease | C22: =(C20+C21)/2 -> 
B23: Completion Rate (CR): | C23: % of Increase | D23: Completion | F23: =grd(C28) ->  | G23: =F23*0.0833 ->  | K23: SY 2017-2018
B24: ='Main Menu'!B26 -> SY 2008-2009 | D24: ='Main Menu'!D26 -> 65
B25: ='Main Menu'!B27 ->  | D25: ='Main Menu'!D27 ->  | K25: SY 2018- 2019
B26: ='Main Menu'!B28 ->  | C26: =(D26-D25)/D25*100 ->  | D26: ='Main Menu'!D28 ->  | K26: SY 2019- 2020
B27: ='Main Menu'!B29 ->  | C27: =(D27-D26)/D26*100 ->  | D27: ='Main Menu'!D29 -> 
B28: Ave. % of Increase | C28: =(C26+C27)/2 -> 
B29: Cohort Survival Rate (CSR): | C29: % of Increase | D29: Cohort Survival | F29: =grd(C34) -> 0 | G29: =F29*0.0834 -> 0.00
B30: ='Main Menu'!B32 -> SY 2008-2009 | D30: ='Main Menu'!D32 -> 58
B31: ='Main Menu'!B33 ->  | D31: ='Main Menu'!D33 -> 95.00
B32: ='Main Menu'!B34 ->  | C32: =(D32-D31)/D31*100 -> 1.05 | D32: ='Main Menu'!D34 -> 96.00
B33: ='Main Menu'!B35 ->  | C33: =(D33-D32)/D32*100 -> -12.79 | D33: ='Main Menu'!D35 -> 83.72
B34: Ave. % of Increase | C34: =(C32+C33)/2 -> -5.87
A35: Quality (30%) | B35: NAT MPS | C35: % of Increase | D35: NAT MPS | F35: =IF(C40>=10,"3",IF(C40>=8,"2",IF(C40>=7,"1","0"))) ->  | G35: =F35*0.3 ->  | H35: =G35 -> 
B36: ='Main Menu'!B38 -> SY 2008-2009 | D36: ='Main Menu'!D38 -> 56.00
B37: ='Main Menu'!B39 ->  | D37: ='Main Menu'!D39 -> 
B38: ='Main Menu'!B40 ->  | C38: =(D38-D37)/D37*100 ->  | D38: ='Main Menu'!D40 -> 
B39: ='Main Menu'!B41 ->  | C39: =(D39-D38)/D38*100 ->  | D39: ='Main Menu'!D41 -> 
B40: Ave. % of Increase | C40: =AVERAGE(C38:C39) -> 
A41: Sub-Total | H41: =SUM(H11:H40) -> 
A43: Note: Only Schools having a Performance Improvement of " Better" can apply to the Division for SBM Validation.
A44: Step 2: Compute for validated SBM Assessment Scores (40%)
A45: SBM Principles | C45: Weight | E45: Cummulative Scores of Validators per Principles | G45: Results
A46: Leadership | C46: 30% | E46: ='Document Analysis, Obs. Discuss'!AP71 -> 0.60 | G46: =E46*0.3 -> 0.18
A47: Curriculum & Learning | C47: 30% | E47: ='Document Analysis, Obs. Discuss'!AP72 -> 0.00 | G47: =E47*0.3 -> 0
A48: Accountability | C48: 25% | E48: ='Document Analysis, Obs. Discuss'!AP73 -> 0.00 | G48: =E48*0.25 -> 0
A49: Resource Management | C49: 15% | E49: ='Document Analysis, Obs. Discuss'!AP74 -> 0.00 | G49: =E49*0.15 -> 0
A50: Sub-total | G50: =SUM(G46:G49) -> 0.18
A51: Interpretation: | C51: Good
C52: Better
C53: Best
A54: Legend: | B54: Numerical Rating Scale | E54: Description
B55: 0.50-1.49 | E55: Good
B56: 1.50-2.49 | E56: Better
B57: 2.50-3.00 | E57: Best
A65: Step 3: Compute for Final Rating
A66: Areas | C66: Weight | E66: Computation | G66: Results
A67: A. Performance Improvement | C67: 60% | E67: =H41 ->  | G67: =C67*E67 ->  | N67: Performance Improvement | O67: =E67 -> 
A68: B. SBM Assessment Score (DOD) | C68: 40% | E68: =G50 -> 0.18 | G68: =C68*E68 -> 0.07 | N68: SBM Assessment Score | O68: =E68 -> 0.18
A69: Total | G69: =SUM(G67:G68) ->  | N69: SBM Final Rating | O69: =G69 -> 
A71: Interpretation:
B72: Developing ( Level I)
B73: Maturing (Level II)
B74: Advanced (Level III)
A76: Description of SBM Level of Practice:
B77: Numerical Rating Scale | E77: Description
B78: 0.50-1.49 | E78: Developing
B79: 1.50-2.49 | E79: Maturing
B80: 2.50-3.00 | E80: Advanced
A82: Results: | B82: =IF(G69<1.5,"Developing level- Structures and mechanisms with acceptable level and extent of community participation and impact on learning outcomes.",IF(G69<2.5,"Maturing level - Introducing and sustaining continuous improvement process that integrates wider community participation and improve sinificantly performance and learning outcomes.",IF(G69<3,"Advanced level - Ensuring the production of intended outputs/outcomes and meeting all standards of a system fully integrated in the local community and is self-renewing and self-sustaining.",""))) -> 
A100: Validators:
B101: ='Input Menu'!B51 -> 0 | E101: ='Input Menu'!B52 -> 0
B102: Member | E102: Member
B105: ='Input Menu'!B53 -> 0 | E105: ='Input Menu'!B54 -> 0
B106: Member | E106: Member
B110: ='Input Menu'!B50 -> 0
B111: Chairman

Sheet Sec. acc opt2 and NAT opt2 (hidden)
A1: ='Main Menu'!A1:F1 -> Department of Education
A2: ='Main Menu'!A2:F2 -> Region X
A3: ='Main Menu'!A3:F3 -> 
A5: SBM Validation
A6: Name of School: | B6: ='Main Menu'!G6 -> 0 | E6: Division: | F6: ='Main Menu'!G7 -> 0 | K6: =B6 -> 0
A8: Step 1: Determine Performance Improvement (60%)
A9: Thematic Area | B9: Performance Indicators | E9: Rating & Equivalent Points | F9: Computation | G9: Computation | H9: Results
A11: Access (45%) | B11: Enrolment Increase | C11: % of Increase | D11: Participation | F11: =IF(D16>=95,"3",IF(D16>=90,"2",IF(D16>=85,"1","0"))) -> 0 | G11: =F11*0.45 -> 0 | H11: =G11 -> 0
B12: ='Main Menu'!B14 -> SY 2009-2010 | D12: ='Main Menu'!D14 -> 990
B13: ='Main Menu'!B15 ->  | D13: ='Main Menu'!F15 ->  | K13: SY 2009-2010
B14: ='Main Menu'!B16 ->  | D14: ='Main Menu'!F16 ->  | K14: SY 2010-2011
B15: ='Main Menu'!B17 ->  | D15: ='Main Menu'!F17 ->  | K15: SY 2011-2012
B16: Ave. % of Increase | D16: ='Main Menu'!F18 -> 0 | K16: SY 2012-2013
A17: Efficiency (25%) | B17: Dropout Rate (DR): | C17: % of decrease | D17: Dropout | F17: =IF(C22>=5,"1",IF(C22>=2,"2",IF(C22<2,"3","0"))) ->  | G17: =F17*0.0833 ->  | H17: =SUM(G17:G34) ->  | K17: SY 2013-2014
B18: ='Main Menu'!B20 -> SY 2008-2009 | D18: ='Main Menu'!D20 -> 0.02
B19: ='Main Menu'!B21 ->  | D19: ='Main Menu'!D21 ->  | K19: SY 2014- 2015
B20: ='Main Menu'!B22 ->  | C20: =D20-D19 ->  | D20: ='Main Menu'!D22 ->  | K20: SY 2015- 2016
B21: ='Main Menu'!B23 ->  | C21: =D21-D20 ->  | D21: ='Main Menu'!D23 ->  | K21: SY 2016-2017
B22: Ave. % of Decrease | C22: =(C20+C21)/2 -> 
B23: Completion Rate (CR): | C23: % of Increase | D23: Completion | F23: =grd(C28) ->  | G23: =F23*0.0833 ->  | K23: SY 2017-2018
B24: ='Main Menu'!B26 -> SY 2008-2009 | D24: ='Main Menu'!D26 -> 65
B25: ='Main Menu'!B27 ->  | D25: ='Main Menu'!D27 ->  | K25: SY 2018- 2019
B26: ='Main Menu'!B28 ->  | C26: =(D26-D25)/D25*100 ->  | D26: ='Main Menu'!D28 ->  | K26: SY 2019- 2020
B27: ='Main Menu'!B29 ->  | C27: =(D27-D26)/D26*100 ->  | D27: ='Main Menu'!D29 -> 
B28: Ave. % of Increase | C28: =(C26+C27)/2 -> 
B29: Cohort Survival Rate (CSR): | C29: % of Increase | D29: Cohort Survival | F29: =grd(C34) -> 0 | G29: =F29*0.0834 -> 0.00
B30: ='Main Menu'!B32 -> SY 2008-2009 | D30: ='Main Menu'!D32 -> 58
B31: ='Main Menu'!B33 ->  | D31: ='Main Menu'!D33 -> 95.00
B32: ='Main Menu'!B34 ->  | C32: =(D32-D31)/D31*100 -> 1.05 | D32: ='Main Menu'!D34 -> 96.00
B33: ='Main Menu'!B35 ->  | C33: =(D33-D32)/D32*100 -> -12.79 | D33: ='Main Menu'!D35 -> 83.72
B34: Ave. % of Increase | C34: =(C32+C33)/2 -> -5.87
A35: Quality (30%) | B35: NAT MPS | C35: % of Increase | D35: NAT MPS | F35: =grdee(D40) ->  | G35: =F35*0.3 ->  | H35: =G35 -> 
B36: ='Main Menu'!B38 -> SY 2008-2009 | D36: ='Main Menu'!D38 -> 56.00
B37: ='Main Menu'!B39 ->  | D37: ='Main Menu'!D39 -> 
B38: ='Main Menu'!B40 ->  | D38: ='Main Menu'!D40 -> 
B39: ='Main Menu'!B41 ->  | D39: ='Main Menu'!D41 -> 
B40: Ave. % of Increase | D40: =AVERAGE(D37:D39) -> 
A41: Sub-Total | H41: =SUM(H11:H40) -> 
A43: Note: Only Schools having a Performance Improvement of " Better" can apply to the Division for SBM Validation.
A44: Step 2: Compute for validated SBM Assessment Scores (40%)
A45: SBM Principles | C45: Weight | E45: Cummulative Scores of Validators per Principles | G45: Results
A46: Leadership | C46: 30% | E46: ='Document Analysis, Obs. Discuss'!AP71 -> 0.60 | G46: =E46*0.3 -> 0.18
A47: Curriculum & Learning | C47: 30% | E47: ='Document Analysis, Obs. Discuss'!AP72 -> 0.00 | G47: =E47*0.3 -> 0
A48: Accountability | C48: 25% | E48: ='Document Analysis, Obs. Discuss'!AP73 -> 0.00 | G48: =E48*0.25 -> 0
A49: Resource Management | C49: 15% | E49: ='Document Analysis, Obs. Discuss'!AP74 -> 0.00 | G49: =E49*0.15 -> 0
A50: Sub-total | G50: =SUM(G46:G49) -> 0.18
A51: Interpretation: | C51: Good
C52: Better
C53: Best
A54: Legend: | B54: Numerical Rating Scale | E54: Description
B55: 0.50-1.49 | E55: Good
B56: 1.50-2.49 | E56: Better
B57: 2.50-3.00 | E57: Best
A65: Step 3: Compute for Final Rating
A66: Areas | C66: Weight | E66: Computation | G66: Results
A67: A. Performance Improvement | C67: 60% | E67: =H41 ->  | G67: =C67*E67 ->  | N67: Performance Improvement | O67: =E67 -> 
A68: B. SBM Assessment Score (DOD) | C68: 40% | E68: =G50 -> 0.18 | G68: =C68*E68 -> 0.07 | N68: SBM Assessment Score | O68: =E68 -> 0.18
A69: Total | G69: =SUM(G67:G68) ->  | N69: SBM Final Rating | O69: =G69 -> 
A71: Interpretation:
B72: Developing ( Level I)
B73: Maturing (Level II)
B74: Advanced (Level III)
A76: Description of SBM Level of Practice:
B77: Numerical Rating Scale | E77: Description
B78: 0.50-1.49 | E78: Developing
B79: 1.50-2.49 | E79: Maturing
B80: 2.50-3.00 | E80: Advanced
A82: Results: | B82: =IF(G69<1.5,"Developing level- Structures and mechanisms with acceptable level and extent of community participation and impact on learning outcomes.",IF(G69<2.5,"Maturing level - Introducing and sustaining continuous improvement process that integrates wider community participation and improve sinificantly performance and learning outcomes.",IF(G69<3,"Advanced level - Ensuring the production of intended outputs/outcomes and meeting all standards of a system fully integrated in the local community and is self-renewing and self-sustaining.",""))) -> 
A100: Validators:
B101: ='Input Menu'!B51 -> 0 | E101: ='Input Menu'!B52 -> 0
B102: Member | E102: Member
B105: ='Input Menu'!B53 -> 0 | E105: ='Input Menu'!B54 -> 0
B106: Member | E106: Member
B110: ='Input Menu'!B50 -> 0
B111: Chairman

Sheet blank
A1: ='Main Menu'!A1:F1 -> Department of Education
A2: Region X
A3: Division of ___________________
A5: SBM Validation Form
A7: District: | E7: School Year: | K7: =B7 -> 0
A8: School: | E8: School I.D.
A9: Step 1: Determine Performance Improvement (60%) | E9: Level:
A10: Thematic Area | B10: Performance Indicators | E10: Rating & Equivalent Points | F10: Score | G10: Computation | H10: Results
A12: Access (45%) | B12: Enrolment / Participation Rate | C12: % of Increase | D12: Enrolment
B13: ='Main Menu'!B14 -> SY 2009-2010 | D13: ='Main Menu'!D14 -> 990
K14: SY 2009-2010
K15: SY 2010-2011
K16: SY 2011-2012
B17: Ave. % of Increase | K17: SY 2012-2013
A18: Efficiency (25%) | B18: Dropout Rate (DR): | C18: % of decrease | D18: Dropout % | K18: SY 2013-2014
B19: ='Main Menu'!B20 -> SY 2008-2009 | D19: ='Main Menu'!D20 -> 0.02
K20: SY 2014- 2015
K21: SY 2015- 2016
K22: SY 2016-2017
B23: Ave. % of decrease
B24: Repetition Rate | C24: % of decrease | D24: Repetition % | K24: SY 2017-2018
B25: ='Main Menu'!B26 -> SY 2008-2009 | D25: ='Main Menu'!D26 -> 65
K26: SY 2018- 2019
K27: SY 2019- 2020
B29: Ave. % of decrease
M32: =IF(D32>=95,"3","0") -> 0
M33: =IF(D33>=95,"3","0") -> 0
M34: =IF(D34>=95,"3","0") -> 0
M35: =(M32+M33+M34)/3 -> 0
A36: Quality (30%) | B36: NAT MPS/ Promotion Rate | C36: % of Increase | D36: NAT MPS
B37: ='Main Menu'!B38 -> SY 2008-2009 | D37: ='Main Menu'!D38 -> 56.00
B41: Ave. % of Increase
A42: Sub-Total
A44: Note: Only Schools having a Performance Improvement of " Better" can apply to the Division for SBM Validation.
A45: Step 2: Compute for validated SBM Assessment Scores (40%)
A46: SBM Principles | C46: Weight | E46: Cummulative Scores of Validators per Principles | G46: Results
A47: Leadership | C47: 30%
A48: Curriculum & Learning | C48: 30%
A49: Accountability | C49: 25%
A50: Resource Management | C50: 15%
A51: Sub-total | C51: 100%
A52: Interpretation: | C52: Good
C53: Better
C54: Best
A55: Legend: | B55: Numerical Rating Scale | E55: Description
B56: 0.50-1.49 | E56: Good
B57: 1.50-2.49 | E57: Better
B58: 2.50-3.00 | E58: Best
A67: Step 3: Compute for Final Rating
A68: Areas | C68: Weight | E68: Computation | G68: Results
A69: A. Performance Improvement | C69: 60%
A70: B. SBM Assessment Score (DOD) | C70: 40%
A71: Total | C71: 100%
A78: Description of SBM Level of Practice:
B79: Numerical Rating Scale | E79: Description | G79: Interpretation
B80: 0.50-1.49 | E80: Developing | G80: Level I
B81: 1.50-2.49 | E81: Maturing | G81: Level II
B82: 2.50-3.00 | E82: Advanced | G82: Level III
A101: Results:
A102: Remarks:
A103: Validators:
B105: Member | E105: Member
B109: Member | E109: Member
B114: Chairman

Sheet 3Elem. ER, CR1, CSR2, NAT1
A1: ='Main Menu'!A1:F1 -> Department of Education
A2: ='Main Menu'!A2:F2 -> Region X
A3: ='Main Menu'!A3:F3 -> 
A5: SBM Validation Form
A6: =NOW() -> 2018-07-01T09:10:11.220
A7: District: | B7: ='Input Menu'!B8:C8 ->  | E7: School Year: | F7: ='Main Menu'!B8 ->  | K7: =B7 -> 
A8: School: | B8: ='Input Menu'!B7:C7 ->  | E8: School I.D. | F8: ='Input Menu'!K6 -> 0
A9: Step 1: Determine Performance Improvement (60%) | E9: Level: | F9: ='Main Menu'!O72 -> 0
A10: Thematic Area | B10: Performance Indicators | E10: Rating & Equivalent Points | F10: Score | G10: Computation | H10: Results
A12: Access (45%) | B12: Enrolment Increase | C12: % of Increase | D12: Enrolment | F12: =IF(C17>=10,"3",IF(C17>=7,"2",IF(C17>5,"1","0"))) ->  | G12: =F12*0.45 ->  | H12: =G12 -> 
B13: ='Main Menu'!B14 -> SY 2009-2010 | D13: ='Main Menu'!D14 -> 990
B14: ='Main Menu'!B15 ->  | D14: ='Main Menu'!D15 ->  | K14: SY 2009-2010
B15: ='Main Menu'!B16 ->  | C15: =((D15-D14)/D14)*100 ->  | D15: ='Main Menu'!D16 ->  | K15: SY 2010-2011
B16: ='Main Menu'!B17 ->  | C16: =((D16-D15)/D15)*100 ->  | D16: ='Main Menu'!D17 ->  | K16: SY 2011-2012
B17: Ave. % of Increase | C17: =AVERAGE(C15:C16) ->  | K17: SY 2012-2013
A18: Efficiency (25%) | B18: Dropout Rate (DR): | C18: % of decrease | D18: Dropout % | F18: =IF(C23<2,"3",IF(C23<5,"2",IF(C23<=5,"1","0"))) ->  | G18: =F18*0.125 ->  | H18: =SUM(G18:G35) ->  | K18: SY 2013-2014
B19: ='Main Menu'!B20 -> SY 2008-2009 | D19: ='Main Menu'!D20 -> 0.02
B20: ='Main Menu'!B21 ->  | D20: ='Main Menu'!D21 ->  | K20: SY 2014- 2015
B21: ='Main Menu'!B22 ->  | C21: =(D21-D20) ->  | D21: ='Main Menu'!D22 ->  | K21: SY 2015- 2016
B22: ='Main Menu'!B23 ->  | C22: =(D22-D21) ->  | D22: ='Main Menu'!D23 ->  | K22: SY 2016-2017
B23: Ave. % of decrease | C23: =AVERAGE(C21:C22) -> 
B24: Repetition Rate | C24: % of decrease | D24: Repetition % | F24: =IF(C29<2,"3",IF(C29<5,"2",IF(C29<=5,"1","0"))) ->  | G24: =F24*0.125 ->  | K24: SY 2017-2018
B25: ='Main Menu'!B26 -> SY 2008-2009 | D25: ='Main Menu'!D26 -> 65
B26: ='Main Menu'!B27 ->  | D26: ='Main Menu'!D27 ->  | K26: SY 2018- 2019
B27: ='Main Menu'!B28 ->  | C27: =(D27-D26) ->  | D27: ='Main Menu'!D28 ->  | K27: SY 2019- 2020
B28: ='Main Menu'!B29 ->  | C28: =(D28-D27) ->  | D28: ='Main Menu'!D29 -> 
B29: Ave. % of decrease | C29: =AVERAGE(C27:C28) -> 
M32: =IF(D32>=95,"3","0") -> 0
M33: =IF(D33>=95,"3","0") -> 0
M34: =IF(D34>=95,"3","0") -> 0
M35: =(M32+M33+M34)/3 -> 0
A36: Quality (30%) | B36: NAT MPS | C36: % of Increase | D36: NAT MPS | F36: =IF(C41>=7,"3",IF(C41>=5,"2",IF(C41>=2,"1","0"))) ->  | G36: =F36*0.3 ->  | H36: =G36 -> 
B37: ='Main Menu'!B38 -> SY 2008-2009 | D37: ='Main Menu'!D38 -> 56.00
B38: ='Main Menu'!B39 ->  | D38: ='Main Menu'!D39 -> 
B39: ='Main Menu'!B40 ->  | C39: =((D39-D38)) ->  | D39: ='Main Menu'!D40 -> 
B40: ='Main Menu'!B41 ->  | C40: =((D40-D39)) ->  | D40: ='Main Menu'!D41 -> 
B41: Ave. % of Increase | C41: =AVERAGE(C39:C40) -> 
A42: Sub-Total | H42: =SUM(H12:H41) -> 
A44: Note: Only Schools having a Performance Improvement of " Better" can apply to the Division for SBM Validation.
A45: Step 2: Compute for validated SBM Assessment Scores (40%)
A46: SBM Principles | C46: Weight | E46: Cummulative Scores of Validators per Principles | G46: Results
A47: Leadership | C47: 30% | E47: ='Document Analysis, Obs. Discuss'!AP71 -> 0.60 | G47: =E47*0.3 -> 0.18
A48: Curriculum & Learning | C48: 30% | E48: ='Document Analysis, Obs. Discuss'!AP72 -> 0.00 | G48: =E48*0.3 -> 0
A49: Accountability | C49: 25% | E49: ='Document Analysis, Obs. Discuss'!AP73 -> 0.00 | G49: =E49*0.25 -> 0
A50: Resource Management | C50: 15% | E50: ='Document Analysis, Obs. Discuss'!AP74 -> 0.00 | G50: =E50*0.15 -> 0
A51: Sub-total | C51: 100% | G51: =SUM(G47:G50) -> 0.18
A52: Interpretation: | C52: Good
C53: Better
C54: Best
A55: Legend: | B55: Numerical Rating Scale | E55: Description
B56: 0.50-1.49 | E56: Good
B57: 1.50-2.49 | E57: Better
B58: 2.50-3.00 | E58: Best
A66: Step 3: Compute for Final Rating
A67: Areas | C67: Weight | E67: Computation | G67: Results
A68: A. Performance Improvement | C68: 60% | E68: =H42 ->  | G68: =C68*E68 ->  | N68: Performance Improvement | O68: =E68 -> 
A69: B. SBM Assessment Score (DOD) | C69: 40% | E69: =G51 -> 0.18 | G69: =C69*E69 -> 0.07 | N69: SBM Assessment Score | O69: =E69 -> 0.18
A70: Total | C70: 100% | G70: =SUM(G68:G69) ->  | N70: SBM Final Rating | O70: =G70 -> 
A77: Description of SBM Level of Practice:
B78: Numerical Rating Scale | E78: Description | G78: Interpretation
B79: 0.50-1.49 | E79: Developing | G79: Level I
B80: 1.50-2.49 | E80: Maturing | G80: Level II
B81: 2.50-3.00 | E81: Advanced | G81: Level III
A100: Results: | B100: =IF(G70<1.5,"Developing level- Structures and mechanisms with acceptable level and extent of community participation and impact on learning outcomes.",IF(G70<2.5,"Maturing level - Introducing and sustaining continuous improvement process that integrates wider community participation and improve sinificantly performance and learning outcomes.",IF(G70<3,"Advanced level - Ensuring the production of intended outputs/outcomes and meeting all standards of a system fully integrated in the local community and is self-renewing and self-sustaining.",""))) -> 
A101: Remarks: | B101: ='Main Menu'!B56:H56 -> 0
A102: Validators:
B103: ='Input Menu'!B51 -> 0 | E103: ='Input Menu'!B52 -> 0
B104: Member | E104: Member
B107: ='Input Menu'!B53 -> 0 | E107: ='Input Menu'!B54 -> 0
B108: Member | E108: Member
B112: ='Input Menu'!B50 -> 0
B113: Chairman
A114: ='Main Menu'!A50 -> Option1: ER, DR, RR, NAT1

Sheet 2Elem. ER, CR1, CSR1, NAT2
A1: ='Main Menu'!A1:F1 -> Department of Education
A2: ='Main Menu'!A2:F2 -> Region X
A3: ='Main Menu'!A3:F3 -> 
A5: SBM Validation Form
A6: =NOW() -> 2018-07-01T09:10:11.220
A7: District: | B7: ='Input Menu'!B8:C8 ->  | E7: School Year: | F7: ='Main Menu'!B8 ->  | K7: =B7 -> 
A8: School: | B8: ='Input Menu'!B7:C7 ->  | E8: School I.D. | F8: ='Input Menu'!K6 -> 0
A9: Step 1: Determine Performance Improvement (60%) | E9: Level: | F9: ='Main Menu'!O72 -> 0
A10: Thematic Area | B10: Performance Indicators | E10: Rating & Equivalent Points | F10: Score | G10: Computation | H10: Results
A12: Access (45%) | B12: Enrolment Increase | C12: % of Increase | D12: Enrolment | F12: =IF(C17>=10,"3",IF(C17>=7,"2",IF(C17>5,"1","0"))) ->  | G12: =F12*0.45 ->  | H12: =G12 -> 
B13: ='Main Menu'!B14 -> SY 2009-2010 | D13: ='Main Menu'!D14 -> 990
B14: ='Main Menu'!B15 ->  | D14: ='Main Menu'!D15 ->  | K14: SY 2009-2010
B15: ='Main Menu'!B16 ->  | C15: =((D15-D14)/D14)*100 ->  | D15: ='Main Menu'!D16 ->  | K15: SY 2010-2011
B16: ='Main Menu'!B17 ->  | C16: =((D16-D15)/D15)*100 ->  | D16: ='Main Menu'!D17 ->  | K16: SY 2011-2012
B17: Ave. % of Increase | C17: =AVERAGE(C15:C16) ->  | K17: SY 2012-2013
A18: Efficiency (25%) | B18: Dropout Rate (DR): | C18: % of decrease | D18: Dropout % | F18: =IF(C23<2,"3",IF(C23<5,"2",IF(C23<=5,"1","0"))) ->  | G18: =F18*0.125 ->  | H18: =SUM(G18:G35) ->  | K18: SY 2013-2014
B19: ='Main Menu'!B20 -> SY 2008-2009 | D19: ='Main Menu'!D20 -> 0.02
B20: ='Main Menu'!B21 ->  | D20: ='Main Menu'!D21 ->  | K20: SY 2014- 2015
B21: ='Main Menu'!B22 ->  | C21: =(D21-D20) ->  | D21: ='Main Menu'!D22 ->  | K21: SY 2015- 2016
B22: ='Main Menu'!B23 ->  | C22: =(D22-D21) ->  | D22: ='Main Menu'!D23 ->  | K22: SY 2016-2017
B23: Ave. % of decrease | C23: =AVERAGE(C21:C22) -> 
B24: Repetition Rate | C24: % of decrease | D24: Repetition % | F24: =IF(C29<2,"3",IF(C29<5,"2",IF(C29<=5,"1","0"))) ->  | G24: =F24*0.125 ->  | K24: SY 2017-2018
B25: ='Main Menu'!B26 -> SY 2008-2009 | D25: ='Main Menu'!D26 -> 65
B26: ='Main Menu'!B27 ->  | D26: ='Main Menu'!D27 ->  | K26: SY 2018- 2019
B27: ='Main Menu'!B28 ->  | C27: =(D27-D26) ->  | D27: ='Main Menu'!D28 ->  | K27: SY 2019- 2020
B28: ='Main Menu'!B29 ->  | C28: =(D28-D27) ->  | D28: ='Main Menu'!D29 -> 
B29: Ave. % of decrease | C29: =AVERAGE(C27:C28) -> 
A36: Quality (30%) | B36: NAT MPS | C36: % of Increase | D36: NAT MPS | F36: =N41 -> 3.00 | G36: =F36*0.3 -> 0.9 | H36: =G36 -> 0.9
B37: ='Main Menu'!B38 -> SY 2008-2009 | D37: ='Main Menu'!D38 -> 56.00
B38: ='Main Menu'!B39 ->  | D38: ='Main Menu'!D39 ->  | N38: =IF(D38>=75,"3","0") -> 3
B39: ='Main Menu'!B40 ->  | D39: ='Main Menu'!D40 ->  | N39: =IF(D39>=75,"3","0") -> 3
B40: ='Main Menu'!B41 ->  | D40: ='Main Menu'!D41 ->  | N40: =IF(D40>=75,"3","0") -> 3
B41: Ave. % of Increase | N41: =(N38+N39+N40)/3 -> 3.00
A42: Sub-Total | H42: =SUM(H12:H41) -> 
A44: Note: Only Schools having a Performance Improvement of " Better" can apply to the Division for SBM Validation.
A45: Step 2: Compute for validated SBM Assessment Scores (40%)
A46: SBM Principles | C46: Weight | E46: Cummulative Scores of Validators per Principles | G46: Results
A47: Leadership | C47: 30% | E47: ='Document Analysis, Obs. Discuss'!AP71 -> 0.60 | G47: =E47*0.3 -> 0.18
A48: Curriculum & Learning | C48: 30% | E48: ='Document Analysis, Obs. Discuss'!AP72 -> 0.00 | G48: =E48*0.3 -> 0
A49: Accountability | C49: 25% | E49: ='Document Analysis, Obs. Discuss'!AP73 -> 0.00 | G49: =E49*0.25 -> 0
A50: Resource Management | C50: 15% | E50: ='Document Analysis, Obs. Discuss'!AP74 -> 0.00 | G50: =E50*0.15 -> 0
A51: Sub-total | C51: 100% | G51: =SUM(G47:G50) -> 0.18
A52: Interpretation: | C52: Good
C53: Better
C54: Best
A55: Legend: | B55: Numerical Rating Scale | E55: Description
B56: 0.50-1.49 | E56: Good
B57: 1.50-2.49 | E57: Better
B58: 2.50-3.00 | E58: Best
A66: Step 3: Compute for Final Rating
A67: Areas | C67: Weight | E67: Computation | G67: Results
A68: A. Performance Improvement | C68: 60% | E68: =H42 ->  | G68: =C68*E68 ->  | N68: Performance Improvement | O68: =E68 -> 
A69: B. SBM Assessment Score (DOD) | C69: 40% | E69: =G51 -> 0.18 | G69: =C69*E69 -> 0.07 | N69: SBM Assessment Score | O69: =E69 -> 0.18
A70: Total | C70: 100% | G70: =SUM(G68:G69) ->  | N70: SBM Final Rating | O70: =G70 -> 
A77: Description of SBM Level of Practice:
B78: Numerical Rating Scale | E78: Description | G78: Interpretation
B79: 0.50-1.49 | E79: Developing | G79: Level I
B80: 1.50-2.49 | E80: Maturing | G80: Level II
B81: 2.50-3.00 | E81: Advanced | G81: Level III
A100: Results: | B100: =IF(G70<1.5,"Developing level- Structures and mechanisms with acceptable level and extent of community participation and impact on learning outcomes.",IF(G70<2.5,"Maturing level - Introducing and sustaining continuous improvement process that integrates wider community participation and improve sinificantly performance and learning outcomes.",IF(G70<3,"Advanced level - Ensuring the production of intended outputs/outcomes and meeting all standards of a system fully integrated in the local community and is self-renewing and self-sustaining.",""))) -> 
A101: Remarks: | B101: ='Main Menu'!B56:H56 -> 0.00
A102: Validators:
B103: ='Input Menu'!B51 -> 0 | E103: ='Input Menu'!B52 -> 0
B104: Member | E104: Member
B107: ='Input Menu'!B53 -> 0 | E107: ='Input Menu'!B54 -> 0
B108: Member | E108: Member
B112: ='Input Menu'!B50 -> 0
B113: Chairman
A114: ='Main Menu'!A51 -> Option2: ER, DR, RR, NAT2

Sheet 1Elem. ER, CR1, CSR1, NAT1
A1: ='Main Menu'!A1:F1 -> Department of Education
A2: ='Main Menu'!A2:F2 -> Region X
A3: ='Main Menu'!A3:F3 -> 
A5: SBM Validation Form
A6: =NOW() -> 2018-07-01T09:10:11.220
A7: District: | B7: ='Input Menu'!B8:C8 ->  | E7: School Year: | F7: ='Main Menu'!B8 ->  | K7: =B7 -> 
A8: School: | B8: ='Input Menu'!B7:C7 ->  | E8: School I.D. | F8: ='Input Menu'!K6 -> 0
A9: Step 1: Determine Performance Improvement (60%) | E9: Level: | F9: ='Main Menu'!O72 -> 0
A10: Thematic Area | B10: Performance Indicators | E10: Rating & Equivalent Points | F10: Score | G10: Computation | H10: Results
A12: Access (45%) | B12: Enrolment Increase | C12: % of Increase | D12: Enrolment (Raw Data) | F12: =IF(C17>=10,"3",IF(C17>=7,"2",IF(C17>5,"1","0"))) ->  | G12: =F12*0.45 ->  | H12: =G12 -> 
B13: ='Main Menu'!B14 -> SY 2009-2010 | D13: ='Main Menu'!D14 -> 990
B14: ='Main Menu'!B15 ->  | D14: ='Main Menu'!D15 ->  | K14: SY 2009-2010
B15: ='Main Menu'!B16 ->  | C15: =((D15-D14)/D14)*100 ->  | D15: ='Main Menu'!D16 ->  | K15: SY 2010-2011
B16: ='Main Menu'!B17 ->  | C16: =((D16-D15)/D15)*100 ->  | D16: ='Main Menu'!D17 ->  | K16: SY 2011-2012
B17: Ave. % of Increase | C17: =AVERAGE(C15:C16) ->  | K17: SY 2012-2013
A18: Efficiency (25%) | B18: Dropout Rate (DR): | C18: % of decrease | D18: Dropout % | F18: =IF(C23<2,"3",IF(C23<5,"2",IF(C23<=5,"1","0"))) ->  | G18: =F18*0.125 ->  | H18: =SUM(G18:G29) ->  | K18: SY 2013-2014
B19: ='Main Menu'!B20 -> SY 2008-2009 | D19: ='Main Menu'!D20 -> 0.02
B20: ='Main Menu'!B21 ->  | D20: ='Main Menu'!D21 ->  | K20: SY 2014- 2015
B21: ='Main Menu'!B22 ->  | C21: =D21-D20 ->  | D21: ='Main Menu'!D22 ->  | K21: SY 2015- 2016
B22: ='Main Menu'!B23 ->  | C22: =D22-D21 ->  | D22: ='Main Menu'!D23 ->  | K22: SY 2016-2017
B23: Ave. % of Decrease | C23: =AVERAGE(C21:C22) -> 
B24: Repetition Rate | C24: % of decrease | D24: Repetition % | F24: =IF(C29<2,"3",IF(C29<5,"2",IF(C29<=5,"1","0"))) ->  | G24: =F24*0.125 ->  | K24: SY 2017-2018
B25: ='Main Menu'!B26 -> SY 2008-2009 | D25: ='Main Menu'!D26 -> 65
B26: ='Main Menu'!B27 ->  | D26: ='Main Menu'!D27 ->  | K26: SY 2018- 2019
B27: ='Main Menu'!B28 ->  | C27: =(D27-D26) ->  | D27: ='Main Menu'!D28 ->  | K27: SY 2019- 2020
B28: ='Main Menu'!B29 ->  | C28: =(D28-D27) ->  | D28: ='Main Menu'!D29 -> 
B29: Ave. % of decrease | C29: =AVERAGE(C27:C28) -> 
B30: Cohort Survival Rate (CSR): | C30: % of Increase | D30: Cohort Survival
B31: ='Main Menu'!B32 -> SY 2008-2009 | D31: ='Main Menu'!D32 -> 58
A36: Quality (30%) | B36: Promotion Rate | C36: % of Increase | D36: Promotion % | F36: =N41 -> 3.00 | G36: =F36*0.3 -> 0.9 | H36: =G36 -> 0.9
B37: ='Main Menu'!B38 -> SY 2008-2009 | D37: ='Main Menu'!D38 -> 56.00
B38: ='Main Menu'!B39 ->  | D38: ='Main Menu'!F39 ->  | N38: =IF(D38>=95,"3",IF(D38>=90,"2",IF(D38>=85,"1","0"))) -> 3
B39: ='Main Menu'!B40 ->  | D39: ='Main Menu'!F40 ->  | N39: =IF(D39>=95,"3",IF(D39>=90,"2",IF(D39>=85,"1","0"))) -> 3
B40: ='Main Menu'!B41 ->  | D40: ='Main Menu'!F41 ->  | N40: =IF(D40>=95,"3",IF(D40>=90,"2",IF(D40>=85,"1","0"))) -> 3
B41: Ave. % of Increase | N41: =(N38+N39+N40)/3 -> 3.00
A42: Sub-Total | H42: =SUM(H12:H41) -> 
A44: Note: Only Schools having a Performance Improvement of " Better" can apply to the Division for SBM Validation.
A45: Step 2: Compute for validated SBM Assessment Scores (40%)
A46: SBM Principles | C46: Weight | E46: Cummulative Scores of Validators per Principles | G46: Results
A47: Leadership | C47: 30% | E47: ='Document Analysis, Obs. Discuss'!AP71 -> 0.60 | G47: =E47*0.3 -> 0.18
A48: Curriculum & Learning | C48: 30% | E48: ='Document Analysis, Obs. Discuss'!AP72 -> 0.00 | G48: =E48*0.3 -> 0
A49: Accountability | C49: 25% | E49: ='Document Analysis, Obs. Discuss'!AP73 -> 0.00 | G49: =E49*0.25 -> 0
A50: Resource Management | C50: 15% | E50: ='Document Analysis, Obs. Discuss'!AP74 -> 0.00 | G50: =E50*0.15 -> 0
A51: Sub-total | C51: 100% | G51: =SUM(G47:G50) -> 0.18
A52: Interpretation: | C52: Good
C53: Better
C54: Best
A55: Legend: | B55: Numerical Rating Scale | E55: Description
B56: 0.50-1.49 | E56: Good
B57: 1.50-2.49 | E57: Better
B58: 2.50-3.00 | E58: Best
A67: Step 3: Compute for Final Rating
A68: Areas | C68: Weight | E68: Computation | G68: Results
A69: A. Performance Improvement | C69: 60% | E69: =H42 ->  | G69: =C69*E69 ->  | N69: Performance Improvement | O69: =E69 -> 
A70: B. SBM Assessment Score (DOD) | C70: 40% | E70: =G51 -> 0.18 | G70: =C70*E70 -> 0.07 | N70: SBM Assessment Score | O70: =E70 -> 0.18
A71: Total | C71: 100% | G71: =SUM(G69:G70) ->  | N71: SBM Final Rating | O71: =G71 -> 
A78: Description of SBM Level of Practice:
B79: Numerical Rating Scale | E79: Description | G79: Interpretation
B80: 0.50-1.49 | E80: Developing | G80: Level I
B81: 1.50-2.49 | E81: Maturing | G81: Level II
B82: 2.50-3.00 | E82: Advanced | G82: Level III
A99: Results: | B99: =IF(G71<1.5,"Developing level- Structures and mechanisms with acceptable level and extent of community participation and impact on learning outcomes.",IF(G71<2.5,"Maturing level - Introducing and sustaining continuous improvement process that integrates wider community participation and improve sinificantly performance and learning outcomes.",IF(G71<3,"Advanced level - Ensuring the production of intended outputs/outcomes and meeting all standards of a system fully integrated in the local community and is self-renewing and self-sustaining.",""))) -> 
A100: Remarks: | B100: ='Main Menu'!B56:H56 -> 0.00
A102: Validators:
B103: ='Input Menu'!B51 -> 0 | E103: ='Input Menu'!B52 -> 0
B104: Member | E104: Member
B107: ='Input Menu'!B53 -> 0 | E107: ='Input Menu'!B54 -> 0
B108: Member | E108: Member
B112: ='Input Menu'!B50 -> 0
B113: Chairman
A115: ='Main Menu'!A52 -> Option3: ER, DR, RR, PrR

Sheet 9Elem. PR, CR1, CSR1, NAT1
A1: ='Main Menu'!A1:F1 -> Department of Education
A2: ='Main Menu'!A2:F2 -> Region X
A3: ='Main Menu'!A3:F3 -> 
A5: SBM Validation Form
A6: =NOW() -> 2018-07-01T09:10:11.220
A7: District: | B7: ='Input Menu'!B8:C8 ->  | E7: School Year: | F7: ='Main Menu'!B8 ->  | K7: =B7 -> 
A8: School: | B8: ='Input Menu'!B7:C7 ->  | E8: School I.D. | F8: ='Input Menu'!K6 -> 0
A9: Step 1: Determine Performance Improvement (60%) | E9: Level: | F9: ='Main Menu'!O72 -> 0
A10: Thematic Area | B10: Performance Indicators | E10: Rating & Equivalent Points | F10: Score | G10: Computation | H10: Results
A12: Access (45%) | B12: Enrolment Increase | C12: % of Increase | D12: Community Mapping | F12: =N17 -> 3.00 | G12: =F12*0.45 -> 1.35 | H12: =G12 -> 1.35
B13: ='Main Menu'!B14 -> SY 2009-2010 | D13: ='Main Menu'!D14 -> 990
B14: ='Main Menu'!B15 ->  | D14: ='Main Menu'!F15 ->  | K14: SY 2009-2010 | N14: =IF(D14>=95,"3",IF(D14>=90,"2",IF(D14>=85,"1","0"))) -> 3
B15: ='Main Menu'!B16 ->  | D15: ='Main Menu'!F16 ->  | K15: SY 2010-2011 | N15: =IF(D15>=95,"3",IF(D15>=90,"2",IF(D15>=85,"1","0"))) -> 3
B16: ='Main Menu'!B17 ->  | D16: ='Main Menu'!F17 ->  | K16: SY 2011-2012 | N16: =IF(D16>=95,"3",IF(D16>=90,"2",IF(D16>=85,"1","0"))) -> 3
K17: SY 2012-2013 | N17: =(N14+N16+N15)/3 -> 3.00
A18: Efficiency (25%) | B18: Dropout Rate (DR): | C18: % of decrease | D18: Dropout % | F18: =IF(C23<2,"3",IF(C23<5,"2",IF(C23<=5,"1","0"))) ->  | G18: =F18*0.125 ->  | H18: =SUM(G18:G35) ->  | K18: SY 2013-2014
B19: ='Main Menu'!B20 -> SY 2008-2009 | D19: ='Main Menu'!D20 -> 0.02
B20: ='Main Menu'!B21 ->  | D20: ='Main Menu'!D21 ->  | K20: SY 2014- 2015
B21: ='Main Menu'!B22 ->  | C21: =D21-D20 ->  | D21: ='Main Menu'!D22 ->  | K21: SY 2015- 2016
B22: ='Main Menu'!B23 ->  | C22: =D22-D21 ->  | D22: ='Main Menu'!D23 ->  | K22: SY 2016-2017
B23: Ave. % of Decrease | C23: =AVERAGE(C21:C22) -> 
B24: Repetition Rate | C24: % of decrease | D24: Repetition % | F24: =IF(C29<2,"3",IF(C29<5,"2",IF(C29<=5,"1","0"))) ->  | G24: =F24*0.125 ->  | K24: SY 2017-2018
B25: ='Main Menu'!B26 -> SY 2008-2009 | D25: ='Main Menu'!D26 -> 65
B26: ='Main Menu'!B27 ->  | D26: ='Main Menu'!D27 ->  | K26: SY 2018- 2019
B27: ='Main Menu'!B28 ->  | C27: =(D27-D26) ->  | D27: ='Main Menu'!D28 ->  | K27: SY 2019- 2020
B28: ='Main Menu'!B29 ->  | C28: =(D28-D27) ->  | D28: ='Main Menu'!D29 -> 
B29: Ave. % of decrease | C29: =AVERAGE(C27:C28) -> 
A36: Quality (30%) | B36: NAT MPS | C36: % of Increase | D36: NAT MPS | F36: =IF(C41>=7,"3",IF(C41>=5,"2",IF(C41>=2,"1","0"))) ->  | G36: =F36*0.3 ->  | H36: =G36 -> 
B37: ='Main Menu'!B38 -> SY 2008-2009 | D37: ='Main Menu'!D38 -> 56.00
B38: ='Main Menu'!B39 ->  | D38: ='Main Menu'!D39 -> 
B39: ='Main Menu'!B40 ->  | C39: =(D39-D38) ->  | D39: ='Main Menu'!D40 -> 
B40: ='Main Menu'!B41 ->  | C40: =(D40-D39) ->  | D40: ='Main Menu'!D41 -> 
B41: Ave. % of Increase | C41: =AVERAGE(C39:C40) -> 
A42: Sub-Total | H42: =SUM(H12:H41) -> 
A44: Note: Only Schools having a Performance Improvement of " Better" can apply to the Division for SBM Validation.
A45: Step 2: Compute for validated SBM Assessment Scores (40%)
A46: SBM Principles | C46: Weight | E46: Cummulative Scores of Validators per Principles | G46: Results
A47: Leadership | C47: 30% | E47: ='Document Analysis, Obs. Discuss'!AP71 -> 0.60 | G47: =E47*0.3 -> 0.18
A48: Curriculum & Learning | C48: 30% | E48: ='Document Analysis, Obs. Discuss'!AP72 -> 0.00 | G48: =E48*0.3 -> 0
A49: Accountability | C49: 25% | E49: ='Document Analysis, Obs. Discuss'!AP73 -> 0.00 | G49: =E49*0.25 -> 0
A50: Resource Management | C50: 15% | E50: ='Document Analysis, Obs. Discuss'!AP74 -> 0.00 | G50: =E50*0.15 -> 0
A51: Sub-total | C51: 100% | G51: =SUM(G47:G50) -> 0.18
A52: Interpretation: | C52: Good
C53: Better
C54: Best
A55: Legend: | B55: Numerical Rating Scale | E55: Description
B56: 0.50-1.49 | E56: Good
B57: 1.50-2.49 | E57: Better
B58: 2.50-3.00 | E58: Best
A66: Step 3: Compute for Final Rating
A67: Areas | C67: Weight | E67: Computation | G67: Results
A68: A. Performance Improvement | C68: 60% | E68: =H42 ->  | G68: =C68*E68 ->  | N68: Performance Improvement | O68: =E68 -> 
A69: B. SBM Assessment Score (DOD) | C69: 40% | E69: =G51 -> 0.18 | G69: =C69*E69 -> 0.07 | N69: SBM Assessment Score | O69: =E69 -> 0.18
A70: Total | C70: 100% | G70: =SUM(G68:G69) ->  | N70: SBM Final Rating | O70: =G70 -> 
A77: Description of SBM Level of Practice:
B78: Numerical Rating Scale | E78: Description | G78: Interpretation
B79: 0.50-1.49 | E79: Developing | G79: Level I
B80: 1.50-2.49 | E80: Maturing | G80: Level II
B81: 2.50-3.00 | E81: Advanced | G81: Level III
A98: Results: | B98: =IF(G70<1.5,"Developing level- Structures and mechanisms with acceptable level and extent of community participation and impact on learning outcomes.",IF(G70<2.5,"Maturing level - Introducing and sustaining continuous improvement process that integrates wider community participation and improve sinificantly performance and learning outcomes.",IF(G70<3,"Advanced level - Ensuring the production of intended outputs/outcomes and meeting all standards of a system fully integrated in the local community and is self-renewing and self-sustaining.",""))) -> 
A99: Remarks: | B99: ='Main Menu'!B56:H56 -> 0.00
A101: Validators:
B102: ='Input Menu'!B51 -> 0 | E102: ='Input Menu'!B52 -> 0
B103: Member | E103: Member
B106: ='Input Menu'!B53 -> 0 | E106: ='Input Menu'!B54 -> 0
B107: Member | E107: Member
B111: ='Input Menu'!B50 -> 0
B112: Chairman
A113: ='Main Menu'!A53 -> Option4: CM, DR, RR, NAT1

Sheet 10Elem. PR, CR1, CSR1, NAT2
A1: ='Main Menu'!A1:F1 -> Department of Education
A2: ='Main Menu'!A2:F2 -> Region X
A3: ='Main Menu'!A3:F3 -> 
A5: SBM Validation Form
A6: =NOW() -> 2018-07-01T09:10:11.220
A7: District: | B7: ='Input Menu'!B8:C8 ->  | E7: School Year: | F7: ='Main Menu'!B8 ->  | K7: =B7 -> 
A8: School: | B8: ='Input Menu'!B7:C7 ->  | E8: School I.D. | F8: ='Input Menu'!K6 -> 0
A9: Step 1: Determine Performance Improvement (60%) | E9: Level: | F9: ='Main Menu'!O72 -> 0
A10: Thematic Area | B10: Performance Indicators | E10: Rating & Equivalent Points | F10: Score | G10: Computation | H10: Results
A12: Access (45%) | B12: Enrolment Increase | C12: % of Increase | D12: Community Mapping | F12: =N17 -> 3.00 | G12: =F12*0.45 -> 1.35 | H12: =G12 -> 1.35
B13: ='Main Menu'!B14 -> SY 2009-2010 | D13: ='Main Menu'!D14 -> 990
B14: ='Main Menu'!B15 ->  | D14: ='Main Menu'!F15 ->  | K14: SY 2009-2010 | N14: =IF(D14>=95,"3",IF(D14>=90,"2",IF(D14>85,"1","0"))) -> 3
B15: ='Main Menu'!B16 ->  | D15: ='Main Menu'!F16 ->  | K15: SY 2010-2011 | N15: =IF(D15>=95,"3",IF(D15>=90,"2",IF(D15>85,"1","0"))) -> 3
B16: ='Main Menu'!B17 ->  | D16: ='Main Menu'!F17 ->  | K16: SY 2011-2012 | N16: =IF(D16>=95,"3",IF(D16>=90,"2",IF(D16>85,"1","0"))) -> 3
K17: SY 2012-2013 | N17: =(N14+N15+N16)/3 -> 3
A18: Efficiency (25%) | B18: Dropout Rate (DR): | C18: % of decrease | D18: Dropout | F18: =IF(C23<2,"3",IF(C23<5,"2",IF(C23<=5,"1","0"))) ->  | G18: =F18*0.125 ->  | H18: =SUM(G18:G35) ->  | K18: SY 2013-2014
B19: ='Main Menu'!B20 -> SY 2008-2009 | D19: ='Main Menu'!D20 -> 0.02
B20: ='Main Menu'!B21 ->  | D20: ='Main Menu'!D21 ->  | K20: SY 2014- 2015
B21: ='Main Menu'!B22 ->  | C21: =D21-D20 ->  | D21: ='Main Menu'!D22 ->  | K21: SY 2015- 2016
B22: ='Main Menu'!B23 ->  | C22: =D22-D21 ->  | D22: ='Main Menu'!D23 ->  | K22: SY 2016-2017
B23: Ave. % of Decrease | C23: =AVERAGE(C21:C22) -> 
B24: Repetition Rate | C24: % of decrease | D24: Repetition % | F24: =IF(C29<2,"3",IF(C29<5,"2",IF(C29<=5,"1","0"))) ->  | G24: =F24*0.125 ->  | K24: SY 2017-2018
B25: ='Main Menu'!B26 -> SY 2008-2009 | D25: ='Main Menu'!D26 -> 65
B26: ='Main Menu'!B27 ->  | D26: ='Main Menu'!D27 ->  | K26: SY 2018- 2019
B27: ='Main Menu'!B28 ->  | C27: =(D27-D26) ->  | D27: ='Main Menu'!D28 ->  | K27: SY 2019- 2020
B28: ='Main Menu'!B29 ->  | C28: =(D28-D27) ->  | D28: ='Main Menu'!D29 -> 
B29: Ave. % of decrease | C29: =AVERAGE(C27:C28) -> 
A36: Quality (30%) | B36: NAT MPS | C36: % of Increase | D36: NAT MPS | F36: =P41 -> 3.00 | G36: =F36*0.3 -> 0.9 | H36: =G36 -> 0.9
B37: ='Main Menu'!B38 -> SY 2008-2009 | D37: ='Main Menu'!D38 -> 56.00
B38: ='Main Menu'!B39 ->  | D38: ='Main Menu'!D39 ->  | P38: =IF(D38>75,"3","0") -> 3
B39: ='Main Menu'!B40 ->  | D39: ='Main Menu'!D40 ->  | P39: =IF(D39>75,"3","0") -> 3
B40: ='Main Menu'!B41 ->  | D40: ='Main Menu'!D41 ->  | P40: =IF(D40>75,"3","0") -> 3
B41: Ave. % of Increase | P41: =(P38+P39+P40)/3 -> 3.00
A42: Sub-Total | H42: =SUM(H12:H41) -> 
A44: Note: Only Schools having a Performance Improvement of " Better" can apply to the Division for SBM Validation.
A45: Step 2: Compute for validated SBM Assessment Scores (40%)
A46: SBM Principles | C46: Weight | E46: Cummulative Scores of Validators per Principles | G46: Results
A47: Leadership | C47: 30% | E47: ='Document Analysis, Obs. Discuss'!AP71 -> 0.60 | G47: =E47*0.3 -> 0.18
A48: Curriculum & Learning | C48: 30% | E48: ='Document Analysis, Obs. Discuss'!AP72 -> 0.00 | G48: =E48*0.3 -> 0
A49: Accountability | C49: 25% | E49: ='Document Analysis, Obs. Discuss'!AP73 -> 0.00 | G49: =E49*0.25 -> 0
A50: Resource Management | C50: 15% | E50: ='Document Analysis, Obs. Discuss'!AP74 -> 0.00 | G50: =E50*0.15 -> 0
A51: Sub-total | C51: 100% | G51: =SUM(G47:G50) -> 0.18
A52: Interpretation: | C52: Good
C53: Better
C54: Best
A55: Legend: | B55: Numerical Rating Scale | E55: Description
B56: 0.50-1.49 | E56: Good
B57: 1.50-2.49 | E57: Better
B58: 2.50-3.00 | E58: Best
A66: Step 3: Compute for Final Rating
A67: Areas | C67: Weight | E67: Computation | G67: Results
A68: A. Performance Improvement | C68: 60% | E68: =H42 ->  | G68: =C68*E68 ->  | N68: Performance Improvement | O68: =E68 -> 
A69: B. SBM Assessment Score (DOD) | C69: 40% | E69: =G51 -> 0.18 | G69: =C69*E69 -> 0.07 | N69: SBM Assessment Score | O69: =E69 -> 0.18
A70: Total | C70: 100% | G70: =SUM(G68:G69) ->  | N70: SBM Final Rating | O70: =G70 -> 
A77: Description of SBM Level of Practice:
B78: Numerical Rating Scale | E78: Description | G78: Interpretation
B79: 0.50-1.49 | E79: Developing | G79: Level I
B80: 1.50-2.49 | E80: Maturing | G80: Level II
B81: 2.50-3.00 | E81: Advanced | G81: Level III
A99: Results: | B99: =IF(G70<1.5,"Developing level- Structures and mechanisms with acceptable level and extent of community participation and impact on learning outcomes.",IF(G70<2.5,"Maturing level - Introducing and sustaining continuous improvement process that integrates wider community participation and improve sinificantly performance and learning outcomes.",IF(G70<3,"Advanced level - Ensuring the production of intended outputs/outcomes and meeting all standards of a system fully integrated in the local community and is self-renewing and self-sustaining.",""))) -> 
A100: Remarks: | B100: ='Main Menu'!B56:H56 -> 0.00
A101: Validators:
B102: ='Input Menu'!B51 -> 0 | E102: ='Input Menu'!B52 -> 0
B103: Member | E103: Member
B106: ='Input Menu'!B53 -> 0 | E106: ='Input Menu'!B54 -> 0
B107: Member | E107: Member
B111: ='Input Menu'!B50 -> 0
B112: Chairman
A113: ='Main Menu'!A54 -> Option5: CM, DR, RR, NAT2

Sheet 4Elem. ER, CR1, CSR2, NAT2 (hidden)
A1: ='Main Menu'!A1:F1 -> Department of Education
A2: ='Main Menu'!A2:F2 -> Region X
A3: ='Main Menu'!A3:F3 -> 
A5: SBM Validation
A6: Name of School: | B6: ='Main Menu'!G6 -> 0 | E6: School Year: | F6: ='Main Menu'!B8 ->  | K6: =B6 -> 0
A8: Step 1: Determine Performance Improvement (60%)
A9: Thematic Area | B9: Performance Indicators | E9: Rating & Equivalent Points | F9: Computation | G9: Computation | H9: Results
A11: Access (45%) | B11: Enrolment Increase | C11: % of Increase | D11: Enrolment | F11: =grd(C16) ->  | G11: =F11*0.45 ->  | H11: =G11 -> 
B12: ='Main Menu'!B14 -> SY 2009-2010 | D12: ='Main Menu'!D14 -> 990
B13: ='Main Menu'!B15 ->  | D13: ='Main Menu'!D15 ->  | K13: SY 2009-2010
B14: ='Main Menu'!B16 ->  | C14: =((D14-D13)/D13)*100 ->  | D14: ='Main Menu'!D16 ->  | K14: SY 2010-2011
B15: ='Main Menu'!B17 ->  | C15: =((D15-D14)/D14)*100 ->  | D15: ='Main Menu'!D17 ->  | K15: SY 2011-2012
B16: Ave. % of Increase | C16: =AVERAGE(C14:C15) ->  | K16: SY 2012-2013
A17: Efficiency (25%) | B17: Dropout Rate (DR): | C17: % of decrease | D17: Dropout | F17: =IF(C22>=5,"1",IF(C22>=2,"2",IF(C22<2,"3","0"))) ->  | G17: =F17*0.0833 ->  | H17: =SUM(G17:G34) ->  | K17: SY 2013-2014
B18: ='Main Menu'!B20 -> SY 2008-2009 | D18: ='Main Menu'!D20 -> 0.02
B19: ='Main Menu'!B21 ->  | D19: ='Main Menu'!D21 ->  | K19: SY 2014- 2015
B20: ='Main Menu'!B22 ->  | C20: =((D20-D19)) ->  | D20: ='Main Menu'!D22 ->  | K20: SY 2015- 2016
B21: ='Main Menu'!B23 ->  | C21: =D21-D20 ->  | D21: ='Main Menu'!D23 ->  | K21: SY 2016-2017
B22: Ave. % of Decrease | C22: =(C20+C21)/2 -> 
B23: Completion Rate (CR): | C23: % of Increase | D23: Completion | F23: =grd(C28) ->  | G23: =F23*0.0833 ->  | K23: SY 2017-2018
B24: ='Main Menu'!B26 -> SY 2008-2009 | D24: ='Main Menu'!D26 -> 65
B25: ='Main Menu'!B27 ->  | D25: ='Main Menu'!D27 ->  | K25: SY 2018- 2019
B26: ='Main Menu'!B28 ->  | C26: =((D26-D25)/D25)*100 ->  | D26: ='Main Menu'!D28 ->  | K26: SY 2019- 2020
B27: ='Main Menu'!B29 ->  | C27: =((D27-D26)/D26)*100 ->  | D27: ='Main Menu'!D29 -> 
B28: Ave. % of Increase | C28: =(C26+C27)/2 -> 
B29: Cohort Survival Rate (CSR): | C29: % of Increase | D29: Cohort Survival | F29: =M34 -> 2 | G29: =F29*0.0834 -> 0.17
B30: ='Main Menu'!B32 -> SY 2008-2009 | D30: ='Main Menu'!D32 -> 58
B31: ='Main Menu'!B33 ->  | D31: ='Main Menu'!D33 -> 95.00 | M31: =IF(D31>=95,"3","0") -> 3
B32: ='Main Menu'!B34 ->  | D32: ='Main Menu'!D34 -> 96.00 | M32: =IF(D32>=95,"3","0") -> 3
B33: ='Main Menu'!B35 ->  | D33: ='Main Menu'!D35 -> 83.72 | M33: =IF(D33>=95,"3","0") -> 0
B34: Ave. % of Increase | M34: =(M31+M32+M33)/3 -> 2
A35: Quality (30%) | B35: NAT MPS | C35: % of Increase | D35: NAT MPS | F35: =Q40 -> 3 | G35: =F35*0.3 -> 0.9 | H35: =G35 -> 0.9
B36: ='Main Menu'!B38 -> SY 2008-2009 | D36: ='Main Menu'!D38 -> 56.00
B37: ='Main Menu'!B39 ->  | D37: ='Main Menu'!D39 ->  | Q37: =IF(D37>=75,"3","0") -> 3
B38: ='Main Menu'!B40 ->  | D38: ='Main Menu'!D40 ->  | Q38: =IF(D38>=75,"3","0") -> 3
B39: ='Main Menu'!B41 ->  | D39: ='Main Menu'!D41 ->  | Q39: =IF(D39>=75,"3","0") -> 3
B40: Ave. % of Increase | Q40: =(Q37+Q38+Q39)/3 -> 3
A41: Sub-Total | H41: =SUM(H11:H40) -> 
A43: Note: Only Schools having a Performance Improvement of " Better" can apply to the Division for SBM Validation.
A44: Step 2: Compute for validated SBM Assessment Scores (40%)
A45: SBM Principles | C45: Weight | E45: Cummulative Scores of Validators per Principles | G45: Results
A46: Leadership | C46: 30% | E46: ='Document Analysis, Obs. Discuss'!AP71 -> 0.60 | G46: =E46*0.3 -> 0.18
A47: Curriculum & Learning | C47: 30% | E47: ='Document Analysis, Obs. Discuss'!AP72 -> 0.00 | G47: =E47*0.3 -> 0
A48: Accountability | C48: 25% | E48: ='Document Analysis, Obs. Discuss'!AP73 -> 0.00 | G48: =E48*0.25 -> 0
A49: Resource Management | C49: 15% | E49: ='Document Analysis, Obs. Discuss'!AP74 -> 0.00 | G49: =E49*0.15 -> 0
A50: Sub-total | G50: =SUM(G46:G49) -> 0.18
A51: Interpretation: | C51: Good
C52: Better
C53: Best
A54: Legend: | B54: Numerical Rating Scale | E54: Description
B55: 0.50-1.49 | E55: Good
B56: 1.50-2.49 | E56: Better
B57: 2.50-3.00 | E57: Best
A65: Step 3: Compute for Final Rating
A66: Areas | C66: Weight | E66: Computation | G66: Results
A67: A. Performance Improvement | C67: 60% | E67: =H41 ->  | G67: =C67*E67 ->  | N67: Performance Improvement | O67: =E67 -> 
A68: B. SBM Assessment Score (DOD) | C68: 40% | E68: =G50 -> 0.18 | G68: =C68*E68 -> 0.07 | N68: SBM Assessment Score | O68: =E68 -> 0.18
A69: Total | G69: =SUM(G67:G68) ->  | N69: SBM Final Rating | O69: =G69 -> 
A71: Interpretation:
B72: Developing ( Level I)
B73: Maturing (Level II)
B74: Advanced (Level III)
A76: Description of SBM Level of Practice:
B77: Numerical Rating Scale | E77: Description
B78: 0.50-1.49 | E78: Developing
B79: 1.50-2.49 | E79: Maturing
B80: 2.50-3.00 | E80: Advanced
A82: Results: | B82: =IF(G69<1.5,"Developing level- Structures and mechanisms with acceptable level and extent of community participation and impact on learning outcomes.",IF(G69<2.5,"Maturing level - Introducing and sustaining continuous improvement process that integrates wider community participation and improve sinificantly performance and learning outcomes.",IF(G69<3,"Advanced level - Ensuring the production of intended outputs/outcomes and meeting all standards of a system fully integrated in the local community and is self-renewing and self-sustaining.",""))) -> 
A100: Validators:
B101: ='Input Menu'!B51 -> 0 | E101: ='Input Menu'!B52 -> 0
B102: Member | E102: Member
B105: ='Input Menu'!B53 -> 0 | E105: ='Input Menu'!B54 -> 0
B106: Member | E106: Member
B110: ='Input Menu'!B50 -> 0
B111: Chairman
A112: ='Main Menu'!#REF! -> 

Sheet 5Elem. ER, CR2, CSR1, NAT1 (hidden)
A1: ='Main Menu'!A1:F1 -> Department of Education
A2: ='Main Menu'!A2:F2 -> Region X
A3: ='Main Menu'!A3:F3 -> 
A5: SBM Validation
A6: Name of School: | B6: ='Main Menu'!G6 -> 0 | E6: School Year: | F6: ='Main Menu'!B8 ->  | K6: =B6 -> 0
A8: Step 1: Determine Performance Improvement (60%)
A9: Thematic Area | B9: Performance Indicators | E9: Rating & Equivalent Points | F9: Computation | G9: Computation | H9: Results
A11: Access (45%) | B11: Enrolment Increase | C11: % of Increase | D11: Enrolment | F11: =grd(C16) ->  | G11: =F11*0.45 ->  | H11: =G11 -> 
B12: ='Main Menu'!B14 -> SY 2009-2010 | D12: ='Main Menu'!D14 -> 990
B13: ='Main Menu'!B15 ->  | D13: ='Main Menu'!D15 ->  | K13: SY 2009-2010
B14: ='Main Menu'!B16 ->  | C14: =((D14-D13)/D13)*100 ->  | D14: ='Main Menu'!D16 ->  | K14: SY 2010-2011
B15: ='Main Menu'!B17 ->  | C15: =((D15-D14)/D14)*100 ->  | D15: ='Main Menu'!D17 ->  | K15: SY 2011-2012
B16: Ave. % of Increase | C16: =AVERAGE(C14:C15) ->  | K16: SY 2012-2013
A17: Efficiency (25%) | B17: Dropout Rate (DR): | C17: % of decrease | D17: Dropout | F17: =IF(C22>=5,"1",IF(C22>=2,"2",IF(C22<2,"3","0"))) ->  | G17: =F17*0.0833 ->  | H17: =SUM(G17:G34) ->  | K17: SY 2013-2014
B18: ='Main Menu'!B20 -> SY 2008-2009 | D18: ='Main Menu'!D20 -> 0.02
B19: ='Main Menu'!B21 ->  | D19: ='Main Menu'!D21 ->  | K19: SY 2014- 2015
B20: ='Main Menu'!B22 ->  | C20: =((D20-D19)) ->  | D20: ='Main Menu'!D22 ->  | K20: SY 2015- 2016
B21: ='Main Menu'!B23 ->  | C21: =D21-D20 ->  | D21: ='Main Menu'!D23 ->  | K21: SY 2016-2017
B22: Ave. % of Decrease | C22: =(C20+C21)/2 -> 
B23: Completion Rate (CR): | C23: % of Increase | D23: Completion | F23: =N28 -> 3 | G23: =F23*0.0833 -> 0.25 | K23: SY 2017-2018
B24: ='Main Menu'!B26 -> SY 2008-2009 | D24: ='Main Menu'!D26 -> 65
B25: ='Main Menu'!B27 ->  | D25: ='Main Menu'!D27 ->  | K25: SY 2018- 2019 | N25: =IF(D25>=95,"3","0") -> 3
B26: ='Main Menu'!B28 ->  | D26: ='Main Menu'!D28 ->  | K26: SY 2019- 2020 | N26: =IF(D26>=95,"3","0") -> 3
B27: ='Main Menu'!B29 ->  | D27: ='Main Menu'!D29 ->  | N27: =IF(D27>=95,"3","0") -> 3
B28: Ave. % of Increase | N28: =(N25+N26+N27)/3 -> 3
B29: Cohort Survival Rate (CSR): | C29: % of Increase | D29: Cohort Survival | F29: =IF(C34>=5,"1",IF(C34>=7,"2",IF(C34>=10,"3","0"))) -> 0 | G29: =F29*0.0834 -> 0.00
B30: ='Main Menu'!B32 -> SY 2008-2009 | D30: ='Main Menu'!D32 -> 58
B31: ='Main Menu'!B33 ->  | D31: ='Main Menu'!D33 -> 95.00
B32: ='Main Menu'!B34 ->  | C32: =(D32-D31)/D31*100 -> 1.05 | D32: ='Main Menu'!D34 -> 96.00
B33: ='Main Menu'!B35 ->  | C33: =(D33-D32)/D32*100 -> -12.79 | D33: ='Main Menu'!D35 -> 83.72
B34: Ave. % of Increase | C34: =(C32+C33)/2 -> -5.87
A35: Quality (30%) | B35: NAT MPS | C35: % of Increase | D35: NAT MPS | F35: =IF(C40>=7,"3",IF(C40>=5,"2",IF(C40>=2,"1","0"))) ->  | G35: =F35*0.3 ->  | H35: =G35 -> 
B36: ='Main Menu'!B38 -> SY 2008-2009 | D36: ='Main Menu'!D38 -> 56.00
B37: ='Main Menu'!B39 ->  | D37: ='Main Menu'!D39 -> 
B38: ='Main Menu'!B40 ->  | C38: =((D38-D37)/D37)*100 ->  | D38: ='Main Menu'!D40 -> 
B39: ='Main Menu'!B41 ->  | C39: =((D39-D38)/D38)*100 ->  | D39: ='Main Menu'!D41 -> 
B40: Ave. % of Increase | C40: =AVERAGE(C38:C39) -> 
A41: Sub-Total | H41: =SUM(H11:H40) -> 
A43: Note: Only Schools having a Performance Improvement of " Better" can apply to the Division for SBM Validation.
A44: Step 2: Compute for validated SBM Assessment Scores (40%)
A45: SBM Principles | C45: Weight | E45: Cummulative Scores of Validators per Principles | G45: Results
A46: Leadership | C46: 30% | E46: ='Document Analysis, Obs. Discuss'!AP71 -> 0.60 | G46: =E46*0.3 -> 0.18
A47: Curriculum & Learning | C47: 30% | E47: ='Document Analysis, Obs. Discuss'!AP72 -> 0.00 | G47: =E47*0.3 -> 0
A48: Accountability | C48: 25% | E48: ='Document Analysis, Obs. Discuss'!AP73 -> 0.00 | G48: =E48*0.25 -> 0
A49: Resource Management | C49: 15% | E49: ='Document Analysis, Obs. Discuss'!AP74 -> 0.00 | G49: =E49*0.15 -> 0
A50: Sub-total | G50: =SUM(G46:G49) -> 0.18
A51: Interpretation: | C51: Good
C52: Better
C53: Best
A54: Legend: | B54: Numerical Rating Scale | E54: Description
B55: 0.50-1.49 | E55: Good
B56: 1.50-2.49 | E56: Better
B57: 2.50-3.00 | E57: Best
A65: Step 3: Compute for Final Rating
A66: Areas | C66: Weight | E66: Computation | G66: Results
A67: A. Performance Improvement | C67: 60% | E67: =H41 ->  | G67: =C67*E67 ->  | N67: Performance Improvement | O67: =E67 -> 
A68: B. SBM Assessment Score (DOD) | C68: 40% | E68: =G50 -> 0.18 | G68: =C68*E68 -> 0.07 | N68: SBM Assessment Score | O68: =E68 -> 0.18
A69: Total | G69: =SUM(G67:G68) ->  | N69: SBM Final Rating | O69: =G69 -> 
A71: Interpretation:
B72: Developing ( Level I)
B73: Maturing (Level II)
B74: Advanced (Level III)
A76: Description of SBM Level of Practice:
B77: Numerical Rating Scale | E77: Description
B78: 0.50-1.49 | E78: Developing
B79: 1.50-2.49 | E79: Maturing
B80: 2.50-3.00 | E80: Advanced
A82: Results: | B82: =IF(G69<1.5,"Developing level- Structures and mechanisms with acceptable level and extent of community participation and impact on learning outcomes.",IF(G69<2.5,"Maturing level - Introducing and sustaining continuous improvement process that integrates wider community participation and improve sinificantly performance and learning outcomes.",IF(G69<3,"Advanced level - Ensuring the production of intended outputs/outcomes and meeting all standards of a system fully integrated in the local community and is self-renewing and self-sustaining.",""))) -> 
A100: Validators:
B101: ='Input Menu'!B51 -> 0 | E101: ='Input Menu'!B52 -> 0
B102: Member | E102: Member
B105: ='Input Menu'!B53 -> 0 | E105: ='Input Menu'!B54 -> 0
B106: Member | E106: Member
B110: ='Input Menu'!B50 -> 0
B111: Chairman
A112: ='Main Menu'!#REF! -> 

Sheet 6Elem. ER, CR2, CSR1, NAT2 (hidden)
A1: ='Main Menu'!A1:F1 -> Department of Education
A2: ='Main Menu'!A2:F2 -> Region X
A3: ='Main Menu'!A3:F3 -> 
A5: SBM Validation
A6: Name of School: | B6: ='Main Menu'!G6 -> 0 | E6: School Year: | F6: ='Main Menu'!B8 ->  | K6: =B6 -> 0
A8: Step 1: Determine Performance Improvement (60%)
A9: Thematic Area | B9: Performance Indicators | E9: Rating & Equivalent Points | F9: Computation | G9: Computation | H9: Results
A11: Access (45%) | B11: Enrolment Increase | C11: % of Increase | D11: Enrolment | F11: =grd(C16) ->  | G11: =F11*0.45 ->  | H11: =G11 -> 
B12: ='Main Menu'!B14 -> SY 2009-2010 | D12: ='Main Menu'!D14 -> 990
B13: ='Main Menu'!B15 ->  | D13: ='Main Menu'!D15 ->  | K13: SY 2009-2010
B14: ='Main Menu'!B16 ->  | C14: =((D14-D13)/D13)*100 ->  | D14: ='Main Menu'!D16 ->  | K14: SY 2010-2011
B15: ='Main Menu'!B17 ->  | C15: =((D15-D14)/D14)*100 ->  | D15: ='Main Menu'!D17 ->  | K15: SY 2011-2012
B16: Ave. % of Increase | C16: =AVERAGE(C14:C15) ->  | K16: SY 2012-2013
A17: Efficiency (25%) | B17: Dropout Rate (DR): | C17: % of decrease | D17: Dropout | F17: =IF(C22>=5,"1",IF(C22>=2,"2",IF(C22<2,"3","0"))) ->  | G17: =F17*0.0833 ->  | H17: =SUM(G17:G34) ->  | K17: SY 2013-2014
B18: ='Main Menu'!B20 -> SY 2008-2009 | D18: ='Main Menu'!D20 -> 0.02
B19: ='Main Menu'!B21 ->  | D19: ='Main Menu'!D21 ->  | K19: SY 2014- 2015
B20: ='Main Menu'!B22 ->  | C20: =((D20-D19)) ->  | D20: ='Main Menu'!D22 ->  | K20: SY 2015- 2016
B21: ='Main Menu'!B23 ->  | C21: =D21-D20 ->  | D21: ='Main Menu'!D23 ->  | K21: SY 2016-2017
B22: Ave. % of Decrease | C22: =(C20+C21)/2 -> 
B23: Completion Rate (CR): | C23: % of Increase | D23: Completion | F23: =N28 -> 3 | G23: =F23*0.0833 -> 0.25 | K23: SY 2017-2018
B24: ='Main Menu'!B26 -> SY 2008-2009 | D24: ='Main Menu'!D26 -> 65
B25: ='Main Menu'!B27 ->  | D25: ='Main Menu'!D27 ->  | K25: SY 2018- 2019 | N25: =IF(D25>=95,"3","0") -> 3
B26: ='Main Menu'!B28 ->  | D26: ='Main Menu'!D28 ->  | K26: SY 2019- 2020 | N26: =IF(D26>=95,"3","0") -> 3
B27: ='Main Menu'!B29 ->  | D27: ='Main Menu'!D29 ->  | N27: =IF(D27>=95,"3","0") -> 3
B28: Ave. % of Increase | N28: =(N25+N26+N27)/3 -> 3
B29: Cohort Survival Rate (CSR): | C29: % of Increase | D29: Cohort Survival | F29: =IF(C34>=5,"1",IF(C34>=7,"2",IF(C34>=10,"3","0"))) -> 0 | G29: =F29*0.0834 -> 0.00
B30: ='Main Menu'!B32 -> SY 2008-2009 | D30: ='Main Menu'!D32 -> 58
B31: ='Main Menu'!B33 ->  | D31: ='Main Menu'!D33 -> 95.00
B32: ='Main Menu'!B34 ->  | C32: =(D32-D31)/D31*100 -> 1.05 | D32: ='Main Menu'!D34 -> 96.00
B33: ='Main Menu'!B35 ->  | C33: =(D33-D32)/D32*100 -> -12.79 | D33: ='Main Menu'!D35 -> 83.72
B34: Ave. % of Increase | C34: =(C32+C33)/2 -> -5.87
A35: Quality (30%) | B35: NAT MPS | C35: % of Increase | D35: NAT MPS | F35: =P40 -> 3 | G35: =F35*0.3 -> 0.9 | H35: =G35 -> 0.9
B36: ='Main Menu'!B38 -> SY 2008-2009 | D36: ='Main Menu'!D38 -> 56.00
B37: ='Main Menu'!B39 ->  | D37: ='Main Menu'!D39 ->  | P37: =IF(D37>=75,"3","0") -> 3
B38: ='Main Menu'!B40 ->  | D38: ='Main Menu'!D40 ->  | P38: =IF(D38>=75,"3","0") -> 3
B39: ='Main Menu'!B41 ->  | D39: ='Main Menu'!D41 ->  | P39: =IF(D39>=75,"3","0") -> 3
B40: Ave. % of Increase | P40: =(P37+P38+P39)/3 -> 3
A41: Sub-Total | H41: =SUM(H11:H40) -> 
A43: Note: Only Schools having a Performance Improvement of " Better" can apply to the Division for SBM Validation.
A44: Step 2: Compute for validated SBM Assessment Scores (40%)
A45: SBM Principles | C45: Weight | E45: Cummulative Scores of Validators per Principles | G45: Results
A46: Leadership | C46: 30% | E46: ='Document Analysis, Obs. Discuss'!AP71 -> 0.60 | G46: =E46*0.3 -> 0.18
A47: Curriculum & Learning | C47: 30% | E47: ='Document Analysis, Obs. Discuss'!AP72 -> 0.00 | G47: =E47*0.3 -> 0
A48: Accountability | C48: 25% | E48: ='Document Analysis, Obs. Discuss'!AP73 -> 0.00 | G48: =E48*0.25 -> 0
A49: Resource Management | C49: 15% | E49: ='Document Analysis, Obs. Discuss'!AP74 -> 0.00 | G49: =E49*0.15 -> 0
A50: Sub-total | G50: =SUM(G46:G49) -> 0.18
A51: Interpretation: | C51: Good
C52: Better
C53: Best
A54: Legend: | B54: Numerical Rating Scale | E54: Description
B55: 0.50-1.49 | E55: Good
B56: 1.50-2.49 | E56: Better
B57: 2.50-3.00 | E57: Best
A65: Step 3: Compute for Final Rating
A66: Areas | C66: Weight | E66: Computation | G66: Results
A67: A. Performance Improvement | C67: 60% | E67: =H41 ->  | G67: =C67*E67 ->  | N67: Performance Improvement | O67: =E67 -> 
A68: B. SBM Assessment Score (DOD) | C68: 40% | E68: =G50 -> 0.18 | G68: =C68*E68 -> 0.07 | N68: SBM Assessment Score | O68: =E68 -> 0.18
A69: Total | G69: =SUM(G67:G68) ->  | N69: SBM Final Rating | O69: =G69 -> 
A71: Interpretation:
B72: Developing ( Level I)
B73: Maturing (Level II)
B74: Advanced (Level III)
A76: Description of SBM Level of Practice:
B77: Numerical Rating Scale | E77: Description
B78: 0.50-1.49 | E78: Developing
B79: 1.50-2.49 | E79: Maturing
B80: 2.50-3.00 | E80: Advanced
A82: Results: | B82: =IF(G69<1.5,"Developing level- Structures and mechanisms with acceptable level and extent of community participation and impact on learning outcomes.",IF(G69<2.5,"Maturing level - Introducing and sustaining continuous improvement process that integrates wider community participation and improve sinificantly performance and learning outcomes.",IF(G69<3,"Advanced level - Ensuring the production of intended outputs/outcomes and meeting all standards of a system fully integrated in the local community and is self-renewing and self-sustaining.",""))) -> 
A100: Validators:
B101: ='Input Menu'!B51 -> 0 | E101: ='Input Menu'!B52 -> 0
B102: Member | E102: Member
B105: ='Input Menu'!B53 -> 0 | E105: ='Input Menu'!B54 -> 0
B106: Member | E106: Member
B110: ='Input Menu'!B50 -> 0
B111: Chairman
A112: ='Main Menu'!#REF! -> 

Sheet 7Elem. ER, CR2, CSR2, NAT1 (hidden)
A1: ='Main Menu'!A1:F1 -> Department of Education
A2: ='Main Menu'!A2:F2 -> Region X
A3: ='Main Menu'!A3:F3 -> 
A5: SBM Validation
A6: Name of School: | B6: ='Main Menu'!G6 -> 0 | E6: School Year: | F6: ='Main Menu'!B8 ->  | K6: =B6 -> 0
A8: Step 1: Determine Performance Improvement (60%)
A9: Thematic Area | B9: Performance Indicators | E9: Rating & Equivalent Points | F9: Computation | G9: Computation | H9: Results
A11: Access (45%) | B11: Enrolment Increase | C11: % of Increase | D11: Enrolment | F11: =grd(C16) ->  | G11: =F11*0.45 ->  | H11: =G11 -> 
B12: ='Main Menu'!B14 -> SY 2009-2010 | D12: ='Main Menu'!D14 -> 990
B13: ='Main Menu'!B15 ->  | D13: ='Main Menu'!D15 ->  | K13: SY 2009-2010
B14: ='Main Menu'!B16 ->  | C14: =((D14-D13)/D13)*100 ->  | D14: ='Main Menu'!D16 ->  | K14: SY 2010-2011
B15: ='Main Menu'!B17 ->  | C15: =((D15-D14)/D14)*100 ->  | D15: ='Main Menu'!D17 ->  | K15: SY 2011-2012
B16: Ave. % of Increase | C16: =AVERAGE(C14:C15) ->  | K16: SY 2012-2013
A17: Efficiency (25%) | B17: Dropout Rate (DR): | C17: % of decrease | D17: Dropout | F17: =IF(C22>=5,"1",IF(C22>=2,"2",IF(C22<2,"3","0"))) ->  | G17: =F17*0.0833 ->  | H17: =SUM(G17:G34) ->  | K17: SY 2013-2014
B18: ='Main Menu'!B20 -> SY 2008-2009 | D18: ='Main Menu'!D20 -> 0.02
B19: ='Main Menu'!B21 ->  | D19: ='Main Menu'!D21 ->  | K19: SY 2014- 2015
B20: ='Main Menu'!B22 ->  | C20: =((D20-D19)) ->  | D20: ='Main Menu'!D22 ->  | K20: SY 2015- 2016
B21: ='Main Menu'!B23 ->  | C21: =D21-D20 ->  | D21: ='Main Menu'!D23 ->  | K21: SY 2016-2017
B22: Ave. % of Decrease | C22: =(C20+C21)/2 -> 
B23: Completion Rate (CR): | C23: % of Increase | D23: Completion | F23: =N28 -> 3 | G23: =F23*0.0833 -> 0.25 | K23: SY 2017-2018
B24: ='Main Menu'!B26 -> SY 2008-2009 | D24: ='Main Menu'!D26 -> 65
B25: ='Main Menu'!B27 ->  | D25: ='Main Menu'!D27 ->  | K25: SY 2018- 2019 | N25: =IF(D25>=95,"3","0") -> 3
B26: ='Main Menu'!B28 ->  | D26: ='Main Menu'!D28 ->  | K26: SY 2019- 2020 | N26: =IF(D26>=95,"3","0") -> 3
B27: ='Main Menu'!B29 ->  | D27: ='Main Menu'!D29 ->  | N27: =IF(D27>=95,"3","0") -> 3
B28: Ave. % of Increase | N28: =(N25+N26+N27)/3 -> 3
B29: Cohort Survival Rate (CSR): | C29: % of Increase | D29: Cohort Survival | F29: =R34 -> 2 | G29: =F29*0.0834 -> 0.17
B30: ='Main Menu'!B32 -> SY 2008-2009 | D30: ='Main Menu'!D32 -> 58
B31: ='Main Menu'!B33 ->  | D31: ='Main Menu'!D33 -> 95.00 | R31: =IF(D31>=95,"3","0") -> 3
B32: ='Main Menu'!B34 ->  | D32: ='Main Menu'!D34 -> 96.00 | R32: =IF(D32>=95,"3","0") -> 3
B33: ='Main Menu'!B35 ->  | D33: ='Main Menu'!D35 -> 83.72 | R33: =IF(D33>=95,"3","0") -> 0
B34: Ave. % of Increase | R34: =(R31+R32+R33)/3 -> 2
A35: Quality (30%) | B35: NAT MPS | C35: % of Increase | D35: NAT MPS | F35: =IF(C40>=7,"3",IF(C40>=5,"2",IF(C40>2,"1","0"))) ->  | G35: =F35*0.3 ->  | H35: =G35 -> 
B36: ='Main Menu'!B38 -> SY 2008-2009 | D36: ='Main Menu'!D38 -> 56.00
B37: ='Main Menu'!B39 ->  | D37: ='Main Menu'!D39 ->  | P37: =IF(D37>=75,"3","0") -> 3
B38: ='Main Menu'!B40 ->  | C38: =(D38-D37)/D37*100 ->  | D38: ='Main Menu'!D40 ->  | P38: =IF(D38>=75,"3","0") -> 3
B39: ='Main Menu'!B41 ->  | C39: =(D39-D38)/D38*100 ->  | D39: ='Main Menu'!D41 ->  | P39: =IF(D39>=75,"3","0") -> 3
B40: Ave. % of Increase | C40: =(C38+C39)/2 ->  | P40: =(P37+P38+P39)/3 -> 3
A41: Sub-Total | H41: =SUM(H11:H40) -> 
A43: Note: Only Schools having a Performance Improvement of " Better" can apply to the Division for SBM Validation.
A44: Step 2: Compute for validated SBM Assessment Scores (40%)
A45: SBM Principles | C45: Weight | E45: Cummulative Scores of Validators per Principles | G45: Results
A46: Leadership | C46: 30% | E46: ='Document Analysis, Obs. Discuss'!AP71 -> 0.60 | G46: =E46*0.3 -> 0.18
A47: Curriculum & Learning | C47: 30% | E47: ='Document Analysis, Obs. Discuss'!AP72 -> 0.00 | G47: =E47*0.3 -> 0
A48: Accountability | C48: 25% | E48: ='Document Analysis, Obs. Discuss'!AP73 -> 0.00 | G48: =E48*0.25 -> 0
A49: Resource Management | C49: 15% | E49: ='Document Analysis, Obs. Discuss'!AP74 -> 0.00 | G49: =E49*0.15 -> 0
A50: Sub-total | G50: =SUM(G46:G49) -> 0.18
A51: Interpretation: | C51: Good
C52: Better
C53: Best
A54: Legend: | B54: Numerical Rating Scale | E54: Description
B55: 0.50-1.49 | E55: Good
B56: 1.50-2.49 | E56: Better
B57: 2.50-3.00 | E57: Best
A65: Step 3: Compute for Final Rating
A66: Areas | C66: Weight | E66: Computation | G66: Results
A67: A. Performance Improvement | C67: 60% | E67: =H41 ->  | G67: =C67*E67 ->  | N67: Performance Improvement | O67: =E67 -> 
A68: B. SBM Assessment Score (DOD) | C68: 40% | E68: =G50 -> 0.18 | G68: =C68*E68 -> 0.07 | N68: SBM Assessment Score | O68: =E68 -> 0.18
A69: Total | G69: =SUM(G67:G68) ->  | N69: SBM Final Rating | O69: =G69 -> 
A71: Interpretation:
B72: Developing ( Level I)
B73: Maturing (Level II)
B74: Advanced (Level III)
A76: Description of SBM Level of Practice:
B77: Numerical Rating Scale | E77: Description
B78: 0.50-1.49 | E78: Developing
B79: 1.50-2.49 | E79: Maturing
B80: 2.50-3.00 | E80: Advanced
A82: Results: | B82: =IF(G69<1.5,"Developing level- Structures and mechanisms with acceptable level and extent of community participation and impact on learning outcomes.",IF(G69<2.5,"Maturing level - Introducing and sustaining continuous improvement process that integrates wider community participation and improve sinificantly performance and learning outcomes.",IF(G69<3,"Advanced level - Ensuring the production of intended outputs/outcomes and meeting all standards of a system fully integrated in the local community and is self-renewing and self-sustaining.",""))) -> 
A100: Validators:
B101: ='Input Menu'!B51 -> 0 | E101: ='Input Menu'!B52 -> 0
B102: Member | E102: Member
B105: ='Input Menu'!B53 -> 0 | E105: ='Input Menu'!B54 -> 0
B106: Member | E106: Member
B110: ='Input Menu'!B50 -> 0
B111: Chairman
A112: ='Main Menu'!#REF! -> 

Sheet 8Elem. ER, CR2, CSR2, NAT2 (hidden)
A1: ='Main Menu'!A1:F1 -> Department of Education
A2: ='Main Menu'!A2:F2 -> Region X
A3: ='Main Menu'!A3:F3 -> 
A5: SBM Validation
A6: Name of School: | B6: ='Main Menu'!G6 -> 0 | E6: School Year: | F6: ='Main Menu'!B8 ->  | K6: =B6 -> 0
A8: Step 1: Determine Performance Improvement (60%)
A9: Thematic Area | B9: Performance Indicators | E9: Rating & Equivalent Points | F9: Computation | G9: Computation | H9: Results
A11: Access (45%) | B11: Enrolment Increase | C11: % of Increase | D11: Enrolment | F11: =grd(C16) ->  | G11: =F11*0.45 ->  | H11: =G11 -> 
B12: ='Main Menu'!B14 -> SY 2009-2010 | D12: ='Main Menu'!D14 -> 990
B13: ='Main Menu'!B15 ->  | D13: ='Main Menu'!D15 ->  | K13: SY 2009-2010
B14: ='Main Menu'!B16 ->  | C14: =((D14-D13)/D13)*100 ->  | D14: ='Main Menu'!D16 ->  | K14: SY 2010-2011
B15: ='Main Menu'!B17 ->  | C15: =((D15-D14)/D14)*100 ->  | D15: ='Main Menu'!D17 ->  | K15: SY 2011-2012
B16: Ave. % of Increase | C16: =AVERAGE(C14:C15) ->  | K16: SY 2012-2013
A17: Efficiency (25%) | B17: Dropout Rate (DR): | C17: % of decrease | D17: Dropout | F17: =IF(C22>=5,"1",IF(C22>=2,"2",IF(C22<2,"3","0"))) ->  | G17: =F17*0.0833 ->  | H17: =SUM(G17:G34) ->  | K17: SY 2013-2014
B18: ='Main Menu'!B20 -> SY 2008-2009 | D18: ='Main Menu'!D20 -> 0.02
B19: ='Main Menu'!B21 ->  | D19: ='Main Menu'!D21 ->  | K19: SY 2014- 2015
B20: ='Main Menu'!B22 ->  | C20: =((D20-D19)) ->  | D20: ='Main Menu'!D22 ->  | K20: SY 2015- 2016
B21: ='Main Menu'!B23 ->  | C21: =D21-D20 ->  | D21: ='Main Menu'!D23 ->  | K21: SY 2016-2017
B22: Ave. % of Decrease | C22: =(C20+C21)/2 -> 
B23: Completion Rate (CR): | C23: % of Increase | D23: Completion | F23: =N28 -> 3 | G23: =F23*0.0833 -> 0.25 | K23: SY 2017-2018
B24: ='Main Menu'!B26 -> SY 2008-2009 | D24: ='Main Menu'!D26 -> 65
B25: ='Main Menu'!B27 ->  | D25: ='Main Menu'!D27 ->  | K25: SY 2018- 2019 | N25: =IF(D25>=95,"3","0") -> 3
B26: ='Main Menu'!B28 ->  | D26: ='Main Menu'!D28 ->  | K26: SY 2019- 2020 | N26: =IF(D26>=95,"3","0") -> 3
B27: ='Main Menu'!B29 ->  | D27: ='Main Menu'!D29 ->  | N27: =IF(D27>=95,"3","0") -> 3
B28: Ave. % of Increase | N28: =(N25+N26+N27)/3 -> 3
B29: Cohort Survival Rate (CSR): | C29: % of Increase | D29: Cohort Survival | F29: =R34 -> 2 | G29: =F29*0.0834 -> 0.17
B30: ='Main Menu'!B32 -> SY 2008-2009 | D30: ='Main Menu'!D32 -> 58
B31: ='Main Menu'!B33 ->  | D31: ='Main Menu'!D33 -> 95.00 | R31: =IF(D31>=95,"3","0") -> 3
B32: ='Main Menu'!B34 ->  | D32: ='Main Menu'!D34 -> 96.00 | R32: =IF(D32>=95,"3","0") -> 3
B33: ='Main Menu'!B35 ->  | D33: ='Main Menu'!D35 -> 83.72 | R33: =IF(D33>=95,"3","0") -> 0
B34: Ave. % of Increase | R34: =(R31+R32+R33)/3 -> 2
A35: Quality (30%) | B35: NAT MPS | C35: % of Increase | D35: NAT MPS | F35: =U40 -> 3 | G35: =F35*0.3 -> 0.9 | H35: =G35 -> 0.9
B36: ='Main Menu'!B38 -> SY 2008-2009 | D36: ='Main Menu'!D38 -> 56.00
B37: ='Main Menu'!B39 ->  | D37: ='Main Menu'!D39 ->  | P37: =IF(D37>=75,"3","0") -> 3 | U37: =IF(D37>=75,"3","0") -> 3
B38: ='Main Menu'!B40 ->  | D38: ='Main Menu'!D40 ->  | P38: =IF(D38>=75,"3","0") -> 3 | U38: =IF(D38>=75,"3","0") -> 3
B39: ='Main Menu'!B41 ->  | D39: ='Main Menu'!D41 ->  | P39: =IF(D39>=75,"3","0") -> 3 | U39: =IF(D39>=75,"3","0") -> 3
B40: Ave. % of Increase | P40: =(P37+P38+P39)/3 -> 3 | U40: =(U37+U38+U39)/3 -> 3
A41: Sub-Total | H41: =SUM(H11:H40) -> 
A43: Note: Only Schools having a Performance Improvement of " Better" can apply to the Division for SBM Validation.
A44: Step 2: Compute for validated SBM Assessment Scores (40%)
A45: SBM Principles | C45: Weight | E45: Cummulative Scores of Validators per Principles | G45: Results
A46: Leadership | C46: 30% | E46: ='Document Analysis, Obs. Discuss'!AP71 -> 0.60 | G46: =E46*0.3 -> 0.18
A47: Curriculum & Learning | C47: 30% | E47: ='Document Analysis, Obs. Discuss'!AP72 -> 0.00 | G47: =E47*0.3 -> 0
A48: Accountability | C48: 25% | E48: ='Document Analysis, Obs. Discuss'!AP73 -> 0.00 | G48: =E48*0.25 -> 0
A49: Resource Management | C49: 15% | E49: ='Document Analysis, Obs. Discuss'!AP74 -> 0.00 | G49: =E49*0.15 -> 0
A50: Sub-total | G50: =SUM(G46:G49) -> 0.18
A51: Interpretation: | C51: Good
C52: Better
C53: Best
A54: Legend: | B54: Numerical Rating Scale | E54: Description
B55: 0.50-1.49 | E55: Good
B56: 1.50-2.49 | E56: Better
B57: 2.50-3.00 | E57: Best
A65: Step 3: Compute for Final Rating
A66: Areas | C66: Weight | E66: Computation | G66: Results
A67: A. Performance Improvement | C67: 60% | E67: =H41 ->  | G67: =C67*E67 ->  | N67: Performance Improvement | O67: =E67 -> 
A68: B. SBM Assessment Score (DOD) | C68: 40% | E68: =G50 -> 0.18 | G68: =C68*E68 -> 0.07 | N68: SBM Assessment Score | O68: =E68 -> 0.18
A69: Total | G69: =SUM(G67:G68) ->  | N69: SBM Final Rating | O69: =G69 -> 
A71: Interpretation:
B72: Developing ( Level I)
B73: Maturing (Level II)
B74: Advanced (Level III)
A76: Description of SBM Level of Practice:
B77: Numerical Rating Scale | E77: Description
B78: 0.50-1.49 | E78: Developing
B79: 1.50-2.49 | E79: Maturing
B80: 2.50-3.00 | E80: Advanced
A82: Results: | B82: =IF(G69<1.5,"Developing level- Structures and mechanisms with acceptable level and extent of community participation and impact on learning outcomes.",IF(G69<2.5,"Maturing level - Introducing and sustaining continuous improvement process that integrates wider community participation and improve sinificantly performance and learning outcomes.",IF(G69<3,"Advanced level - Ensuring the production of intended outputs/outcomes and meeting all standards of a system fully integrated in the local community and is self-renewing and self-sustaining.",""))) -> 
A100: Validators:
B101: ='Input Menu'!B51 -> 0 | E101: ='Input Menu'!B52 -> 0
B102: Member | E102: Member
B105: ='Input Menu'!B53 -> 0 | E105: ='Input Menu'!B54 -> 0
B106: Member | E106: Member
B110: ='Input Menu'!B50 -> 0
B111: Chairman
A112: ='Main Menu'!#REF! -> 

Sheet 11Elem. PR, CR1, CSR2, NAT1 (hidden)
A1: ='Main Menu'!A1:F1 -> Department of Education
A2: ='Main Menu'!A2:F2 -> Region X
A3: ='Main Menu'!A3:F3 -> 
A5: SBM Validation
A6: Name of School: | B6: ='Main Menu'!G6 -> 0 | E6: School Year: | F6: ='Main Menu'!B8 ->  | K6: =B6 -> 0
A8: Step 1: Determine Performance Improvement (60%)
A9: Thematic Area | B9: Performance Indicators | E9: Rating & Equivalent Points | F9: Computation | G9: Computation | H9: Results
A11: Access (45%) | B11: Enrolment Increase | C11: % of Increase | D11: Participation Rate | F11: =N16 -> 3 | G11: =F11*0.45 -> 1.35 | H11: =G11 -> 1.35
B12: ='Main Menu'!B14 -> SY 2009-2010 | D12: ='Main Menu'!D14 -> 990
B13: ='Main Menu'!B15 ->  | D13: ='Main Menu'!F15 ->  | K13: SY 2009-2010 | N13: =IF(D13>=95,"3",IF(D13>=90,"2",IF(D13>=85,"1","0"))) -> 3
B14: ='Main Menu'!B16 ->  | D14: ='Main Menu'!F16 ->  | K14: SY 2010-2011 | N14: =IF(D14>=95,"3",IF(D14>=90,"2",IF(D14>=85,"1","0"))) -> 3
B15: ='Main Menu'!B17 ->  | D15: ='Main Menu'!F17 ->  | K15: SY 2011-2012 | N15: =IF(D15>=95,"3",IF(D15>=90,"2",IF(D15>=85,"1","0"))) -> 3
B16: ='Main Menu'!M72 -> 0 | K16: SY 2012-2013 | N16: =(N13+N14+N15)/3 -> 3
A17: Efficiency (25%) | B17: Dropout Rate (DR): | C17: % of decrease | D17: Dropout | F17: =IF(C22>=5,"1",IF(C22>=2,"2",IF(C22<2,"3","0"))) ->  | G17: =F17*0.0833 ->  | H17: =SUM(G17:G34) ->  | K17: SY 2013-2014
B18: ='Main Menu'!B20 -> SY 2008-2009 | D18: ='Main Menu'!D20 -> 0.02
B19: ='Main Menu'!B21 ->  | D19: ='Main Menu'!D21 ->  | K19: SY 2014- 2015
B20: ='Main Menu'!B22 ->  | C20: =D20-D19 ->  | D20: ='Main Menu'!D22 ->  | K20: SY 2015- 2016
B21: ='Main Menu'!B23 ->  | C21: =D21-D20 ->  | D21: ='Main Menu'!D23 ->  | K21: SY 2016-2017
B22: Ave. % of Decrease | C22: =(C20+C21)/2 -> 
B23: Completion Rate (CR): | C23: % of Increase | D23: Completion | F23: =IF(C28>=5,"1",IF(C28>=7,"2",IF(C28>=10,"3","0"))) ->  | G23: =F23*0.0833 ->  | K23: SY 2017-2018
B24: ='Main Menu'!B26 -> SY 2008-2009 | D24: ='Main Menu'!D26 -> 65
B25: ='Main Menu'!B27 ->  | D25: ='Main Menu'!D27 ->  | K25: SY 2018- 2019 | N25: =IF(D25>=95,"3","0") -> 3
B26: ='Main Menu'!B28 ->  | C26: =(D26-D25)/D25*100 ->  | D26: ='Main Menu'!D28 ->  | K26: SY 2019- 2020 | N26: =IF(D26>=95,"3","0") -> 3
B27: ='Main Menu'!B29 ->  | C27: =(D27-D26)/D26*100 ->  | D27: ='Main Menu'!D29 ->  | N27: =IF(D27>=95,"3","0") -> 3
B28: Ave. % of Increase | C28: =AVERAGE(C26:C27) ->  | N28: =(N25+N26+N27)/3 -> 3
B29: Cohort Survival Rate (CSR): | C29: % of Increase | D29: Cohort Survival | F29: =N34 -> 2 | G29: =F29*0.0834 -> 0.17
B30: ='Main Menu'!B32 -> SY 2008-2009 | D30: ='Main Menu'!D32 -> 58
B31: ='Main Menu'!B33 ->  | D31: ='Main Menu'!D33 -> 95.00 | N31: =IF(D31>=95,"3","0") -> 3
B32: ='Main Menu'!B34 ->  | D32: ='Main Menu'!D34 -> 96.00 | N32: =IF(D32>=95,"3","0") -> 3
B33: ='Main Menu'!B35 ->  | D33: ='Main Menu'!D35 -> 83.72 | N33: =IF(D33>=95,"3","0") -> 0
B34: Ave. % of Increase | N34: =(N31+N32+N33)/3 -> 2
A35: Quality (30%) | B35: NAT MPS | C35: % of Increase | D35: NAT MPS | F35: =IF(C40>=7,"3",IF(C40>=5,"2",IF(C40>=2,"1","0"))) ->  | G35: =F35*0.3 ->  | H35: =G35 -> 
B36: ='Main Menu'!B38 -> SY 2008-2009 | D36: ='Main Menu'!D38 -> 56.00
B37: ='Main Menu'!B39 ->  | D37: ='Main Menu'!D39 -> 
B38: ='Main Menu'!B40 ->  | C38: =(D38-D37)/D37*100 ->  | D38: ='Main Menu'!D40 -> 
B39: ='Main Menu'!B41 ->  | C39: =(D39-D38)/D38*100 ->  | D39: ='Main Menu'!D41 -> 
B40: Ave. % of Increase | C40: =AVERAGE(C38:C39) -> 
A41: Sub-Total | H41: =SUM(H11:H40) -> 
A43: Note: Only Schools having a Performance Improvement of " Better" can apply to the Division for SBM Validation.
A44: Step 2: Compute for validated SBM Assessment Scores (40%)
A45: SBM Principles | C45: Weight | E45: Cummulative Scores of Validators per Principles | G45: Results
A46: Leadership | C46: 30% | E46: ='Document Analysis, Obs. Discuss'!AP71 -> 0.60 | G46: =E46*0.3 -> 0.18
A47: Curriculum & Learning | C47: 30% | E47: ='Document Analysis, Obs. Discuss'!AP72 -> 0.00 | G47: =E47*0.3 -> 0
A48: Accountability | C48: 25% | E48: ='Document Analysis, Obs. Discuss'!AP73 -> 0.00 | G48: =E48*0.25 -> 0
A49: Resource Management | C49: 15% | E49: ='Document Analysis, Obs. Discuss'!AP74 -> 0.00 | G49: =E49*0.15 -> 0
A50: Sub-total | G50: =SUM(G46:G49) -> 0.18
A51: Interpretation: | C51: Good
C52: Better
C53: Best
A54: Legend: | B54: Numerical Rating Scale | E54: Description
B55: 0.50-1.49 | E55: Good
B56: 1.50-2.49 | E56: Better
B57: 2.50-3.00 | E57: Best
A65: Step 3: Compute for Final Rating
A66: Areas | C66: Weight | E66: Computation | G66: Results
A67: A. Performance Improvement | C67: 60% | E67: =H41 ->  | G67: =C67*E67 ->  | N67: Performance Improvement | O67: =E67 -> 
A68: B. SBM Assessment Score (DOD) | C68: 40% | E68: =G50 -> 0.18 | G68: =C68*E68 -> 0.07 | N68: SBM Assessment Score | O68: =E68 -> 0.18
A69: Total | G69: =SUM(G67:G68) ->  | N69: SBM Final Rating | O69: =G69 -> 
A71: Interpretation:
B72: Developing ( Level I)
B73: Maturing (Level II)
B74: Advanced (Level III)
A76: Description of SBM Level of Practice:
B77: Numerical Rating Scale | E77: Description
B78: 0.50-1.49 | E78: Developing
B79: 1.50-2.49 | E79: Maturing
B80: 2.50-3.00 | E80: Advanced
A82: Results: | B82: =IF(G69<1.5,"Developing level- Structures and mechanisms with acceptable level and extent of community participation and impact on learning outcomes.",IF(G69<2.5,"Maturing level - Introducing and sustaining continuous improvement process that integrates wider community participation and improve sinificantly performance and learning outcomes.",IF(G69<3,"Advanced level - Ensuring the production of intended outputs/outcomes and meeting all standards of a system fully integrated in the local community and is self-renewing and self-sustaining.",""))) -> 
A100: Validators:
B101: ='Input Menu'!B51 -> 0 | E101: ='Input Menu'!B52 -> 0
B102: Member | E102: Member
B105: ='Input Menu'!B53 -> 0 | E105: ='Input Menu'!B54 -> 0
B106: Member | E106: Member
B110: ='Input Menu'!B50 -> 0
B111: Chairman
A112: ='Main Menu'!#REF! -> 

Sheet 12Elem. PR, CR1, CSR2, NAT2 (hidden)
A1: ='Main Menu'!A1:F1 -> Department of Education
A2: ='Main Menu'!A2:F2 -> Region X
A3: ='Main Menu'!A3:F3 -> 
A5: SBM Validation
A6: Name of School: | B6: ='Main Menu'!G6 -> 0 | E6: School Year: | F6: ='Main Menu'!B8 ->  | K6: =B6 -> 0
A8: Step 1: Determine Performance Improvement (60%)
A9: Thematic Area | B9: Performance Indicators | E9: Rating & Equivalent Points | F9: Computation | G9: Computation | H9: Results
A11: Access (45%) | B11: Enrolment Increase | C11: % of Increase | D11: Participation Rate | F11: =P16 -> 3 | G11: =F11*0.45 -> 1.35 | H11: =G11 -> 1.35
B12: ='Main Menu'!B14 -> SY 2009-2010 | D12: ='Main Menu'!D14 -> 990
B13: ='Main Menu'!B15 ->  | D13: ='Main Menu'!F15 ->  | K13: SY 2009-2010 | P13: =IF(D13>=95,"3",IF(D13>=90,"2",IF(D13>=85,"1","0"))) -> 3
B14: ='Main Menu'!B16 ->  | D14: ='Main Menu'!F16 ->  | K14: SY 2010-2011 | P14: =IF(D14>=95,"3",IF(D14>=90,"2",IF(D14>=85,"1","0"))) -> 3
B15: ='Main Menu'!B17 ->  | D15: ='Main Menu'!F17 ->  | K15: SY 2011-2012 | P15: =IF(D15>=95,"3",IF(D15>=90,"2",IF(D15>=85,"1","0"))) -> 3
B16: ='Main Menu'!M72 -> 0 | K16: SY 2012-2013 | P16: =(P13+P14+P15)/3 -> 3
A17: Efficiency (25%) | B17: Dropout Rate (DR): | C17: % of decrease | D17: Dropout | F17: =IF(C22>=5,"1",IF(C22>=2,"2",IF(C22<2,"3","0"))) ->  | G17: =F17*0.0833 ->  | H17: =SUM(G17:G34) ->  | K17: SY 2013-2014
B18: ='Main Menu'!B20 -> SY 2008-2009 | D18: ='Main Menu'!D20 -> 0.02
B19: ='Main Menu'!B21 ->  | D19: ='Main Menu'!D21 ->  | K19: SY 2014- 2015
B20: ='Main Menu'!B22 ->  | C20: =D20-D19 ->  | D20: ='Main Menu'!D22 ->  | K20: SY 2015- 2016
B21: ='Main Menu'!B23 ->  | C21: =D21-D20 ->  | D21: ='Main Menu'!D23 ->  | K21: SY 2016-2017
B22: Ave. % of Decrease | C22: =(C20+C21)/2 -> 
B23: Completion Rate (CR): | C23: % of Increase | D23: Completion | F23: =grd(C28) ->  | G23: =F23*0.0833 ->  | K23: SY 2017-2018
B24: ='Main Menu'!B26 -> SY 2008-2009 | D24: ='Main Menu'!D26 -> 65
B25: ='Main Menu'!B27 ->  | D25: ='Main Menu'!D27 ->  | K25: SY 2018- 2019
B26: ='Main Menu'!B28 ->  | C26: =(D26-D25)/D25*100 ->  | D26: ='Main Menu'!D28 ->  | K26: SY 2019- 2020
B27: ='Main Menu'!B29 ->  | C27: =(D27-D26)/D26*100 ->  | D27: ='Main Menu'!D29 -> 
B28: Ave. % of Increase | C28: =(C26+C27)/2 -> 
B29: Cohort Survival Rate (CSR): | C29: % of Increase | D29: Cohort Survival | F29: =P34 -> 2 | G29: =F29*0.0834 -> 0.17
B30: ='Main Menu'!B32 -> SY 2008-2009 | D30: ='Main Menu'!D32 -> 58
B31: ='Main Menu'!B33 ->  | D31: ='Main Menu'!D33 -> 95.00 | P31: =IF(D31>=95,"3","0") -> 3
B32: ='Main Menu'!B34 ->  | D32: ='Main Menu'!D34 -> 96.00 | P32: =IF(D32>=95,"3","0") -> 3
B33: ='Main Menu'!B35 ->  | D33: ='Main Menu'!D35 -> 83.72 | P33: =IF(D33>=95,"3","0") -> 0
B34: Ave. % of Increase | P34: =(P31+P32+P33)/3 -> 2
A35: Quality (30%) | B35: NAT MPS | C35: % of Increase | D35: NAT MPS | F35: =O40 -> 3 | G35: =F35*0.3 -> 0.9 | H35: =G35 -> 0.9
B36: ='Main Menu'!B38 -> SY 2008-2009 | D36: ='Main Menu'!D38 -> 56.00
B37: ='Main Menu'!B39 ->  | D37: ='Main Menu'!D39 ->  | O37: =IF(D37>=75,"3","0") -> 3
B38: ='Main Menu'!B40 ->  | D38: ='Main Menu'!D40 ->  | O38: =IF(D38>=75,"3","0") -> 3
B39: ='Main Menu'!B41 ->  | D39: ='Main Menu'!D41 ->  | O39: =IF(D39>=75,"3","0") -> 3
B40: Ave. % of Increase | O40: =(O37+O38+O39)/3 -> 3
A41: Sub-Total | H41: =SUM(H11:H40) -> 
A43: Note: Only Schools having a Performance Improvement of " Better" can apply to the Division for SBM Validation.
A44: Step 2: Compute for validated SBM Assessment Scores (40%)
A45: SBM Principles | C45: Weight | E45: Cummulative Scores of Validators per Principles | G45: Results
A46: Leadership | C46: 30% | E46: ='Document Analysis, Obs. Discuss'!AP71 -> 0.60 | G46: =E46*0.3 -> 0.18
A47: Curriculum & Learning | C47: 30% | E47: ='Document Analysis, Obs. Discuss'!AP72 -> 0.00 | G47: =E47*0.3 -> 0
A48: Accountability | C48: 25% | E48: ='Document Analysis, Obs. Discuss'!AP73 -> 0.00 | G48: =E48*0.25 -> 0
A49: Resource Management | C49: 15% | E49: ='Document Analysis, Obs. Discuss'!AP74 -> 0.00 | G49: =E49*0.15 -> 0
A50: Sub-total | G50: =SUM(G46:G49) -> 0.18
A51: Interpretation: | C51: Good
C52: Better
C53: Best
A54: Legend: | B54: Numerical Rating Scale | E54: Description
B55: 0.50-1.49 | E55: Good
B56: 1.50-2.49 | E56: Better
B57: 2.50-3.00 | E57: Best
A65: Step 3: Compute for Final Rating
A66: Areas | C66: Weight | E66: Computation | G66: Results
A67: A. Performance Improvement | C67: 60% | E67: =H41 ->  | G67: =C67*E67 ->  | N67: Performance Improvement | O67: =E67 -> 
A68: B. SBM Assessment Score (DOD) | C68: 40% | E68: =G50 -> 0.18 | G68: =C68*E68 -> 0.07 | N68: SBM Assessment Score | O68: =E68 -> 0.18
A69: Total | G69: =SUM(G67:G68) ->  | N69: SBM Final Rating | O69: =G69 -> 
A71: Interpretation:
B72: Developing ( Level I)
B73: Maturing (Level II)
B74: Advanced (Level III)
A76: Description of SBM Level of Practice:
B77: Numerical Rating Scale | E77: Description
B78: 0.50-1.49 | E78: Developing
B79: 1.50-2.49 | E79: Maturing
B80: 2.50-3.00 | E80: Advanced
A82: Results: | B82: =IF(G69<1.5,"Developing level- Structures and mechanisms with acceptable level and extent of community participation and impact on learning outcomes.",IF(G69<2.5,"Maturing level - Introducing and sustaining continuous improvement process that integrates wider community participation and improve sinificantly performance and learning outcomes.",IF(G69<3,"Advanced level - Ensuring the production of intended outputs/outcomes and meeting all standards of a system fully integrated in the local community and is self-renewing and self-sustaining.",""))) -> 
A100: Validators:
B101: ='Input Menu'!B51 -> 0 | E101: ='Input Menu'!B52 -> 0
B102: Member | E102: Member
B105: ='Input Menu'!B53 -> 0 | E105: ='Input Menu'!B54 -> 0
B106: Member | E106: Member
B110: ='Input Menu'!B50 -> 0
B111: Chairman
A112: ='Main Menu'!#REF! -> 

Sheet 13Elem. PR, CR2, CSR1, NAT1 (hidden)
A1: ='Main Menu'!A1:F1 -> Department of Education
A2: ='Main Menu'!A2:F2 -> Region X
A3: ='Main Menu'!A3:F3 -> 
A5: SBM Validation
A6: Name of School: | B6: ='Main Menu'!G6 -> 0 | E6: School Year: | F6: ='Main Menu'!B8 ->  | K6: =B6 -> 0
A8: Step 1: Determine Performance Improvement (60%)
A9: Thematic Area | B9: Performance Indicators | E9: Rating & Equivalent Points | F9: Computation | G9: Computation | H9: Results
A11: Access (45%) | B11: Enrolment Increase | C11: % of Increase | D11: Participation Rate | F11: =Q16 -> 3 | G11: =F11*0.45 -> 1.35 | H11: =G11 -> 1.35
B12: ='Main Menu'!B14 -> SY 2009-2010 | D12: ='Main Menu'!D14 -> 990
B13: ='Main Menu'!B15 ->  | D13: ='Main Menu'!F15 ->  | K13: SY 2009-2010 | Q13: =IF(D13>=95,"3",IF(D13>=90,"2",IF(D13>=85,"1","0"))) -> 3
B14: ='Main Menu'!B16 ->  | D14: ='Main Menu'!F16 ->  | K14: SY 2010-2011 | Q14: =IF(D14>=95,"3",IF(D14>=90,"2",IF(D14>=85,"1","0"))) -> 3
B15: ='Main Menu'!B17 ->  | D15: ='Main Menu'!F17 ->  | K15: SY 2011-2012 | Q15: =IF(D15>=95,"3",IF(D15>=90,"2",IF(D15>=85,"1","0"))) -> 3
B16: ='Main Menu'!M72 -> 0 | K16: SY 2012-2013 | Q16: =(Q13+Q14+Q15)/3 -> 3
A17: Efficiency (25%) | B17: Dropout Rate (DR): | C17: % of decrease | D17: Dropout | F17: =IF(C22>=5,"1",IF(C22>=2,"2",IF(C22<2,"3","0"))) ->  | G17: =F17*0.0833 ->  | H17: =SUM(G17:G34) ->  | K17: SY 2013-2014
B18: ='Main Menu'!B20 -> SY 2008-2009 | D18: ='Main Menu'!D20 -> 0.02
B19: ='Main Menu'!B21 ->  | D19: ='Main Menu'!D21 ->  | K19: SY 2014- 2015
B20: ='Main Menu'!B22 ->  | C20: =D20-D19 ->  | D20: ='Main Menu'!D22 ->  | K20: SY 2015- 2016
B21: ='Main Menu'!B23 ->  | C21: =D21-D20 ->  | D21: ='Main Menu'!D23 ->  | K21: SY 2016-2017
B22: Ave. % of Decrease | C22: =(C20+C21)/2 -> 
B23: Completion Rate (CR): | C23: % of Increase | D23: Completion | F23: =P28 -> 3 | G23: =F23*0.0833 -> 0.25 | K23: SY 2017-2018
B24: ='Main Menu'!B26 -> SY 2008-2009 | D24: ='Main Menu'!D26 -> 65
B25: ='Main Menu'!B27 ->  | D25: ='Main Menu'!D27 ->  | K25: SY 2018- 2019 | P25: =IF(D25>=95,"3","0") -> 3
B26: ='Main Menu'!B28 ->  | D26: ='Main Menu'!D28 ->  | K26: SY 2019- 2020 | P26: =IF(D26>=95,"3","0") -> 3
B27: ='Main Menu'!B29 ->  | D27: ='Main Menu'!D29 ->  | P27: =IF(D27>=95,"3","0") -> 3
B28: Ave. % of Increase | P28: =(P25+P26+P27)/3 -> 3
B29: Cohort Survival Rate (CSR): | C29: % of Increase | D29: Cohort Survival | F29: =IF(C34>=5,"1",IF(C34>=7,"2",IF(C34>=10,"3","0"))) -> 0 | G29: =F29*0.0834 -> 0.00
B30: ='Main Menu'!B32 -> SY 2008-2009 | D30: ='Main Menu'!D32 -> 58
B31: ='Main Menu'!B33 ->  | D31: ='Main Menu'!D33 -> 95.00
B32: ='Main Menu'!B34 ->  | C32: =(D32-D31)/D31*100 -> 1.05 | D32: ='Main Menu'!D34 -> 96.00
B33: ='Main Menu'!B35 ->  | C33: =(D33-D32)/D32*100 -> -12.79 | D33: ='Main Menu'!D35 -> 83.72
B34: Ave. % of Increase | C34: =AVERAGE(C32:C33) -> -5.87
A35: Quality (30%) | B35: NAT MPS | C35: % of Increase | D35: NAT MPS | F35: =IF(C40>=7,"3",IF(C40>=5,"2",IF(C40>=2,"1","0"))) ->  | G35: =F35*0.3 ->  | H35: =G35 -> 
B36: ='Main Menu'!B38 -> SY 2008-2009 | D36: ='Main Menu'!D38 -> 56.00
B37: ='Main Menu'!B39 ->  | D37: ='Main Menu'!D39 -> 
B38: ='Main Menu'!B40 ->  | C38: =(D38-D37)/D37*100 ->  | D38: ='Main Menu'!D40 -> 
B39: ='Main Menu'!B41 ->  | C39: =(D39-D38)/D38*100 ->  | D39: ='Main Menu'!D41 -> 
B40: Ave. % of Increase | C40: =AVERAGE(C38:C39) -> 
A41: Sub-Total | H41: =SUM(H11:H40) -> 
A43: Note: Only Schools having a Performance Improvement of " Better" can apply to the Division for SBM Validation.
A44: Step 2: Compute for validated SBM Assessment Scores (40%)
A45: SBM Principles | C45: Weight | E45: Cummulative Scores of Validators per Principles | G45: Results
A46: Leadership | C46: 30% | E46: ='Document Analysis, Obs. Discuss'!AP71 -> 0.60 | G46: =E46*0.3 -> 0.18
A47: Curriculum & Learning | C47: 30% | E47: ='Document Analysis, Obs. Discuss'!AP72 -> 0.00 | G47: =E47*0.3 -> 0
A48: Accountability | C48: 25% | E48: ='Document Analysis, Obs. Discuss'!AP73 -> 0.00 | G48: =E48*0.25 -> 0
A49: Resource Management | C49: 15% | E49: ='Document Analysis, Obs. Discuss'!AP74 -> 0.00 | G49: =E49*0.15 -> 0
A50: Sub-total | G50: =SUM(G46:G49) -> 0.18
A51: Interpretation: | C51: Good
C52: Better
C53: Best
A54: Legend: | B54: Numerical Rating Scale | E54: Description
B55: 0.50-1.49 | E55: Good
B56: 1.50-2.49 | E56: Better
B57: 2.50-3.00 | E57: Best
A65: Step 3: Compute for Final Rating
A66: Areas | C66: Weight | E66: Computation | G66: Results
A67: A. Performance Improvement | C67: 60% | E67: =H41 ->  | G67: =C67*E67 ->  | N67: Performance Improvement | O67: =E67 -> 
A68: B. SBM Assessment Score (DOD) | C68: 40% | E68: =G50 -> 0.18 | G68: =C68*E68 -> 0.07 | N68: SBM Assessment Score | O68: =E68 -> 0.18
A69: Total | G69: =SUM(G67:G68) ->  | N69: SBM Final Rating | O69: =G69 -> 
A71: Interpretation:
B72: Developing ( Level I)
B73: Maturing (Level II)
B74: Advanced (Level III)
A76: Description of SBM Level of Practice:
B77: Numerical Rating Scale | E77: Description
B78: 0.50-1.49 | E78: Developing
B79: 1.50-2.49 | E79: Maturing
B80: 2.50-3.00 | E80: Advanced
A82: Results: | B82: =IF(G69<1.5,"Developing level- Structures and mechanisms with acceptable level and extent of community participation and impact on learning outcomes.",IF(G69<2.5,"Maturing level - Introducing and sustaining continuous improvement process that integrates wider community participation and improve sinificantly performance and learning outcomes.",IF(G69<3,"Advanced level - Ensuring the production of intended outputs/outcomes and meeting all standards of a system fully integrated in the local community and is self-renewing and self-sustaining.",""))) -> 
A100: Validators:
B101: ='Input Menu'!B51 -> 0 | E101: ='Input Menu'!B52 -> 0
B102: Member | E102: Member
B105: ='Input Menu'!B53 -> 0 | E105: ='Input Menu'!B54 -> 0
B106: Member | E106: Member
B110: ='Input Menu'!B50 -> 0
B111: Chairman
A112: ='Main Menu'!#REF! -> 

Sheet 14Elem. PR, CR2, CSR1, NAT2
A1: ='Main Menu'!A1:F1 -> Department of Education
A2: ='Main Menu'!A2:F2 -> Region X
A3: ='Main Menu'!A3:F3 -> 
A5: SBM Validation Form
A6: =NOW() -> 2018-07-01T09:10:11.220
A7: District: | B7: ='Input Menu'!B8:C8 ->  | E7: School Year: | F7: ='Main Menu'!B8 ->  | K7: =B7 -> 
A8: School: | B8: ='Input Menu'!B7:C7 ->  | E8: School I.D. | F8: ='Input Menu'!K6 -> 0
A9: Step 1: Determine Performance Improvement (60%) | E9: Level: | F9: ='Main Menu'!O72 -> 0
A10: Thematic Area | B10: Performance Indicators | E10: Rating & Equivalent Points | F10: Score | G10: Computation | H10: Results
A12: Access (45%) | B12: Enrolment Increase | C12: % of Increase | D12: Community Mapping | F12: =P17 -> 3.00 | G12: =F12*0.45 -> 1.35 | H12: =G12 -> 1.35
B13: ='Main Menu'!B14 -> SY 2009-2010 | D13: ='Main Menu'!D14 -> 990
B14: ='Main Menu'!B15 ->  | D14: ='Main Menu'!F15 ->  | K14: SY 2009-2010 | P14: =IF(D14>=95,"3",IF(D14>=90,"2",IF(D14>=85,"1","0"))) -> 3
B15: ='Main Menu'!B16 ->  | D15: ='Main Menu'!F16 ->  | K15: SY 2010-2011 | P15: =IF(D15>=95,"3",IF(D15>=90,"2",IF(D15>=85,"1","0"))) -> 3
B16: ='Main Menu'!B17 ->  | D16: ='Main Menu'!F17 ->  | K16: SY 2011-2012 | P16: =IF(D16>=95,"3",IF(D16>=90,"2",IF(D16>=85,"1","0"))) -> 3
K17: SY 2012-2013 | P17: =(P14+P15+P16)/3 -> 3
A18: Efficiency (25%) | B18: Dropout Rate (DR): | C18: % of decrease | D18: Dropout % | F18: =IF(C23<2,"3",IF(C23<5,"2",IF(C23<=5,"1","0"))) ->  | G18: =F18*0.125 ->  | H18: =SUM(G18:G35) ->  | K18: SY 2013-2014
B19: ='Main Menu'!B20 -> SY 2008-2009 | D19: ='Main Menu'!D20 -> 0.02
B20: ='Main Menu'!B21 ->  | D20: ='Main Menu'!D21 ->  | K20: SY 2014- 2015
B21: ='Main Menu'!B22 ->  | C21: =D21-D20 ->  | D21: ='Main Menu'!D22 ->  | K21: SY 2015- 2016
B22: ='Main Menu'!B23 ->  | C22: =D22-D21 ->  | D22: ='Main Menu'!D23 ->  | K22: SY 2016-2017
B23: Ave. % of Decrease | C23: =AVERAGE(C21:C22) -> 
B24: Repetition Rate | C24: % of decrease | D24: Repetition % | F24: =IF(C29<2,"3",IF(C29<5,"2",IF(C29<=5,"1","0"))) ->  | G24: =F24*0.125 ->  | K24: SY 2017-2018
B25: ='Main Menu'!B26 -> SY 2008-2009 | D25: ='Main Menu'!D26 -> 65
B26: ='Main Menu'!B27 ->  | D26: ='Main Menu'!D27 ->  | K26: SY 2018- 2019
B27: ='Main Menu'!B28 ->  | C27: =D27-D26 ->  | D27: ='Main Menu'!D28 ->  | K27: SY 2019- 2020
B28: ='Main Menu'!B29 ->  | C28: =D28-D27 ->  | D28: ='Main Menu'!D29 -> 
B29: Ave. % of decrease | C29: =AVERAGE(C27:C28) -> 
A36: Quality (30%) | B36: Promotion Rate | C36: % of Increase | D36: Promotion % | F36: =O41 -> 3.00 | G36: =F36*0.3 -> 0.9 | H36: =G36 -> 0.9
B37: ='Main Menu'!B38 -> SY 2008-2009 | D37: ='Main Menu'!D38 -> 56.00
B38: ='Main Menu'!B39 ->  | D38: ='Main Menu'!F39 ->  | O38: =IF(D38>=95,"3",IF(D38>=90,"2",IF(D38>=85,"1","0"))) -> 3
B39: ='Main Menu'!B40 ->  | D39: ='Main Menu'!F40 ->  | O39: =IF(D39>=95,"3",IF(D39>=90,"2",IF(D39>=85,"1","0"))) -> 3
B40: ='Main Menu'!B41 ->  | D40: ='Main Menu'!F41 ->  | O40: =IF(D40>=95,"3",IF(D40>=90,"2",IF(D40>=85,"1","0"))) -> 3
B41: Ave. % of Increase | O41: =(O38+O39+O40)/3 -> 3.00
A42: Sub-Total | H42: =SUM(H12:H41) -> 
A44: Note: Only Schools having a Performance Improvement of " Better" can apply to the Division for SBM Validation.
A45: Step 2: Compute for validated SBM Assessment Scores (40%)
A46: SBM Principles | C46: Weight | E46: Cummulative Scores of Validators per Principles | G46: Results
A47: Leadership | C47: 30% | E47: ='Document Analysis, Obs. Discuss'!AP71 -> 0.60 | G47: =E47*0.3 -> 0.18
A48: Curriculum & Learning | C48: 30% | E48: ='Document Analysis, Obs. Discuss'!AP72 -> 0.00 | G48: =E48*0.3 -> 0
A49: Accountability | C49: 25% | E49: ='Document Analysis, Obs. Discuss'!AP73 -> 0.00 | G49: =E49*0.25 -> 0
A50: Resource Management | C50: 15% | E50: ='Document Analysis, Obs. Discuss'!AP74 -> 0.00 | G50: =E50*0.15 -> 0
A51: Sub-total | C51: 100% | G51: =SUM(G47:G50) -> 0.18
A52: Interpretation: | C52: Good
C53: Better
C54: Best
A55: Legend: | B55: Numerical Rating Scale | E55: Description
B56: 0.50-1.49 | E56: Good
B57: 1.50-2.49 | E57: Better
B58: 2.50-3.00 | E58: Best
A66: Step 3: Compute for Final Rating
A67: Areas | C67: Weight | E67: Computation | G67: Results
A68: A. Performance Improvement | C68: 60% | E68: =H42 ->  | G68: =C68*E68 ->  | N68: Performance Improvement | O68: =E68 -> 
A69: B. SBM Assessment Score (DOD) | C69: 40% | E69: =G51 -> 0.18 | G69: =C69*E69 -> 0.07 | N69: SBM Assessment Score | O69: =E69 -> 0.18
A70: Total | C70: 100% | G70: =SUM(G68:G69) ->  | N70: SBM Final Rating | O70: =G70 -> 
A77: Description of SBM Level of Practice:
B78: Numerical Rating Scale | E78: Description | G78: Interpretation
B79: 0.50-1.49 | E79: Developing | G79: Level I
B80: 1.50-2.49 | E80: Maturing | G80: Level II
B81: 2.50-3.00 | E81: Advanced | G81: Level III
A99: Results: | B99: =IF(G70<1.5,"Developing level- Structures and mechanisms with acceptable level and extent of community participation and impact on learning outcomes.",IF(G70<2.5,"Maturing level - Introducing and sustaining continuous improvement process that integrates wider community participation and improve sinificantly performance and learning outcomes.",IF(G70<3,"Advanced level - Ensuring the production of intended outputs/outcomes and meeting all standards of a system fully integrated in the local community and is self-renewing and self-sustaining.",""))) -> 
A100: Remarks: | B100: ='Main Menu'!B56:H56 -> 0.00
A101: Validators:
B102: ='Input Menu'!B51 -> 0 | E102: ='Input Menu'!B52 -> 0
B103: Member | E103: Member
B106: ='Input Menu'!B53 -> 0 | E106: ='Input Menu'!B54 -> 0
B107: Member | E107: Member
B111: ='Input Menu'!B50 -> 0
B112: Chairman
A113: ='Main Menu'!A55 -> Option6: CM, DR, RR, PrR

Sheet 15Elem. PR, CR2, CSR2, NAT1 (hidden)
A1: ='Main Menu'!A1:F1 -> Department of Education
A2: ='Main Menu'!A2:F2 -> Region X
A3: ='Main Menu'!A3:F3 -> 
A5: SBM Validation
A6: Name of School: | B6: ='Main Menu'!G6 -> 0 | E6: School Year: | F6: ='Main Menu'!B8 ->  | K6: =B6 -> 0
A8: Step 1: Determine Performance Improvement (60%)
A9: Thematic Area | B9: Performance Indicators | E9: Rating & Equivalent Points | F9: Computation | G9: Computation | H9: Results
A11: Access (45%) | B11: Enrolment Increase | C11: % of Increase | D11: Participation Rate | F11: =N16 -> 3 | G11: =F11*0.45 -> 1.35 | H11: =G11 -> 1.35
B12: ='Main Menu'!B14 -> SY 2009-2010 | D12: ='Main Menu'!D14 -> 990
B13: ='Main Menu'!B15 ->  | D13: ='Main Menu'!F15 ->  | K13: SY 2009-2010 | N13: =IF(D13>=95,"3",IF(D13>90,"2",IF(D13>85,"1","0"))) -> 3
B14: ='Main Menu'!B16 ->  | D14: ='Main Menu'!F16 ->  | K14: SY 2010-2011 | N14: =IF(D14>=95,"3",IF(D14>90,"2",IF(D14>85,"1","0"))) -> 3
B15: ='Main Menu'!B17 ->  | D15: ='Main Menu'!F17 ->  | K15: SY 2011-2012 | N15: =IF(D15>=95,"3",IF(D15>90,"2",IF(D15>85,"1","0"))) -> 3
B16: ='Main Menu'!M72 -> 0 | K16: SY 2012-2013 | N16: =(N13+N14+N15)/3 -> 3
A17: Efficiency (25%) | B17: Dropout Rate (DR): | C17: % of decrease | D17: Dropout | F17: =IF(C22>=5,"1",IF(C22>=2,"2",IF(C22<2,"3","0"))) ->  | G17: =F17*0.0833 ->  | H17: =SUM(G17:G34) ->  | K17: SY 2013-2014
B18: ='Main Menu'!B20 -> SY 2008-2009 | D18: ='Main Menu'!D20 -> 0.02
B19: ='Main Menu'!B21 ->  | D19: ='Main Menu'!D21 ->  | K19: SY 2014- 2015
B20: ='Main Menu'!B22 ->  | C20: =D20-D19 ->  | D20: ='Main Menu'!D22 ->  | K20: SY 2015- 2016
B21: ='Main Menu'!B23 ->  | C21: =D21-D20 ->  | D21: ='Main Menu'!D23 ->  | K21: SY 2016-2017
B22: Ave. % of Decrease | C22: =(C20+C21)/2 -> 
B23: Completion Rate (CR): | C23: % of Increase | D23: Completion | F23: =P28 -> 3 | G23: =F23*0.0833 -> 0.25 | K23: SY 2017-2018
B24: ='Main Menu'!B26 -> SY 2008-2009 | D24: ='Main Menu'!D26 -> 65
B25: ='Main Menu'!B27 ->  | D25: ='Main Menu'!D27 ->  | K25: SY 2018- 2019 | P25: =IF(D25>=95,"3","0") -> 3
B26: ='Main Menu'!B28 ->  | D26: ='Main Menu'!D28 ->  | K26: SY 2019- 2020 | P26: =IF(D26>=95,"3","0") -> 3
B27: ='Main Menu'!B29 ->  | D27: ='Main Menu'!D29 ->  | P27: =IF(D27>=95,"3","0") -> 3
B28: Ave. % of Increase | P28: =(P25+P26+P27)/3 -> 3
B29: Cohort Survival Rate (CSR): | C29: % of Increase | D29: Cohort Survival | F29: =P34 -> 2 | G29: =F29*0.0834 -> 0.17
B30: ='Main Menu'!B32 -> SY 2008-2009 | D30: ='Main Menu'!D32 -> 58
B31: ='Main Menu'!B33 ->  | D31: ='Main Menu'!D33 -> 95.00 | P31: =IF(D31>=95,"3","0") -> 3
B32: ='Main Menu'!B34 ->  | D32: ='Main Menu'!D34 -> 96.00 | P32: =IF(D32>=95,"3","0") -> 3
B33: ='Main Menu'!B35 ->  | D33: ='Main Menu'!D35 -> 83.72 | P33: =IF(D33>=95,"3","0") -> 0
B34: Ave. % of Increase | P34: =(P31+P32+P33)/3 -> 2
A35: Quality (30%) | B35: NAT MPS | C35: % of Increase | D35: NAT MPS | F35: =IF(C40>=7,"3",IF(C40>=5,"2",IF(C40>=2,"3","0"))) ->  | G35: =F35*0.3 ->  | H35: =G35 -> 
B36: ='Main Menu'!B38 -> SY 2008-2009 | D36: ='Main Menu'!D38 -> 56.00
B37: ='Main Menu'!B39 ->  | D37: ='Main Menu'!D39 -> 
B38: ='Main Menu'!B40 ->  | C38: =(D38-D37)/D37*100 ->  | D38: ='Main Menu'!D40 -> 
B39: ='Main Menu'!B41 ->  | C39: =(D39-D38)/D38*100 ->  | D39: ='Main Menu'!D41 -> 
B40: Ave. % of Increase | C40: =AVERAGE(C38:C39) -> 
A41: Sub-Total | H41: =SUM(H11:H40) -> 
A43: Note: Only Schools having a Performance Improvement of " Better" can apply to the Division for SBM Validation.
A44: Step 2: Compute for validated SBM Assessment Scores (40%)
A45: SBM Principles | C45: Weight | E45: Cummulative Scores of Validators per Principles | G45: Results
A46: Leadership | C46: 30% | E46: ='Document Analysis, Obs. Discuss'!AP71 -> 0.60 | G46: =E46*0.3 -> 0.18
A47: Curriculum & Learning | C47: 30% | E47: ='Document Analysis, Obs. Discuss'!AP72 -> 0.00 | G47: =E47*0.3 -> 0
A48: Accountability | C48: 25% | E48: ='Document Analysis, Obs. Discuss'!AP73 -> 0.00 | G48: =E48*0.25 -> 0
A49: Resource Management | C49: 15% | E49: ='Document Analysis, Obs. Discuss'!AP74 -> 0.00 | G49: =E49*0.15 -> 0
A50: Sub-total | G50: =SUM(G46:G49) -> 0.18
A51: Interpretation: | C51: Good
C52: Better
C53: Best
A54: Legend: | B54: Numerical Rating Scale | E54: Description
B55: 0.50-1.49 | E55: Good
B56: 1.50-2.49 | E56: Better
B57: 2.50-3.00 | E57: Best
A65: Step 3: Compute for Final Rating
A66: Areas | C66: Weight | E66: Computation | G66: Results
A67: A. Performance Improvement | C67: 60% | E67: =H41 ->  | G67: =C67*E67 ->  | N67: Performance Improvement | O67: =E67 -> 
A68: B. SBM Assessment Score (DOD) | C68: 40% | E68: =G50 -> 0.18 | G68: =C68*E68 -> 0.07 | N68: SBM Assessment Score | O68: =E68 -> 0.18
A69: Total | G69: =SUM(G67:G68) ->  | N69: SBM Final Rating | O69: =G69 -> 
A71: Interpretation:
B72: Developing ( Level I)
B73: Maturing (Level II)
B74: Advanced (Level III)
A76: Description of SBM Level of Practice:
B77: Numerical Rating Scale | E77: Description
B78: 0.50-1.49 | E78: Developing
B79: 1.50-2.49 | E79: Maturing
B80: 2.50-3.00 | E80: Advanced
A82: Results: | B82: =IF(G69<1.5,"Developing level- Structures and mechanisms with acceptable level and extent of community participation and impact on learning outcomes.",IF(G69<2.5,"Maturing level - Introducing and sustaining continuous improvement process that integrates wider community participation and improve sinificantly performance and learning outcomes.",IF(G69<3,"Advanced level - Ensuring the production of intended outputs/outcomes and meeting all standards of a system fully integrated in the local community and is self-renewing and self-sustaining.",""))) -> 
A100: Validators:
B101: ='Input Menu'!B51 -> 0 | E101: ='Input Menu'!B52 -> 0
B102: Member | E102: Member
B105: ='Input Menu'!B53 -> 0 | E105: ='Input Menu'!B54 -> 0
B106: Member | E106: Member
B110: ='Input Menu'!B50 -> 0
B111: Chairman
A112: ='Main Menu'!#REF! -> 

Sheet 16Elem. PR, CR2, CSR2, NAT2 (hidden)
A1: ='Main Menu'!A1:F1 -> Department of Education
A2: ='Main Menu'!A2:F2 -> Region X
A3: ='Main Menu'!A3:F3 -> 
A5: SBM Validation
A6: Name of School: | B6: ='Main Menu'!G6 -> 0 | E6: School Year: | F6: ='Main Menu'!B8 ->  | K6: =B6 -> 0
A8: Step 1: Determine Performance Improvement (60%)
A9: Thematic Area | B9: Performance Indicators | E9: Rating & Equivalent Points | F9: Computation | G9: Computation | H9: Results
A11: Access (45%) | B11: Enrolment Increase | C11: % of Increase | D11: Participation Rate | F11: =N16 -> 3 | G11: =F11*0.45 -> 1.35 | H11: =G11 -> 1.35
B12: ='Main Menu'!B14 -> SY 2009-2010 | D12: ='Main Menu'!D14 -> 990
B13: ='Main Menu'!B15 ->  | D13: ='Main Menu'!F15 ->  | K13: SY 2009-2010 | N13: =IF(D13>=95,"3",IF(D13>=90,"2",IF(D13>=85,"1","0"))) -> 3
B14: ='Main Menu'!B16 ->  | D14: ='Main Menu'!F16 ->  | K14: SY 2010-2011 | N14: =IF(D14>=95,"3",IF(D14>=90,"2",IF(D14>=85,"1","0"))) -> 3
B15: ='Main Menu'!B17 ->  | D15: ='Main Menu'!F17 ->  | K15: SY 2011-2012 | N15: =IF(D15>=95,"3",IF(D15>=90,"2",IF(D15>=85,"1","0"))) -> 3
B16: ='Main Menu'!M72 -> 0 | K16: SY 2012-2013 | N16: =(N13+N14+N15)/3 -> 3
A17: Efficiency (25%) | B17: Dropout Rate (DR): | C17: % of decrease | D17: Dropout | F17: =IF(C22>=5,"1",IF(C22>=2,"2",IF(C22<2,"3","0"))) ->  | G17: =F17*0.0833 ->  | H17: =SUM(G17:G34) ->  | K17: SY 2013-2014
B18: ='Main Menu'!B20 -> SY 2008-2009 | D18: ='Main Menu'!D20 -> 0.02
B19: ='Main Menu'!B21 ->  | D19: ='Main Menu'!D21 ->  | K19: SY 2014- 2015
B20: ='Main Menu'!B22 ->  | C20: =D20-D19 ->  | D20: ='Main Menu'!D22 ->  | K20: SY 2015- 2016
B21: ='Main Menu'!B23 ->  | C21: =D21-D20 ->  | D21: ='Main Menu'!D23 ->  | K21: SY 2016-2017
B22: Ave. % of Decrease | C22: =(C20+C21)/2 -> 
B23: Completion Rate (CR): | C23: % of Increase | D23: Completion | F23: =N28 -> 3 | G23: =F23*0.0833 -> 0.25 | K23: SY 2017-2018
B24: ='Main Menu'!B26 -> SY 2008-2009 | D24: ='Main Menu'!D26 -> 65
B25: ='Main Menu'!B27 ->  | D25: ='Main Menu'!D27 ->  | K25: SY 2018- 2019 | N25: =IF(D25>95,"3","0") -> 3
B26: ='Main Menu'!B28 ->  | D26: ='Main Menu'!D28 ->  | K26: SY 2019- 2020 | N26: =IF(D26>95,"3","0") -> 3
B27: ='Main Menu'!B29 ->  | D27: ='Main Menu'!D29 ->  | N27: =IF(D27>95,"3","0") -> 3
B28: Ave. % of Increase | N28: =(N25+N26+N27)/3 -> 3
B29: Cohort Survival Rate (CSR): | C29: % of Increase | D29: Cohort Survival | F29: =N34 -> 1 | G29: =F29*0.0834 -> 0.08
B30: ='Main Menu'!B32 -> SY 2008-2009 | D30: ='Main Menu'!D32 -> 58
B31: ='Main Menu'!B33 ->  | D31: ='Main Menu'!D33 -> 95.00 | N31: =IF(D31>95,"3","0") -> 0
B32: ='Main Menu'!B34 ->  | D32: ='Main Menu'!D34 -> 96.00 | N32: =IF(D32>95,"3","0") -> 3
B33: ='Main Menu'!B35 ->  | D33: ='Main Menu'!D35 -> 83.72 | N33: =IF(D33>95,"3","0") -> 0
B34: Ave. % of Increase | N34: =(N31+N32+N33)/3 -> 1
A35: Quality (30%) | B35: NAT MPS | C35: % of Increase | D35: NAT MPS | F35: =N40 -> 3 | G35: =F35*0.3 -> 0.9 | H35: =G35 -> 0.9
B36: ='Main Menu'!B38 -> SY 2008-2009 | D36: ='Main Menu'!D38 -> 56.00
B37: ='Main Menu'!B39 ->  | D37: ='Main Menu'!D39 ->  | N37: =IF(D37>75,"3","0") -> 3
B38: ='Main Menu'!B40 ->  | D38: ='Main Menu'!D40 ->  | N38: =IF(D38>75,"3","0") -> 3
B39: ='Main Menu'!B41 ->  | D39: ='Main Menu'!D41 ->  | N39: =IF(D39>75,"3","0") -> 3
B40: Ave. % of Increase | N40: =(N37+N38+N39)/3 -> 3
A41: Sub-Total | H41: =SUM(H11:H40) -> 
A43: Note: Only Schools having a Performance Improvement of " Better" can apply to the Division for SBM Validation.
A44: Step 2: Compute for validated SBM Assessment Scores (40%)
A45: SBM Principles | C45: Weight | E45: Cummulative Scores of Validators per Principles | G45: Results
A46: Leadership | C46: 30% | E46: ='Document Analysis, Obs. Discuss'!AP71 -> 0.60 | G46: =E46*0.3 -> 0.18
A47: Curriculum & Learning | C47: 30% | E47: ='Document Analysis, Obs. Discuss'!AP72 -> 0.00 | G47: =E47*0.3 -> 0
A48: Accountability | C48: 25% | E48: ='Document Analysis, Obs. Discuss'!AP73 -> 0.00 | G48: =E48*0.25 -> 0
A49: Resource Management | C49: 15% | E49: ='Document Analysis, Obs. Discuss'!AP74 -> 0.00 | G49: =E49*0.15 -> 0
A50: Sub-total | G50: =SUM(G46:G49) -> 0.18
A51: Interpretation: | C51: Good
C52: Better
C53: Best
A54: Legend: | B54: Numerical Rating Scale | E54: Description
B55: 0.50-1.49 | E55: Good
B56: 1.50-2.49 | E56: Better
B57: 2.50-3.00 | E57: Best
A65: Step 3: Compute for Final Rating
A66: Areas | C66: Weight | E66: Computation | G66: Results
A67: A. Performance Improvement | C67: 60% | E67: =H41 ->  | G67: =C67*E67 ->  | N67: Performance Improvement | O67: =E67 -> 
A68: B. SBM Assessment Score (DOD) | C68: 40% | E68: =G50 -> 0.18 | G68: =C68*E68 -> 0.07 | N68: SBM Assessment Score | O68: =E68 -> 0.18
A69: Total | G69: =SUM(G67:G68) ->  | N69: SBM Final Rating | O69: =G69 -> 
A71: Interpretation:
B72: Developing ( Level I)
B73: Maturing (Level II)
B74: Advanced (Level III)
A76: Description of SBM Level of Practice:
B77: Numerical Rating Scale | E77: Description
B78: 0.50-1.49 | E78: Developing
B79: 1.50-2.49 | E79: Maturing
B80: 2.50-3.00 | E80: Advanced
A82: Results: | B82: =IF(G69<1.5,"Developing level- Structures and mechanisms with acceptable level and extent of community participation and impact on learning outcomes.",IF(G69<2.5,"Maturing level - Introducing and sustaining continuous improvement process that integrates wider community participation and improve sinificantly performance and learning outcomes.",IF(G69<3,"Advanced level - Ensuring the production of intended outputs/outcomes and meeting all standards of a system fully integrated in the local community and is self-renewing and self-sustaining.",""))) -> 
A100: Validators:
B101: ='Input Menu'!B51 -> 0 | E101: ='Input Menu'!B52 -> 0
B102: Member | E102: Member
B105: ='Input Menu'!B53 -> 0 | E105: ='Input Menu'!B54 -> 0
B106: Member | E106: Member
B110: ='Input Menu'!B50 -> 0
B111: Chairman
A112: ='Main Menu'!D65 -> 0

Sheet Document Analysis, Obs. Discuss
A1: ='Main Menu'!A1:F1 -> Department of Education
A2: ='Main Menu'!A2:F2 -> Region X
A3: ='Main Menu'!A3:F3 -> 
A5: SBM Validation (Document Analysis-Observation-Discussion)
A6: District: | B6: ='Input Menu'!B6:C6 -> 0 | L6: School Year: | O6: ='Main Menu'!B8 -> 
A7: School: | B7: ='Input Menu'!B7:C7 -> 
A8: 1. Leadership and Governance
A9: A network of leadership and governance guides the education system to achieve its shared vision, mission and goals making them responsive and relevant to the context of diverse environments.
A11: A. Indicators | D11: Level O (NO Evidence) | E11: Level I of Practice (Evidence indicate early or preliminary stage) | J11: Level II of Practice (Evidence indicate planned practices and procedures are fully implemented) | O11: Level III of Practice (Evidence indicate practices and procedures satisfy quality standards)
A12: 1. In place is a Development Plan (e.g. SIP) developed collaboratively by the stakeholders of the school and community. | D12: (NO Evidence) | E12: The development plan guided by the school’s vision, mission and goal (VMG) is developed through the leadership of the school and the participation of some invited community stakeholders. | J12: The development plan is evolved through the shared leadership of the school and the community stakeholders. | O12: The development plan is enhanced with the community performing the leadership roles, and the school providing technical support. | T12: FALSE | U12: FALSE | V12: FALSE | W12: TRUE | Y12: steps:1 click conditional formatting under Home menu, 2. Manage rule, 3. New Rule, 4. Use a formula to determine, 5. click format values and click the true/false value and set the color
T13: =IF(T12=TRUE,"0","") ->  | U13: =IF(U12=TRUE,"1","") ->  | V13: =IF(V12=TRUE,"2","") ->  | W13: =IF(W12=TRUE,"3","") -> 3 | X13: =IF(W13="3",W13,IF(V13="2",V13,IF(U13="1",U13,"0"))) -> 3
A14: 2. The development plan (e.g. SIP) is regularly reviewed by the school community to keep it responsive and relevant to emerging needs, challenges and opportunities. | D14: (NO Evidence) | E14: The school leads the regular review and improvement of the development plan. | J14: The school and community stakeholders working as full partners lead the continual review and improvement of the development plan. | O14: The community stakeholders lead the regular review and improvement process; the school stakeholders facilitate the process. | T14: FALSE | U14: FALSE | V14: FALSE | W14: FALSE
T15: =IF(T14=TRUE,"0","") ->  | U15: =IF(U14=TRUE,"1","0") -> 0 | V15: =IF(V14=TRUE,"2","0") -> 0 | W15: =IF(W14=TRUE,"3","0") -> 0 | X15: =IF(W15="3",W15,IF(V15="2",V15,IF(U15="1",U15,"0"))) -> 0
A16: 3. The school is organized by a clear structure and work arrangements that promote shared leadership and governance and define the roles and responsibilities of the stakeholders. | D16: (NO Evidence) | E16: The school defines the organizational structure, and the roles and responsibilities of stakeholders. | J16: The school and community collaboratively define the structure and the roles and responsibilities of stakeholders | O16: Guided by an agreed organizational structure, the community stakeholders lead in defining the organizational structure and the roles and responsibilities; school provides technical and administrative support. | T16: FALSE | U16: FALSE | V16: FALSE | W16: FALSE
T17: =IF(T16=TRUE,"0","") ->  | U17: =IF(U16=TRUE,"1","0") -> 0 | V17: =IF(V16=TRUE,"2","0") -> 0 | W17: =IF(W16=TRUE,"3","0") -> 0 | X17: =IF(W17="3",W17,IF(V17="2",V17,IF(U17="1",U17,"0"))) -> 0
A18: 4. A leadership network facilities communication between and among school and community leaders for informed decision-making and solving of school-community wide-learning problems. | D18: (NO Evidence) | E18: A network has been collaboratively established and is continuously improved by the school community. | J18: The network actively provides stakeholders information for making decisions and solving learning and administrative problems. | O18: The network allows easy exchange and access beyond the school community. | T18: FALSE | U18: FALSE | V18: FALSE | W18: FALSE
T19: =IF(T18=TRUE,"0","") ->  | U19: =IF(U18=TRUE,"1","0") -> 0 | V19: =IF(V18=TRUE,"2","0") -> 0 | W19: =IF(W18=TRUE,"3","0") -> 0 | X19: =IF(W19="3",W19,IF(V19="2",V19,IF(U19="1",U19,"0"))) -> 0
A20: 5. A long program is in operation that addresses the training and development needs of school and community leaders. | D20: (NO Evidence) | E20: Developing structures are in place and analysis of the competency and development needs of leaders is conducted; result is used to develop a long term training and Development program. | J20: Leaders undertake training modes that are convenient to them (on-line, off-line, modular, group, or home-based) and which do not disrupt their regular functions. Leaders monitor and evaluate their own learning progress. | O20: Leaders assume responsibility for their own training and development. School community leaders working individually or in groups, coach and mentor one another to achieve their VMG. | T20: FALSE | U20: FALSE | V20: FALSE | W20: FALSE
A21: II. Curriculum and Instruction | T21: =IF(T20=TRUE,"0","") ->  | U21: =IF(U20=TRUE,"1","0") -> 0 | V21: =IF(V20=TRUE,"2","0") -> 0 | W21: =IF(W20=TRUE,"3","0") -> 0 | X21: =IF(W21="3",W21,IF(V21="2",V21,IF(U21="1",U21,"0"))) -> 0
A22: The curriculum learning systems anchored on the community and learners’ context and aspiration are collaboratively developed and continuously improved.
A23: 1. The curriculum provides for the development needs of all types p learners in the school community. | D23: (NO Evidence) | E23: All types of learners of the school community are identified, their learning curves assessed; appropriate programs with its support materials for each type of learner is developed. | J23: Programs are fully implemented and closely monitored to address performance discrepancies, benchmark best practices, and coach low performers, mentor potential leaders, reward high achievements, and maintain environment that makes learning, meaningful and enjoyable. | O23: The educational needs of all types of learners are being met as shown by continuous improvement on learning outcomes and products of learning. Teacher’s as well as students’ performance is motivated by intrinsic rather than extrinsic rewards. The Schools’ differentiated program is frequently benchmarked by other schools. | T23: FALSE | U23: FALSE | V23: FALSE | W23: FALSE
T24: =IF(T23=TRUE,"0","") ->  | U24: =IF(U23=TRUE,"1","0") -> 0 | V24: =IF(V23=TRUE,"2","0") -> 0 | W24: =IF(W23=TRUE,"3","0") -> 0 | X24: =IF(W24="3",W24,IF(V24="2",V24,IF(U24="1",U24,"0"))) -> 0
A25: 2. The implemented curriculum is localized to make it more meaningful to the learners and applicable to life in the community. | D25: (NO Evidence) | E25: Local beliefs, norms, values, traditions, folklores, current events, and existing technologist are documented are used to developed lasting curriculum. Localization guidelines are agreed to by school community and teachers are properly oriented. | J25: The localized curriculum is implemented and monitored closely to ensure that it makes learning more meaningful and pleasurable, produces desired learning outcomes, and directly improves community life. Ineffective approaches are replaced and innovative ones are developed. | O25: Best practices in localizing the curriculum are mainstreamed and benchmarked by other schools. There is marked increase in number of projects that uses the community as learning laboratory, and the school as an agent of change for improvement of the community. | T25: FALSE | U25: FALSE | V25: FALSE | W25: FALSE
T26: =IF(T25=TRUE,"0","") ->  | U26: =IF(U25=TRUE,"1","0") -> 0 | V26: =IF(V25=TRUE,"2","0") -> 0 | W26: =IF(W25=TRUE,"3","0") -> 0 | X26: =IF(W26="3",W26,IF(V26="2",V26,IF(U26="1",U26,"0"))) -> 0
A27: 3. A representative group of school and community stakeholders develop the methods and materials for developing creative thinking and problem solving. | D27: (NO Evidence) | E27: A representative team of school and community stakeholders assess content and methods used in teaching creative, critical thinking and problem solving. Assessment results are used as guide to develop materials. | J27: Learning materials and approaches to reinforce strengths and address deficiencies are developed and tested for applicability on schools, family and community. | O27: Materials and approaches are being used in school, in the family and in community to develop critical, creative thinking and problem solving community of learners and are producing desired results. | T27: FALSE | U27: FALSE | V27: FALSE | W27: FALSE
T28: =IF(T27=TRUE,"0","") ->  | U28: =IF(U27=TRUE,"1","0") -> 0 | V28: =IF(V27=TRUE,"2","0") -> 0 | W28: =IF(W27=TRUE,"3","0") -> 0 | X28: =IF(W28="3",W28,IF(V28="2",V28,IF(U28="1",U28,"0"))) -> 0
A29: 4. The learning systems are regularly and collaboratively monitored by the community using appropriate tools to ensure the holistic growth and development of the learners and the community. | E29: A school-based monitoring and learning system is conducted regularly and cooperatively; And feedback is shared with stakeholders. | J29: The school-based monitoring and learning systems generate. Feedback that is used for making decisions that enhance the total development of learners. | O29: The monitoring system is accepted and regularly used for collective decision making. | T29: FALSE | U29: FALSE | V29: FALSE | W29: FALSE
T30: =IF(T29=TRUE,"0","") ->  | U30: =IF(U29=TRUE,"1","0") -> 0 | V30: =IF(V29=TRUE,"2","0") -> 0 | W30: =IF(W29=TRUE,"3","0") -> 0 | X30: =IF(W30="3",W30,IF(V30="2",V30,IF(U30="1",U30,"0"))) -> 0
D31: (NO Evidence) | E31: The system uses a tool that monitors the holistic development of learners. | J31: A committee takes care of the continuous improvement of tool. | O31: The monitoring tool has been improved to provide both quantitative and qualitative data. | T31: FALSE | U31: FALSE | V31: FALSE | W31: FALSE
T32: =IF(T31=TRUE,"0","") ->  | U32: =IF(U31=TRUE,"1","0") -> 0 | V32: =IF(V31=TRUE,"2","0") -> 0 | W32: =IF(W31=TRUE,"3","0") -> 0 | X32: =IF(W32="3",W32,IF(V32="2",V32,IF(U32="1",U32,"0"))) -> 0
A33: 5. Appropriate assessment tools for teaching and learning are continuously reviewed and improved, and assessment results are contextualized to the learner and local situation and the attainment of relevant life skills. | D33: (NO Evidence) | E33: The assessment tools are reviewed by the school and assessment results are shared with school’s stakeholders. | J33: The assessment tools are reviewed by the school community and results are shared community stakeholders. | O33: School assessment results are used to develop learning programs that are suited to community, and customized to each learners’ context, result of which are used for collaborative decision-making. | T33: FALSE | U33: FALSE | V33: FALSE | W33: FALSE
T34: =IF(T33=TRUE,"0","") ->  | U34: =IF(U33=TRUE,"1","0") -> 0 | V34: =IF(V33=TRUE,"2","0") -> 0 | W34: =IF(W33=TRUE,"3","0") -> 0 | X34: =IF(W34="3",W34,IF(V34="2",V34,IF(U34="1",U34,"0"))) -> 0
A35: 6. Learning mangers and facilitators (teacher, administrator and community members) nature values and environment that are protective of all children and demonstrate behaviors consistent to the organization’s vision, mission and goals. | D35: (NO Evidence) | E35: Stakeholders are aware of child/learner-centered, rights-based, and inclusive principles of education. | J35: Stakeholders begin to practice child/ learner-centered principles of education in the design of support to education. | O35: Learning environments, methods and resources are community driven, inclusive and adherent to child’s right and protection requirements. | T35: FALSE | U35: FALSE | V35: FALSE | W35: FALSE
T36: =IF(T35=TRUE,"0","") ->  | U36: =IF(U35=TRUE,"1","0") -> 0 | V36: =IF(V35=TRUE,"2","0") -> 0 | W36: =IF(W35=TRUE,"3","0") -> 0 | X36: =IF(W36="3",W36,IF(V36="2",V36,IF(U36="1",U36,"0"))) -> 0
D37: (NO Evidence) | E37: Learning managers and facilitators’ conduct activities aimed to increase stakeholder’s awareness and commitment to fundamental rights of children and the basic principle of educating them. | J37: Learning managers and facilitators’ apply the principles in designing learning materials. | O37: Learning mangers and facilitators observe learner’s rights from designing the curriculum to structuring the whole learning environment. | T37: FALSE | U37: FALSE | V37: FALSE | W37: FALSE
T38: =IF(T37=TRUE,"0","") ->  | U38: =IF(U37=TRUE,"1","0") -> 0 | V38: =IF(V37=TRUE,"2","0") -> 0 | W38: =IF(W37=TRUE,"3","0") -> 0 | X38: =IF(W38="3",W38,IF(V38="2",V38,IF(U38="1",U38,"0"))) -> 0
A39: 7. Methods and resources are learner and community-friendly, enjoyable, safe, inclusive, and accessible and aimed at developing self directed learners. Learners are equipped with essential knowledge, skills, and values to assume responsibility and accountability for their own learning. | E39: Practices, tools and materials for developing self-directed learners are highly observable in school, but not only in the home or in the community. | J39: Practices, tools and materials for developing self-directed learners are beginning to emerge in the homes and in the community. | O39: There is continuous exchange of information sharing of expertise and materials among the schools, home and community for the development of self-directed learners. | T39: FALSE | U39: FALSE | V39: FALSE | W39: FALSE
T40: =IF(T39=TRUE,"0","") ->  | U40: =IF(U39=TRUE,"1","0") -> 0 | V40: =IF(V39=TRUE,"2","0") -> 0 | W40: =IF(W39=TRUE,"3","0") -> 0 | X40: =IF(W40="3",W40,IF(V40="2",V40,IF(U40="1",U40,"0"))) -> 0
D41: (NO Evidence) | E41: Learning programs are designed and developed to produce learners who are responsible and accountable for their learning. | J41: The program is collaboratively implemented and monitored by teachers and parents to ensure that it produces desired learners. | O41: The program is mainstreamed continuously improve to make relevant to emergent demands. | T41: FALSE | U41: FALSE | V41: FALSE | W41: FALSE
T42: =IF(T41=TRUE,"0","") ->  | U42: =IF(U41=TRUE,"1","0") -> 0 | V42: =IF(V41=TRUE,"2","0") -> 0 | W42: =IF(W41=TRUE,"3","0") -> 0 | X42: =IF(W42="3",W42,IF(V42="2",V42,IF(U42="1",U42,"0"))) -> 0
A43: III. Accountability and Continuous Improvement
A44: A clear, transparent, inclusive, and responsive accountability system is in place, collaboratively developed by the school community, which monitors performance and acts appropriately on gaps and gains.
A45: 1. Roles and responsibility of accountable person/s and collective body/ies are clearly defined and agreed upon by community stakeholders. | D45: (NO Evidence) | E45: There is an active party that initiates classification of the roles and responsibilities in education delivery. | J45: The stakeholders are engaged in clarifying and defining their specific roles and responsibilities. | O45: Shared and participatory processes are used in determining roles, responsibilities, and accountabilities of stakeholders in managing and supporting education. | T45: FALSE | U45: FALSE | V45: FALSE | W45: FALSE
T46: =IF(T45=TRUE,"0","") ->  | U46: =IF(U45=TRUE,"1","0") -> 0 | V46: =IF(V45=TRUE,"2","0") -> 0 | W46: =IF(W45=TRUE,"3","0") -> 0 | X46: =IF(W46="3",W46,IF(V46="2",V46,IF(U46="1",U46,"0"))) -> 0
A47: 2. Achievement of goals is recognized based on a collaboratively develop performance accountability system; gaps are addressed through appropriate action. | D47: (NO Evidence) | E47: Performance accountability is practiced at the school level. | J47: A community-level accountability system is evolving from school-led initiatives. | O47: A community-accepted performance accountability, recognition and incentive system is being practiced. | T47: FALSE | U47: FALSE | V47: FALSE | W47: FALSE
T48: =IF(T47=TRUE,"0","") ->  | U48: =IF(U47=TRUE,"1","0") -> 0 | V48: =IF(V47=TRUE,"2","0") -> 0 | W48: =IF(W47=TRUE,"3","0") -> 0 | X48: =IF(W48="3",W48,IF(V48="2",V48,IF(U48="1",U48,"0"))) -> 0
A49: 3. The accountability system is owned by the community and is continuously enhanced to ensure that management structures and mechanism are responsive to the emerging learning needs of the community. | D49: (NO Evidence) | E49: The school articulates the accountabity assessment framework with basic components, including implementation guidelines to the stakeholders. | J49: Stakeholders are engaged in the development and operation of an appropriate accountability assessment system. | O49: School community stakeholders continuously and collaboratively review and enhance accountability systems’ processes, mechanisms and tools. | T49: FALSE | U49: FALSE | V49: FALSE | W49: FALSE
T50: =IF(T49=TRUE,"0","") ->  | U50: =IF(U49=TRUE,"1","0") -> 0 | V50: =IF(V49=TRUE,"2","0") -> 0 | W50: =IF(W49=TRUE,"3","0") -> 0 | X50: =IF(W50="3",W50,IF(V50="2",V50,IF(U50="1",U50,"0"))) -> 0
A51: 4. Accountability assessment criteria and tools, feedback mechanism, and information collection and validation techniques and processes are inclusive and collaboratively develop and agreed upon. | D51: (NO Evidence) | E51: The school, with the participation of stakeholders, articulates an accountability assessment framework with basic components, including implementation guidelines | J51: Stakeholders are engaged in the development and operation of an appropriate accountability assessment system. | O51: Schools community stakeholders continuously and collaboratively review and enhance accountability system’ processes, mechanisms and tools. | T51: FALSE | U51: FALSE | V51: FALSE | W51: FALSE
T52: =IF(T51=TRUE,"0","") ->  | U52: =IF(U51=TRUE,"1","0") -> 0 | V52: =IF(V51=TRUE,"2","0") -> 0 | W52: =IF(W51=TRUE,"3","0") -> 0 | X52: =IF(W52="3",W52,IF(V52="2",V52,IF(U52="1",U52,"0"))) -> 0
A53: 5. Participatory assessment of performance is done regularly with the community. Assessment results and lessons learned serve as basis for feedback, technical assistance, and recognition and plan adjustments. | D53: (NO Evidence) | E53: School initiates periodic performance assessment with the participation of stakeholders. | J53: Collaborative conduct of performance assessment informs planning, plan adjustments and requirements for technical assistance. | O53: School-community- developed performance assessment is practiced and is the basis for improving monitoring and evaluation systems, providing technical assistance, and recognizing and refining plans. | T53: FALSE | U53: FALSE | V53: FALSE | W53: FALSE
T54: =IF(T53=TRUE,"0","") ->  | U54: =IF(U53=TRUE,"1","0") -> 0 | V54: =IF(V53=TRUE,"2","0") -> 0 | W54: =IF(W53=TRUE,"3","0") -> 0 | X54: =IF(W54="3",W54,IF(V54="2",V54,IF(U54="1",U54,"0"))) -> 0
A55: IV. Management of Resource
A56: Resources are collectively and Judiciously mobilized and managed with transparency, effectiveness, and efficiency.
A57: 1. Regular resource inventory is collaboratively undertaken by learning managers, learning facilitators, and community stakeholders as basis for resource allocation an mobilization. | D57: (NO Evidence) | E57: Stakeholders are aware that a regular resource inventory is available and is used as the basis for resource allocation and mobilization. | J57: Resource inventory is characterized by regularity, increased participation of stakeholders, and communicated to the community as the basis for resource allocation and mobilization. | O57: Resource inventories are systematically developed and stakeholders are engaged in a collaboration process to make decisions on resource allocation and mobilization. | T57: FALSE | U57: FALSE | V57: FALSE | W57: FALSE
T58: =IF(T57=TRUE,"0","") ->  | U58: =IF(U57=TRUE,"1","0") -> 0 | V58: =IF(V57=TRUE,"2","0") -> 0 | W58: =IF(W57=TRUE,"3","0") -> 0 | X58: =IF(W58="3",W58,IF(V58="2",V58,IF(U58="1",U58,"0"))) -> 0
A59: 2. A regular dialogue for planning and resource programming, that is accessible and inclusive, continuously engage stakeholders and support implementation of community education plans. | D59: (NO Evidence) | E59: Stakeholders are invited to participate in the development of an educational plan in resource programming, and in the educational plan. | J59: Stakeholders are regularly engaged in the planning and resource programming, and in the implementation of the education plan. | O59: Stakeholders sustain the implementation and improvement of a collaboratively developed, periodically adjusted, and constituent-focused resource management system. | T59: FALSE | U59: FALSE | V59: FALSE | W59: FALSE
T60: =IF(T59=TRUE,"0","") ->  | U60: =IF(U59=TRUE,"1","0") -> 0 | V60: =IF(V59=TRUE,"2","0") -> 0 | W60: =IF(W59=TRUE,"3","0") -> 0 | X60: =IF(W60="3",W60,IF(V60="2",V60,IF(U60="1",U60,"0"))) -> 0
A61: 3. In place is a community-developed resource management system that drives appropriate behaviors of the stakeholders to ensure judicious, appropriate and effective use of resources. | D61: (NO Evidence) | E61: Stakeholders support judicious, appropriate, and effective use of resources. | J61: Stakeholders are engaged and share expertise in the collaborative development of resource management system. | O61: Stakeholders sustain the implementation and improvement of a collaboratively developed, periodically adjusted, and constituent-focused resource management system. | T61: FALSE | U61: FALSE | V61: FALSE | W61: FALSE
T62: =IF(T61=TRUE,"0","") ->  | U62: =IF(U61=TRUE,"1","0") -> 0 | V62: =IF(V61=TRUE,"2","0") -> 0 | W62: =IF(W61=TRUE,"3","0") -> 0 | X62: =IF(W62="3",W62,IF(V62="2",V62,IF(U62="1",U62,"0"))) -> 0
A63: 4. Regular monitoring, evaluation, and reporting processes of resource management are collaboratively developed and implemented by the learning managers, facilitators, and community stakeholders. | D63: (NO Evidence) | E63: Stakeholders are invited to participate in the development and implementation of monitoring, evaluation, and reporting processes on resource management. | J63: Stakeholder engaged and share expertise in the collaborative development of resource management system. | O63: Stakeholders sustain the implementation and improvement of a collaboratively developed, periodically adjusted, and constituent-focused resource management system. | T63: FALSE | U63: FALSE | V63: FALSE | W63: FALSE
T64: =IF(T63=TRUE,"0","") ->  | U64: =IF(U63=TRUE,"1","0") -> 0 | V64: =IF(V63=TRUE,"2","0") -> 0 | W64: =IF(W63=TRUE,"3","0") -> 0 | X64: =IF(W64="3",W64,IF(V64="2",V64,IF(U64="1",U64,"0"))) -> 0
A65: 5. There is a system that manages the network and linkages which strengthen and sustain partnership for improving resource management. | D65: (NO Evidence) | E65: An engagement procedure to identify and utilize partnerships with stakeholders for improving resource management is evident. | J65: Stakeholders support a system of partnership for improving resource management. | O65: An established system of partnership is managed and sustained by the stakeholders for continuous improvement of resource management. | T65: FALSE | U65: FALSE | V65: FALSE | W65: FALSE
T66: =IF(T65=TRUE,"0","") ->  | U66: =IF(U65=TRUE,"1","0") -> 0 | V66: =IF(V65=TRUE,"2","0") -> 0 | W66: =IF(W65=TRUE,"3","0") -> 0 | X66: =IF(W66="3",W66,IF(V66="2",V66,IF(U66="1",U66,"0"))) -> 0
A69: Summary :
A70: SBM Principles | C70: Weight | F70: Cummulative Scores of Validators per Principles | H70: Results | K70: Chairman: | M70: ='Input Menu'!B50 -> 0
A71: Leadership and Governance | C71: 30% | F71: =(X13+X15+X17+X19+X21)/5 -> 0.60 | H71: =F71*0.3 -> 0.18 | K71: Member1: | M71: ='Input Menu'!B51 -> 0 | AP71: =F71 -> 0.60
A72: Curriculum & Learning | C72: 30% | F72: =(X24+X26+X28+X30+X32+X34+X36+X38+X40+X42)/10 -> 0.00 | H72: =F72*0.3 -> 0 | K72: Member2: | M72: ='Input Menu'!B52 -> 0 | AP72: =F72 -> 0.00
A73: Accountability and Continuous Improvement | C73: 25% | F73: =(X46+X48+X50+X52+X54)/5 -> 0.00 | H73: =F73*0.25 -> 0 | K73: Member3: | M73: ='Input Menu'!B53 -> 0 | AP73: =F73 -> 0.00
A74: Resource Management | C74: 15% | F74: =(X58+X60+X62+X64+X66)/5 -> 0.00 | H74: =F74*0.15 -> 0 | K74: Member4: | M74: ='Input Menu'!B54 -> 0 | AP74: =F74 -> 0.00
A75: Sub-total | H75: =SUM(H71:H74) -> 0.18
